Workbook

Sheet Permit
A1: Futurity | B1: Der | C1: Age Inct. | D1: BBR | E1: Draw | F1: Rider Name | G1: Horse Name | H1: Pen | I1: Time | J1: Final Time | K1: Placing | L1: Money Earned
E2: 1 | F2: Lacy Billingsley | G2: PV Watchmeneighneigh | H2: OP | I2: 15.842 | K2: 1st | L2: 379.9
E3: 2 | F3: Anna Johnson | G3: Famous Resurection | I3: 15.861 | K3: 2nd | L3: 314.14
E4: 3 | F4: Jesse Harris | G4: Running For Honors | I4: 16.103 | K4: 3rd | L4: 248.9
E5: 4 | F5: Delaney Siebert | G5: Guys Classy Colours | I5: 16.222 | K5: 4th | L5: 183.4
E6: 5 | F6: KK Rule | G6: A Juicy Adventure | I6: 16.223 | K6: 5th | L6: 117.9
E7: 6 | F7: Fallon Forbes | G7: Another Bug Leo | I7: 16.271 | K7: 6th | L7: 65.5
E8: 7 | F8: Savannah Hays | G8: Perkzilla | I8: 16.328
E9: 8 | F9: Nadia Defelice | G9: Downrite Spectacular | I9: 16.362
E10: 9 | F10: Jamie Olsen | G10: Miss Famous Beduino | H10: OP | I10: 16.456
E11: 10 | F11: Shelly Lilley | G11: Winston | I11: 16.472
E12: 11 | F12: Michelle Tyler | G12: KissesFOrCaris | I12: 16.527
E13: 12 | F13: Lindsey Stevens | G13: JM I Got Faith | I13: 16.624
E14: 13 | F14: Keley Bissett | G14: Diamond Bar Flit | I14: 16.645
E15: 14 | F15: Randi Roberts | G15: Boom Slicka Boom | H15: OAP | I15: 17.019
E16: 15 | F16: Summer Tharp | G16: Barley | I16: 17.263
E17: 16 | F17: Brittany Pierson | G17: CF Dash N Dirty | I17: nt16.182
E18: 17 | F18: Shelby Rowe | G18: Beggars Pobre Flit | I18: nt16.532
E19: 18 | F19: Jamie Cramblit | G19: Pipers Magic | I19: nt16.622
E20: 19
E21: 20
E22: 21
E23: 22
E24: 23
E25: 24
E26: 25
E27: 26
E28: 27
E29: 28
E30: 29
E31: 30
E32: 31
E33: 32
E34: 33
E35: 34
E36: 35
E37: 36
E38: 37
E39: 38
E40: 39
E41: 40
E42: 41
E43: 42
E44: 43
E45: 44
E46: 45
E47: 46
E48: 47
E49: 48
E50: 49
E51: 50
E52: 51
E53: 52
E54: 53
E55: 54
E56: 55
E57: 56
E58: 57
E59: 58
E60: 59
E61: 60
E62: 61
E63: 62
E64: 63
E65: 64
E66: 65
E67: 66 | J67: =IF(OR(H67=5,H67=10, H67=15, H67="BP",H67="SCR"),"NT",I67) -> 0
E68: 67 | J68: 0
E69: 68 | J69: 0
E70: 69 | J70: 0
E71: 70 | J71: 0
E72: 71 | J72: 0
E73: 72 | J73: 0
E74: 73 | J74: 0
E75: 74 | J75: 0
E76: 75 | J76: 0
E77: 76 | J77: 0
E78: 77 | J78: 0
E79: 78 | J79: 0
E80: 79 | J80: 0
E81: 80 | J81: 0
E82: 81 | J82: 0
E83: 82 | J83: 0
E84: 83 | J84: 0
E85: 84 | J85: 0
E86: 85 | J86: 0
E87: 86 | J87: 0
E88: 87 | J88: 0
E89: 88 | J89: 0
E90: 89 | J90: 0
E91: 90 | J91: 0
E92: 91 | J92: 0
E93: 92 | J93: 0
E94: 93 | J94: 0
E95: 94 | J95: 0
E96: 95 | J96: 0
E97: 96 | J97: 0
E98: 97 | J98: 0
E99: 98 | J99: 0
E100: 99 | J100: 0
E101: 100 | J101: 0
E102: 101 | J102: 0
E103: 102 | J103: 0
E104: 103 | J104: 0
E105: 104 | J105: 0
E106: 105 | J106: 0
E107: 106 | J107: 0
E108: 107 | J108: 0
E109: 108 | J109: 0
E110: 109 | J110: 0
E111: 110 | J111: 0
E112: 111 | J112: 0
E113: 112 | J113: 0
E114: 113 | J114: 0
E115: 114 | J115: 0
E116: 115 | J116: 0
E117: 116 | J117: 0
E118: 117 | J118: 0
E119: 118 | J119: 0
E120: 119 | J120: 0
E121: 120 | J121: 0
E122: 121 | J122: 0
E123: 122 | J123: 0
E124: 123 | J124: 0
E125: 124 | J125: 0
E126: 125 | J126: 0
E127: 126 | J127: 0
E128: 127 | J128: 0
E129: 128 | J129: 0
E130: 129 | J130: 0
E131: 130 | J131: =IF(OR(H131=5,H131=10, H131=15, H131="BP",H131="SCR"),"NT",I131) -> 0
E132: 131 | J132: 0
E133: 132 | J133: 0
E134: 133 | J134: 0
E135: 134 | J135: 0
E136: 135 | J136: 0
E137: 136 | J137: 0
E138: 137 | J138: 0
E139: 138 | J139: 0
E140: 139 | J140: 0
E141: 140 | J141: 0
E142: 141 | J142: 0
E143: 142 | J143: 0
E144: 143 | J144: 0
E145: 144 | J145: 0
E146: 145 | J146: 0
E147: 146 | J147: 0
E148: 147 | J148: 0
E149: 148 | J149: 0
E150: 149 | J150: 0
E151: 150 | J151: 0
E152: 151 | J152: 0
E153: 152 | J153: 0
E154: 153 | J154: 0
E155: 154 | J155: 0
E156: 155 | J156: 0
E157: 156 | J157: 0
E158: 157 | J158: 0
E159: 158 | J159: 0
E160: 159 | J160: 0
E161: 160 | J161: 0
E162: 161 | J162: 0
E163: 162 | J163: 0
E164: 163 | J164: 0
E165: 164 | J165: 0
E166: 165 | J166: 0
E167: 166 | J167: 0
E168: 167 | J168: 0
E169: 168 | J169: 0
E170: 169 | J170: 0
E171: 170 | J171: 0
E172: 171 | J172: 0
E173: 172 | J173: 0
E174: 173 | J174: 0
E175: 174 | J175: 0
E176: 175 | J176: 0
E177: 176 | J177: 0
E178: 177 | J178: 0
E179: 178 | J179: 0
E180: 179 | J180: 0
E181: 180 | J181: 0
E182: 181 | J182: 0
E183: 182 | J183: 0
E184: 183 | J184: 0
E185: 184 | J185: 0
E186: 185 | J186: 0
E187: 186 | J187: 0
E188: 187 | J188: 0
E189: 188 | J189: 0
E190: 189 | J190: 0
E191: 190 | J191: 0
E192: 191 | J192: 0
E193: 192 | J193: 0
E194: 193 | J194: 0
E195: 194 | J195: =IF(OR(H195=5,H195=10, H195=15, H195="BP",H195="SCR"),"NT",I195) -> 0
E196: 195 | J196: 0
E197: 196 | J197: 0
E198: 197 | J198: 0
E199: 198 | J199: 0
E200: 199 | J200: 0
... 101 more rows

Sheet 2021 FUT
A1: Futurity | B1: Der | C1: Age Inct. | D1: BBR | E1: Draw | F1: Rider Name | G1: Horse Name | H1: c/o | I1: Time | J1: Final Time | K1: Placing | L1: Money Earned
E2: 24 | F2: Fonda Melby | G2: Fling The French | H2: O | I2: 15.951 | J2: =IF(OR(H2=5,H2=10, H2=15, H2="BP",H2="SCR"),"NT",I2) -> 15.951 | K2: 1D 1st | L2: 1823.5
E3: 52 | F3: Molli Montgomery | G3: The Woman Loves Fame | H3: O | I3: 16.041 | K3: 1D 2nd | L3: 1458.8
E4: 26 | F4: Hallie Hannsen | G4: Epic Calendar Girl | H4: O | I4: 16.052 | J4: =IF(OR(H4=5,H4=10, H4=15, H4="BP",H4="SCR"),"NT",I4) -> 16.052 | K4: 1D 3rd | L4: 1312.92
E5: 14 | F5: Kylie Bowles | G5: Slick A Lena | H5: O | I5: 16.093 | J5: 16.093 | K5: 1D 4th | L5: 1094.1
E6: 12 | F6: Sharin Hall | G6: Rocket Fire Ta Fame | H6: O | I6: 16.176 | J6: 16.176 | K6: 1D 5th | L6: 875.28
E7: 11 | F7: Sierra Melby | G7: Aflingwithfreckles | H7: O | I7: 16.189 | J7: 16.189 | K7: 1D 6th | L7: 729.4
E8: 13 | F8: Scamper Cole | G8: French Stinson | H8: O | I8: 16.216 | J8: 16.216
E9: 65 | F9: Skylar Eisinger | G9: All Bugged Up | H9: OY | I9: 16.233 | J9: 16.233
E10: 27 | F10: Lacey Harmon | G10: Rumoure Has It | H10: O | I10: 16.235 | J10: 16.235
E11: 38 | F11: Tallaney Clark | G11: Perks Hickory Cat | H11: O | I11: 16.249
E12: 16 | F12: Rylee Shields | G12: Im Ferious 123 | H12: O | I12: 16.276 | J12: =IF(OR(H12=5,H12=10, H12=15, H12="BP",H12="SCR"),"NT",I12) -> 16.276
E13: 36 | F13: Abigail Plants | G13: KN Baileys Sidecar | H13: O | I13: 16.291 | J13: =IF(OR(H13=5,H13=10, H13=15, H13="BP",H13="SCR"),"NT",I13) -> 16.291
E14: 57 | F14: Hallie Hannsen | G14: UX Swayzi Stinson | H14: O | I14: 16.306 | J14: =IF(OR(H14=5,H14=10, H14=15, H14="BP",H14="SCR"),"NT",I14) -> 16.306
E15: 8 | F15: Molli Montgomery | G15: SV Dudewheresmysocks | H15: O | I15: 16.317
E16: 58 | F16: Ashley Schafer | G16: KN Harley Quinn | H16: O | I16: 16.323 | J16: =IF(OR(H16=5,H16=10, H16=15, H16="BP",H16="SCR"),"NT",I16) -> 16.323
E17: 43 | F17: Caroline Boucher | G17: MP Hot Hayday | H17: O | I17: 16.343
E18: 18 | F18: Kyle Leleux | G18: Dollys Streakin Badger | H18: O | I18: 16.344 | J18: =IF(OR(H18=5,H18=10, H18=15, H18="BP",H18="SCR"),"NT",I18) -> 16.344
E19: 54 | F19: Bo Hill | G19: Jakk | H19: O | I19: 16.371 | J19: 16.371
E20: 20 | F20: Caroline Boucher | G20: Streakin Lil Fling | H20: O | I20: 16.386 | J20: 16.386
E21: 63 | F21: Shelly Shields | G21: Tres French Kiss | H21: O | I21: 16.397 | J21: 16.397
E22: 4 | F22: Hallie Hannsen | G22: Seis Wild | H22: O | I22: 16.41 | J22: 16.41
E23: 53 | F23: Fonda Melby | G23: RF Back For The Cash | H23: O | I23: 16.489 | J23: 16.489
E24: 59 | F24: Sierra Melby | G24: VF Victoria Stinson | H24: O | I24: 16.49 | J24: 16.49
E25: 23 | F25: Cassidy Teague | G25: RLC Gone Streakin | H25: O | I25: 16.526 | J25: 16.526
E26: 44 | F26: Jennifer Burgess | G26: IFIWASUIDWANNABEME 2 | H26: O | I26: 16.579
E27: 33 | F27: Janee' Ornelas | G27: BQX TX Streaktorodeo | H27: o | I27: 16.58 | J27: =IF(OR(H27=5,H27=10, H27=15, H27="BP",H27="SCR"),"NT",I27) -> 16.58
E28: 25 | F28: Keely Perkins | G28: Wahinis In Bikinis | H28: O | I28: 16.583 | J28: =IF(OR(H28=5,H28=10, H28=15, H28="BP",H28="SCR"),"NT",I28) -> 16.583
E29: 17 | F29: Shelly Shields | G29: Streakingaround NBack | H29: O | I29: 16.642 | J29: =IF(OR(H29=5,H29=10, H29=15, H29="BP",H29="SCR"),"NT",I29) -> 16.642
E30: 3 | F30: Fonda Melby | G30: Fiddle Me To Gold | H30: O | I30: 16.652 | J30: =IF(OR(H30=5,H30=10, H30=15, H30="BP",H30="SCR"),"NT",I30) -> 16.652
E31: 30 | F31: Lindsey Sears | G31: SME One Of A Kind | H31: O | I31: 16.656 | J31: =IF(OR(H31=5,H31=10, H31=15, H31="BP",H31="SCR"),"NT",I31) -> 16.656
E32: 10 | F32: Jennifer Burgess | G32: Streakin Dynamo | H32: O | I32: 16.702
E33: 6 | F33: Cassidy Teague | G33: On The Run With a Gun | H33: O | I33: 16.73
E34: 42 | F34: Josh Seeger | G34: Wins Famous Lady | H34: O | I34: 16.76
E35: 31 | F35: Whitney Godinez | G35: Chilla On The Rocks | H35: OA | I35: 16.763 | J35: =IF(OR(H35=5,H35=10, H35=15, H35="BP",H35="SCR"),"NT",I35) -> 16.763
E36: 34 | F36: Wyatt Paul | G36: MJ Condo Cowboy | H36: O | I36: 16.769 | J36: =IF(OR(H36=5,H36=10, H36=15, H36="BP",H36="SCR"),"NT",I36) -> 16.769
E37: 56 | F37: Cassidy Teague | G37: Fabs Little Rose | H37: O | I37: 16.89 | J37: =IF(OR(H37=5,H37=10, H37=15, H37="BP",H37="SCR"),"NT",I37) -> 16.89
E38: 41 | F38: Jolene Jones | G38: Mark Me Angels | H38: OS | I38: 16.899
E39: 66 | F39: Chelsea Bartlett | G39: EJ Flirty French Girl | H39: O | I39: 16.946 | J39: =IF(OR(H39=5,H39=10, H39=15, H39="BP",H39="SCR"),"NT",I39) -> 16.946
E40: 19 | F40: Tiffany Durham | G40: Stolin Rubies | H40: OA | I40: 16.957 | J40: =IF(OR(H40=5,H40=10, H40=15, H40="BP",H40="SCR"),"NT",I40) -> 16.957 | K40: 2D 1st | L40: 781.5
E41: 28 | F41: Jordan Moore-Miller | G41: TR Famous Badger | H41: O | I41: 16.979 | J41: =IF(OR(H41=5,H41=10, H41=15, H41="BP",H41="SCR"),"NT",I41) -> 16.979 | K41: 2D 2nd | L41: 625.2
E42: 15 | F42: Taylor Langle | G42: Snakin Thru Traffic | H42: O | I42: 16.999 | J42: =IF(OR(H42=5,H42=10, H42=15, H42="BP",H42="SCR"),"NT",I42) -> 16.999 | K42: 2D 3rd | L42: 562.68
E43: 47 | F43: Renee Douglas | G43: Ticket Ta Fame | H43: OS | I43: 17.009 | K43: 2D 4th | L43: 468.9
E44: 32 | F44: Kara Kreder | G44: ZZI Rojo Magic | H44: O | I44: 17.051 | J44: =IF(OR(H44=5,H44=10, H44=15, H44="BP",H44="SCR"),"NT",I44) -> 17.051 | K44: 2D 5th | L44: 375.12
E45: 22 | F45: Ashley Schafer | G45: Famous Cash Can | H45: O | I45: 17.113 | J45: =IF(OR(H45=5,H45=10, H45=15, H45="BP",H45="SCR"),"NT",I45) -> 17.113 | K45: 2D 6th | L45: 312.6
E46: 64 | F46: Mary Van Cleve | G46: This Buds For Fame | H46: OA | I46: 17.165 | J46: =IF(OR(H46=5,H46=10, H46=15, H46="BP",H46="SCR"),"NT",I46) -> 17.165
E47: 55 | F47: Scamper Cole | G47: Cartels Lil Secert | H47: O | I47: 17.306 | J47: =IF(OR(H47=5,H47=10, H47=15, H47="BP",H47="SCR"),"NT",I47) -> 17.306
E48: 50 | F48: Odale Comer | G48: Trump Train La Fame | H48: O | I48: 17.307
E49: 49 | F49: Kylee Scribner | G49: Firewater Rey | H49: O | I49: 17.357
E50: 35 | F50: Cassidy Champlin | G50: TDZ Toast The Wind | H50: O | I50: 17.407 | J50: =IF(OR(H50=5,H50=10, H50=15, H50="BP",H50="SCR"),"NT",I50) -> 17.407
E51: 9 | F51: Kylee Scribner | G51: Corona and Firewater | H51: O | I51: 17.481
E52: 62 | F52: Caroline Boucher | G52: Gotta B Heavenly | H52: O | I52: 17.502
E53: 48 | F53: Michaela Robertson | G53: RSR Guys Speed Com | H53: O | I53: 17.651
E54: 37 | F54: Becca Fellman | G54: Jesses Corona | I54: 17.856
E55: 29 | F55: Brittany Baton | G55: Savagely Smooth | H55: O | I55: 17.876 | J55: =IF(OR(H55=5,H55=10, H55=15, H55="BP",H55="SCR"),"NT",I55) -> 17.876
E56: 51 | F56: Madi Roelofsen | G56: TVR Sullivan Dancer | H56: O | I56: 18.315
E57: 46 | F57: Lori Berryman | G57: Separate Luv For M21 | H57: OA | I57: 18.446
E58: 45 | F58: Gracie Ayers | G58: Laramie Wild Card | H58: O | I58: 18.502
E59: 60 | F59: Sharin Hall | G59: Hello Stella | H59: O | I59: nt | J59: =IF(OR(H59=5,H59=10, H59=15, H59="BP",H59="SCR"),"NT",I59) -> nt
E60: 61 | F60: Joao Leao | G60: Florari | H60: O | I60: nt | J60: =IF(OR(H60=5,H60=10, H60=15, H60="BP",H60="SCR"),"NT",I60) -> nt
E61: 5 | F61: Ashley Schafer | G61: Streakin TilMidnight | H61: O | I61: nt 16.471 | J61: =IF(OR(H61=5,H61=10, H61=15, H61="BP",H61="SCR"),"NT",I61) -> nt 16.471
E62: 7 | F62: Bo Hill | G62: Thomaz | H62: O | I62: nt16.121 | J62: =IF(OR(H62=5,H62=10, H62=15, H62="BP",H62="SCR"),"NT",I62) -> nt16.121
E63: 2 | F63: Joao Leao | G63: Special For Trez Pz | H63: O | I63: nt16.176
E64: 39 | F64: Ben McDonnell | G64: AJ ShakeItLike Elvis | H64: O | I64: nt16.732
E65: 21 | F65: Joao Leao | G65: Tres Candies Pz | H65: O | I65: nt16.908
E66: 1 | F66: Caroline Boucher | G66: Mayfling First Sign | H66: O | I66: nt16.969
E67: 40 | F67: Genevieve Blanchard | G67: Hot Traffic Pursuit | H67: OY | I67: nt17.364
E68: 67 | J68: =IF(OR(H68=5,H68=10, H68=15, H68="BP",H68="SCR"),"NT",I68) -> 0
E69: 68 | J69: 0
E70: 69 | J70: 0
E71: 70 | J71: 0
E72: 71 | J72: 0
E73: 72 | J73: 0
E74: 73 | J74: 0
E75: 74 | J75: 0
E76: 75 | J76: 0
E77: 76 | J77: 0
E78: 77 | J78: 0
E79: 78 | J79: 0
E80: 79 | J80: 0
E81: 80 | J81: 0
E82: 81 | J82: 0
E83: 82 | J83: 0
E84: 83 | J84: 0
E85: 84 | J85: 0
E86: 85 | J86: 0
E87: 86 | J87: 0
E88: 87 | J88: 0
E89: 88 | J89: 0
E90: 89 | J90: 0
E91: 90 | J91: 0
E92: 91 | J92: 0
E93: 92 | J93: 0
E94: 93 | J94: 0
E95: 94 | J95: 0
E96: 95 | J96: 0
E97: 96 | J97: 0
E98: 97 | J98: 0
E99: 98 | J99: 0
E100: 99 | J100: 0
E101: 100 | J101: 0
E102: 101 | J102: 0
E103: 102 | J103: 0
E104: 103 | J104: 0
E105: 104 | J105: 0
E106: 105 | J106: 0
E107: 106 | J107: 0
E108: 107 | J108: 0
E109: 108 | J109: 0
E110: 109 | J110: 0
E111: 110 | J111: 0
E112: 111 | J112: 0
E113: 112 | J113: 0
E114: 113 | J114: 0
E115: 114 | J115: 0
E116: 115 | J116: 0
E117: 116 | J117: 0
E118: 117 | J118: 0
E119: 118 | J119: 0
E120: 119 | J120: 0
E121: 120 | J121: 0
E122: 121 | J122: 0
E123: 122 | J123: 0
E124: 123 | J124: 0
E125: 124 | J125: 0
E126: 125 | J126: 0
E127: 126 | J127: 0
E128: 127 | J128: 0
E129: 128 | J129: 0
E130: 129 | J130: 0
E131: 130 | J131: 0
E132: 131 | J132: =IF(OR(H132=5,H132=10, H132=15, H132="BP",H132="SCR"),"NT",I132) -> 0
E133: 132 | J133: 0
E134: 133 | J134: 0
E135: 134 | J135: 0
E136: 135 | J136: 0
E137: 136 | J137: 0
E138: 137 | J138: 0
E139: 138 | J139: 0
E140: 139 | J140: 0
E141: 140 | J141: 0
E142: 141 | J142: 0
E143: 142 | J143: 0
E144: 143 | J144: 0
E145: 144 | J145: 0
E146: 145 | J146: 0
E147: 146 | J147: 0
E148: 147 | J148: 0
E149: 148 | J149: 0
E150: 149 | J150: 0
E151: 150 | J151: 0
E152: 151 | J152: 0
E153: 152 | J153: 0
E154: 153 | J154: 0
E155: 154 | J155: 0
E156: 155 | J156: 0
E157: 156 | J157: 0
E158: 157 | J158: 0
E159: 158 | J159: 0
E160: 159 | J160: 0
E161: 160 | J161: 0
E162: 161 | J162: 0
E163: 162 | J163: 0
E164: 163 | J164: 0
E165: 164 | J165: 0
E166: 165 | J166: 0
E167: 166 | J167: 0
E168: 167 | J168: 0
E169: 168 | J169: 0
E170: 169 | J170: 0
E171: 170 | J171: 0
E172: 171 | J172: 0
E173: 172 | J173: 0
E174: 173 | J174: 0
E175: 174 | J175: 0
E176: 175 | J176: 0
E177: 176 | J177: 0
E178: 177 | J178: 0
E179: 178 | J179: 0
E180: 179 | J180: 0
E181: 180 | J181: 0
E182: 181 | J182: 0
E183: 182 | J183: 0
E184: 183 | J184: 0
E185: 184 | J185: 0
E186: 185 | J186: 0
E187: 186 | J187: 0
E188: 187 | J188: 0
E189: 188 | J189: 0
E190: 189 | J190: 0
E191: 190 | J191: 0
E192: 191 | J192: 0
E193: 192 | J193: 0
E194: 193 | J194: 0
E195: 194 | J195: 0
E196: 195 | J196: =IF(OR(H196=5,H196=10, H196=15, H196="BP",H196="SCR"),"NT",I196) -> 0
E197: 196 | J197: 0
E198: 197 | J198: 0
E199: 198 | J199: 0
E200: 199 | J200: 0
... 101 more rows

Sheet Open
A3: Futurity | B3: Der | C3: HS | D3: Age Inct. | E3: Open C/O | F3: YOU | G3: Per | H3: Draw | I3: Rider Name | J3: Horse Name | K3: C/O | L3: Time | M3: Final Time | N3: Placing | O3: Money Earned | Q3: D Placing | S3: Split
D4: S | H4: 287 | I4: Donna Kay Rule | J4: High Valor | L4: 15.515 | N4: 1D 1st | O4: 1237.32 | Q4: 1D
H5: 271 | I5: Schelli Creacy | J5: Nico | L5: 15.672 | N5: 1D 2nd | O5: 1060.56 | Q5: 2D | R5: =SUM(R4+0.5) -> 0.5 | S5: 0.5
H6: 392 | I6: Cassidy Champlin | J6: DG Excuse My French | K6: O | L6: 15.732 | N6: 1D 3rd | O6: 883.8 | Q6: 3D | R6: =SUM(R4+1) -> 1
D7: S | H7: 256 | I7: Jenny Zant | J7: Raise Me Ta Fame | L7: 15.736 | N7: 1D 4th | O7: 707.04 | Q7: 4D | R7: =SUM(R4+1.5) -> 1.5 | S7: 0.5
E8: X | F8: X | H8: 250 | I8: Brianna Woodmansee | J8: CC Fancy Lil Cowgirl | L8: 15.748 | N8: 1D 5th | O8: 530.28 | Q8: 5D | R8: =SUM(R4+2) -> 2 | S8: 0.5
C9: X | D9: A | H9: 367 | I9: Kylee Scribner | J9: Firewater Cartel | K9: OAH | L9: 15.761 | N9: 1D 6th | O9: 412.44
H10: 316 | I10: Emery Mask | J10: Little Powerproof | L10: 15.835 | N10: 1D 7th | O10: 353.52
G11: X | H11: 368 | I11: Lacy Billingsley | J11: PV Watchmeneighneigh | K11: OP | L11: 15.842 | N11: 1D 8th | O11: 294.6 | Q11: # Entered
H12: 393 | I12: Lacey Harmon | J12: Mended Heart | K12: O | L12: 15.855 | N12: 1D 9th | O12: 235.68 | Q12: =COUNTA(I4:I504) -> 461
G13: X | H13: 200 | I13: Anna Johnson | J13: Famous Resurection | L13: 15.861 | N13: 1D 10th | O13: 176.76
D14: S | H14: 103 | I14: Shelly Shields | J14: Toast Ta Val | L14: 15.869 | Q14: # Ran
H15: 110 | I15: Karlee Kalberer | J15: Krazy Karen | L15: 15.898 | Q15: =COUNTA(L4:L504) -> 461
C16: X | D16: A | H16: 369 | I16: Whitney Godinez | J16: Im Dun Smokin Bugs | K16: OAH | L16: 15.903
C17: X | H17: 370 | I17: Hallie Hannsen | J17: Jesswatchmestreak | K17: OH | L17: 15.916 | Q17: # Left
D18: A | H18: 371 | I18: Kelly Allen | J18: Miss JB 165 | K18: OA | L18: 15.943 | Q18: =$Q$12-$Q$15 -> 0
H19: 416 | I19: Fonda Melby | J19: Fling The French | K19: O | L19: 15.951 | M19: =IF(OR(K19=5,K19=10, K19=15, K19="BP",K19="SCR"),"NT",L19) -> 15.951
H20: 394 | I20: Sharin Hall | J20: Rare Packin Six | K20: O | L20: 15.97
E21: X | F21: X | H21: 10 | I21: Oceane Veilleux | J21: DR Rise N Shine | L21: 15.973
H22: 246 | I22: Brandee Hawkins | J22: Max | L22: 15.977
H23: 164 | I23: Kyra Boling | J23: Teninas Hayday | L23: 15.984
E24: X | F24: X | H24: 172 | I24: Kate Neill | J24: SHS Short Go Ike | L24: 15.993
H25: 53 | I25: Cierra Melby | J25: SR Plainlyimspecial | L25: 16.005
H26: 162 | I26: Brooke Sully | J26: EZ Shake Em | L26: 16.006
D27: S | H27: 228 | I27: Sherri Barnes | J27: Racing For Perks | L27: 16.027 | N27: 2D 1st | O27: 1031.1
D28: A | H28: 232 | I28: Jamie Wilson | J28: A Streak Of Phame | L28: 16.038 | N28: 2D 2nd | O28: 883.8
H29: 417 | I29: Molli Montgomery | J29: The Woman Loves Fame | K29: O | L29: 16.041 | M29: =IF(OR(K29=5,K29=10, K29=15, K29="BP",K29="SCR"),"NT",L29) -> 16.041 | N29: 2D 3rd | O29: 736.5
H30: 372 | I30: Molli Montgomery | J30: This Fling Is Famous | K30: O | L30: 16.046 | N30: 2D 4th | O30: 589.2
H31: 418 | I31: Hallie Hannsen | J31: Epic Calendar Girl | K31: O | L31: 16.052 | M31: =IF(OR(K31=5,K31=10, K31=15, K31="BP",K31="SCR"),"NT",L31) -> 16.052 | N31: 2D 5th | O31: 441.9
H32: 395 | I32: Karri McKim | J32: Firen Ta Fame | K32: O | L32: 16.057 | N32: 2D 6th | O32: 343.7
H33: 373 | I33: Ashley Schafer | J33: Our Bobby McGee | K33: O | L33: 16.061 | N33: 2D 7th | O33: 294.6
D34: S | H34: 262 | I34: Sherri Barnes | J34: Famous Lil Jet | L34: 16.07 | N34: 2D 8th | O34: 245.5
H35: 419 | I35: Kylie Bowles | J35: Slick A Lena | K35: O | L35: 16.093 | M35: =IF(OR(K35=5,K35=10, K35=15, K35="BP",K35="SCR"),"NT",L35) -> 16.093 | N35: 2D 9th/10th | O35: 172
D36: S | H36: 85 | I36: Tammy Rokus | J36: Mitey Confederate | L36: 16.093 | N36: 2D 9th/10th | O36: 172
G37: X | H37: 300 | I37: Jesse Harris | J37: Running For Honors | L37: 16.103
E38: X | F38: X | H38: 1 | I38: Tristan Bowles | J38: Short Oakie Lena | L38: 16.107
H39: 12 | I39: Molli Montgomery | J39: Star N Blazin Fame | L39: 16.115
H40: 396 | I40: Cassidy Champlin | J40: Wood Bea French Girl | K40: O | L40: 16.125
H41: 341 | I41: Kailey Dement | J41: Jess Plain Fast | L41: 16.129
D42: A | H42: 268 | I42: Jamie Wilson | J42: Check Your Bet | L42: 16.135
C43: X | D43: A | H43: 27 | I43: Jimmie Smith | J43: Lever Action | L43: 16.135
H44: 329 | I44: Kaden Burger | J44: Montanas Blue Drift | L44: 16.137
H45: 16 | I45: Kyle Leleux | J45: Unconquered Fame | L45: 16.137
D46: S | H46: 73 | I46: Kathy Rush | J46: JL Twisted Roc | L46: 16.145
H47: 61 | I47: Shannon Black | J47: MR Rambo Remedy | L47: 16.148
H48: 420 | I48: Sharin Hall | J48: Rocket Fire Ta Fame | K48: O | L48: 16.176 | M48: =IF(OR(K48=5,K48=10, K48=15, K48="BP",K48="SCR"),"NT",L48) -> 16.176
C49: X | H49: 29 | I49: Shelby Stansbury | J49: One Tuf Knight | L49: 16.178
D50: S | H50: 150 | I50: Lisa Wernli | J50: Flashs Fine Effort | L50: 16.189
H51: 421 | I51: Sierra Melby | J51: Aflingwithfreckles | K51: O | L51: 16.189 | M51: =IF(OR(K51=5,K51=10, K51=15, K51="BP",K51="SCR"),"NT",L51) -> 16.189
D52: A | H52: 176 | I52: Jennifer Cullen | J52: HLC Pretty Lil Sugar | L52: 16.194
H53: 147 | I53: Karlee Kalberer | J53: Turbo Streaker | L53: 16.202
H54: 98 | I54: Kara Kreder | J54: Ketels Fast Gal | L54: 16.205
H55: 397 | I55: Kara Kreder | J55: Dreams Of Fame | K55: O | L55: 16.208
H56: 121 | I56: Kyle Leleux | J56: Sensational | L56: 16.209
D57: S | H57: 87 | I57: Denny Ralls | J57: SV Southern Comfort | L57: 16.21
H58: 422 | I58: Scamper Cole | J58: French Stinson | K58: O | L58: 16.216 | M58: =IF(OR(K58=5,K58=10, K58=15, K58="BP",K58="SCR"),"NT",L58) -> 16.216
G59: X | H59: 251 | I59: Delaney Siebert | J59: Guys Classy Colours | L59: 16.222
G60: X | H60: 291 | I60: KK Rule | J60: A Juicy Adventure | L60: 16.223
E61: X | F61: X | H61: 284 | I61: Josie Jartmann | J61: Hes Honor | L61: 16.224
H62: 254 | I62: Becki Mask | J62: Daddys Lil Diva | L62: 16.233
E63: X | F63: X | H63: 423 | I63: Skylar Eisinger | J63: All Bugged Up | K63: OY | L63: 16.233 | M63: =IF(OR(K63=5,K63=10, K63=15, K63="BP",K63="SCR"),"NT",L63) -> 16.233
H64: 424 | I64: Lacey Harmon | J64: Rumoure Has It | K64: O | L64: 16.235 | M64: =IF(OR(K64=5,K64=10, K64=15, K64="BP",K64="SCR"),"NT",L64) -> 16.235
H65: 140 | I65: Candie Wolf | J65: Kits Texas Taxi | L65: 16.24
H66: 70 | I66: Jenna Napier | J66: Kings Duke | L66: 16.245
H67: 425 | I67: Tallaney Clark | J67: Perks Hickory Cat | K67: O | L67: 16.249 | M67: =IF(OR(K67=5,K67=10, K67=15, K67="BP",K67="SCR"),"NT",L67) -> 16.249
H68: 398 | I68: Rylee Shields | J68: Furys Princess | K68: O | L68: 16.251
D69: A | H69: 43 | I69: Stephanie Fryar | J69: The Red Maserati | L69: 16.251
D70: A | H70: 399 | I70: Boo Burttschell | J70: The Great Gatsby | K70: OA | L70: 16.263
G71: X | H71: 243 | I71: Fallon Forbes | J71: Another Bug Leo | L71: 16.271
H72: 426 | I72: Rylee Shields | J72: Im Ferious 123 | K72: O | L72: 16.276 | M72: =IF(OR(K72=5,K72=10, K72=15, K72="BP",K72="SCR"),"NT",L72) -> 16.276
H73: 279 | I73: Kayli Morris | J73: Fortune In Fuel | L73: 16.277
H74: 374 | I74: Odale Comer | J74: Bullie In LA | K74: O | L74: 16.279
H75: 427 | I75: Abigail Plants | J75: KN Baileys Sidecar | K75: O | L75: 16.291 | M75: =IF(OR(K75=5,K75=10, K75=15, K75="BP",K75="SCR"),"NT",L75) -> 16.291
H76: 143 | I76: Jancie Shelburne | J76: XN Dot Bogie | L76: 16.293
H77: 242 | I77: Candie Wolf | J77: Pleasin Pandalita | L77: 16.299
H78: 375 | I78: Ashley Schafer | J78: French Streakin Slew | K78: O | L78: 16.303
H79: 428 | I79: Hallie Hannsen | J79: UX Swayzi Stinson | K79: O | L79: 16.306 | M79: =IF(OR(K79=5,K79=10, K79=15, K79="BP",K79="SCR"),"NT",L79) -> 16.306
H80: 429 | I80: Molli Montgomery | J80: SV Dudewheresmysocks | K80: O | L80: 16.317 | M80: =IF(OR(K80=5,K80=10, K80=15, K80="BP",K80="SCR"),"NT",L80) -> 16.317
H81: 376 | I81: Chelsea Bartlett | J81: Whynotmetoo | K81: O | L81: 16.319
H82: 168 | I82: Kathy Warren | J82: Promise Me Sunshine | L82: 16.32
D83: S | H83: 56 | I83: Trina Murray | J83: Fuel For Dash | L83: 16.321
H84: 430 | I84: Ashley Schafer | J84: KN Harley Quinn | K84: O | L84: 16.323 | M84: =IF(OR(K84=5,K84=10, K84=15, K84="BP",K84="SCR"),"NT",L84) -> 16.323
D85: A | G85: X | H85: 30 | I85: Savannah Hays | J85: Perkzilla | L85: 16.328
H86: 50 | I86: Kyle Leleux | J86: Ima Famous Scarlett | L86: 16.34
H87: 431 | I87: Caroline Boucher | J87: MP Hot Hayday | K87: O | L87: 16.343 | M87: =IF(OR(K87=5,K87=10, K87=15, K87="BP",K87="SCR"),"NT",L87) -> 16.343
H88: 432 | I88: Kyle Leleux | J88: Dollys Streakin Badger | K88: O | L88: 16.344 | M88: =IF(OR(K88=5,K88=10, K88=15, K88="BP",K88="SCR"),"NT",L88) -> 16.344
E89: X | F89: X | H89: 194 | I89: Trinity Beauvais | J89: Eyes Okey Dokey | L89: 16.344
H90: 324 | I90: Emily Williams | J90: Heza Froster Charm | L90: 16.353
H91: 88 | I91: Kyle Leleux | J91: Guys Shakem Up | L91: 16.356
D92: A | H92: 68 | I92: Tawnie Vander Lans | J92: TS Return N Hayday | L92: 16.357
H93: 11 | I93: Misty Peek | J93: Amos | L93: 16.359
G94: X | H94: 280 | I94: Nadia Defelice | J94: Downrite Spectacular | L94: 16.362
H95: 37 | I95: Cassidy Teague | J95: Jess Move You | L95: 16.367
E96: X | F96: X | H96: 6 | I96: Hevenli Scribner | J96: JSHLucky Bottom Roy | L96: 16.368
H97: 26 | I97: Kylie Bowles | J97: Miracle Christmas | L97: 16.368
H98: 433 | I98: Bo Hill | J98: Jakk | K98: O | L98: 16.371 | M98: =IF(OR(K98=5,K98=10, K98=15, K98="BP",K98="SCR"),"NT",L98) -> 16.371
C99: X | D99: A | H99: 107 | I99: Ashley Watson | J99: First Down Hooter | L99: 16.385
H100: 434 | I100: Caroline Boucher | J100: Streakin Lil Fling | K100: O | L100: 16.386 | M100: =IF(OR(K100=5,K100=10, K100=15, K100="BP",K100="SCR"),"NT",L100) -> 16.386
H101: 400 | I101: Shelly Shields | J101: Streakers Queen | K101: O | L101: 16.393
H102: 435 | I102: Shelly Shields | J102: Tres French Kiss | K102: O | L102: 16.397 | M102: =IF(OR(K102=5,K102=10, K102=15, K102="BP",K102="SCR"),"NT",L102) -> 16.397
H103: 102 | I103: Rylee Shields | J103: Cheyennes Fab | L103: 16.398
D104: S | H104: 82 | I104: Jolene Jones | J104: Peppys Streakof Fame | L104: 16.4
D105: A | H105: 265 | I105: Faith Ross | J105: Kuhl Calvin | L105: 16.403
H106: 97 | I106: Tallaney Clark | J106: Mr Tres A Bug | L106: 16.403
H107: 94 | I107: Courtney Worthington | J107: CM Bubblin Barbie | L107: 16.404
H108: 436 | I108: Hallie Hannsen | J108: Seis Wild | K108: O | L108: 16.41 | M108: =IF(OR(K108=5,K108=10, K108=15, K108="BP",K108="SCR"),"NT",L108) -> 16.41
H109: 377 | I109: Caroline Boucher | J109: Jet To The Sun | K109: O | L109: 16.421
H110: 181 | I110: Cassidy Thomas | J110: MC Miss Windy | L110: 16.423
H111: 136 | I111: Chelsea Bartlett | J111: Frenchie | L111: 16.426
H112: 378 | I112: Shelby Stansbury | J112: KC Moonshine Over Rocs | K112: O | L112: 16.434
H113: 99 | I113: Abigail Plants | J113: Playin In Traffic | L113: 16.437
H114: 238 | I114: Marylene Menard | J114: VF Walnut Pie | L114: 16.44
H115: 40 | I115: Tallaney Clark | J115: Fortune | L115: 16.442
H116: 47 | I116: Courtney Worthington | J116: CM Bubblin Dynamite | L116: 16.443
H117: 379 | I117: Joao Leao | J117: Flos Hush Money | K117: O | L117: 16.447
H118: 204 | I118: Hanna Trimber | J118: Eye Jess Zoomed Bye | L118: 16.448
H119: 283 | I119: Jackie Dalchow | J119: Cat Scratchen | L119: 16.456
G120: X | H120: 401 | I120: Jamie Olsen | J120: Miss Famous Beduino | K120: OP | L120: 16.456
E121: X | F121: X | H121: 111 | I121: Kate Neill | J121: NF French Tigger | L121: 16.46
H122: 274 | I122: Kaden Burger | J122: Turbos French Zip | L122: 16.468
G123: X | H123: 331 | I123: Shelly Lilley | J123: Winston | L123: 16.472
E124: X | F124: X | H124: 302 | I124: Paige Clayton | J124: Imafrenchcaptain | L124: 16.485
H125: 437 | I125: Fonda Melby | J125: RF Back For The Cash | K125: O | L125: 16.489 | M125: =IF(OR(K125=5,K125=10, K125=15, K125="BP",K125="SCR"),"NT",L125) -> 16.489
H126: 39 | I126: Louis Paradis | J126: Purrfect Choice | L126: 16.489
H127: 438 | I127: Sierra Melby | J127: VF Victoria Stinson | K127: O | L127: 16.49 | M127: =IF(OR(K127=5,K127=10, K127=15, K127="BP",K127="SCR"),"NT",L127) -> 16.49
H128: 339 | I128: Keenan Best | J128: Nick Bar Bullett | L128: 16.501
E129: X | F129: X | H129: 402 | I129: Oceane Veilleux | J129: KN Bam Special | K129: OY | L129: 16.512
D130: A | H130: 380 | I130: Stephanie Fryar | J130: Special Bid Of Frost | K130: OA | L130: 16.521 | N130: 3D 1st | O130: 824.88
H131: 439 | I131: Cassidy Teague | J131: RLC Gone Streakin | K131: O | L131: 16.526 | M131: =IF(OR(K131=5,K131=10, K131=15, K131="BP",K131="SCR"),"NT",L131) -> 16.526 | N131: 3D 2nd/3rd | O131: 589.2
H132: 269 | I132: Lisa Lucia | J132: Sticks Chic | L132: 16.526 | N132: 3D 2nd/3rd | O132: 707.04
G133: X | H133: 165 | I133: Michelle Tyler | J133: KissesFOrCaris | L133: 16.527 | N133: 3D 4th | O133: 471.36
H134: 307 | I134: Jaden Fettig | J134: Pistol | L134: 16.534 | N134: 3D 5th | O134: 353.52
H135: 127 | I135: Kyra Boling | J135: Shesa Heaven Sent | L135: 16.537 | N135: 3D 6th | O135: 274.96
D136: A | H136: 298 | I136: Jennifer Abbott | J136: Wendall Jackson | L136: 16.539 | N136: 3D 7th | O136: 235.68
F137: X | H137: 55 | I137: Brinley Howard | J137: Lil Bid Of Flit | L137: 16.541 | N137: 3D 8th | O137: 196.4
D138: A | H138: 403 | I138: Janee' Ornelas | J138: Peter Wabbitt | K138: OA | L138: 16.549 | M138: =IF(OR(K138=5,K138=10, K138=15, K138="BP",K138="SCR"),"NT",L138) -> 16.549 | N138: 3D 9th | O138: 157.12
D139: A | H139: 241 | I139: Leslie Rickman | J139: Festus Dun It | L139: 16.554 | N139: 3D 10th | O139: 117.84
H140: 321 | I140: Tori Morris | J140: Oscar | L140: 16.569
H141: 151 | I141: Holly Pritchard | J141: Bogies French Moon | L141: 16.572
H142: 277 | I142: Kendra Feaser | J142: She Run For Cash | L142: 16.574
H143: 381 | I143: Kassie Rieken | J143: SO Ima Famous Guy | K143: O | L143: 16.576
H144: 440 | I144: Jennifer Burgess | J144: IFIWASUIDWANNABEME 2 | K144: O | L144: 16.579 | M144: =IF(OR(K144=5,K144=10, K144=15, K144="BP",K144="SCR"),"NT",L144) -> 16.579
H145: 345 | I145: Janee' Ornelas | J145: BQX TX Streaktorodeo | K145: O | L145: 16.58
D146: S | H146: 67 | I146: Tracie Schoenthal | J146: Gunsnfirewater | L146: 16.58
H147: 442 | I147: Keely Perkins | J147: Wahinis In Bikinis | K147: O | L147: 16.583 | M147: =IF(OR(K147=5,K147=10, K147=15, K147="BP",K147="SCR"),"NT",L147) -> 16.583
D148: A | H148: 309 | I148: Megan Epperson | J148: Kama Woodbridge | L148: 16.591
D149: A | H149: 145 | I149: Jennifer Cullen | J149: Chasin Annie Fame | L149: 16.592
D150: A | H150: 404 | I150: Sarah Peters | J150: Rockin My Fame | K150: OA | L150: 16.604 | M150: =IF(OR(K150=5,K150=10, K150=15, K150="BP",K150="SCR"),"NT",L150) -> 16.604
D151: S | H151: 77 | I151: Simone Elmore | J151: Badger A Conchadrift | L151: 16.604
D152: S | H152: 294 | I152: Jo Kirby | J152: Heavenly Joak | L152: 16.615
H153: 292 | I153: Irene Feaser | J153: Cant Bye Fame | L153: 16.619
D154: A | G154: X | H154: 230 | I154: Lindsey Stevens | J154: JM I Got Faith | L154: 16.624
H155: 208 | I155: Candie Wolf | J155: Buggem Down Kelly | L155: 16.642
H156: 443 | I156: Shelly Shields | J156: Streakingaround NBack | K156: O | L156: 16.642 | M156: =IF(OR(K156=5,K156=10, K156=15, K156="BP",K156="SCR"),"NT",L156) -> 16.642
D157: A | G157: X | H157: 295 | I157: Keley Bissett | J157: Diamond Bar Flit | L157: 16.645
H158: 264 | I158: Sara Redden | J158: Pedro | L158: 16.647
E159: X | F159: X | H159: 239 | I159: Stormi Branch | J159: Pretty Theory | L159: 16.651
H160: 444 | I160: Fonda Melby | J160: Fiddle Me To Gold | K160: O | L160: 16.652 | M160: =IF(OR(K160=5,K160=10, K160=15, K160="BP",K160="SCR"),"NT",L160) -> 16.652
H161: 445 | I161: Lindsey Sears | J161: SME One Of A Kind | K161: O | L161: 16.656 | M161: =IF(OR(K161=5,K161=10, K161=15, K161="BP",K161="SCR"),"NT",L161) -> 16.656
H162: 382 | I162: Jessica Lear | J162: GL Fly Girl | K162: O | L162: 16.661
H163: 203 | I163: Bridget Conlee | J163: Tri Zippo Charger | L163: 16.662
D164: S | H164: 188 | I164: Jana Kurosky | J164: Winnies Red kai | L164: 16.664
D165: S | H165: 48 | I165: Karen Davis | J165: Funderous Frost | L165: 16.681
H166: 263 | I166: Caitlin Loomis | J166: Gold Mines Quien | L166: 16.683
D167: A | H167: 258 | I167: Traci Ross | J167: Brady | L167: 16.684
H168: 170 | I168: Bridget Conlee | J168: LazyKSthirtypeppers | L168: 16.688
H169: 60 | I169: Rylee Shields | J169: Mutton Bustin | L169: 16.693
H170: 446 | I170: Jennifer Burgess | J170: Streakin Dynamo | K170: O | L170: 16.702 | M170: =IF(OR(K170=5,K170=10, K170=15, K170="BP",K170="SCR"),"NT",L170) -> 16.702
H171: 109 | I171: Jancie Shelburne | J171: Ima Chrome Cowboy | L171: 16.707
D172: S | H172: 146 | I172: Gretchen Goedeken | J172: Pretty Bay Pony | L172: 16.71
H173: 124 | I173: Lee Barron | J173: Xtra Splash N Go | L173: 16.712
D174: S | H174: 35 | I174: Jolene Jones | J174: Capone | L174: 16.721
H175: 447 | I175: Cassidy Teague | J175: On The Run With a Gun | K175: O | L175: 16.73 | M175: =IF(OR(K175=5,K175=10, K175=15, K175="BP",K175="SCR"),"NT",L175) -> 16.73
D176: A | H176: 305 | I176: Leslie Rickman | J176: Autimns Catty Mate | L176: 16.73
H177: 320 | I177: Danica Hoppman | J177: Play It Boon | L177: 16.735
H178: 15 | I178: Maddie Dewberry | J178: Tucker Mint Fancy | L178: 16.74
D179: A | H179: 252 | I179: Sydney Frey | J179: Sid Frey | L179: 16.744
E180: X | F180: X | H180: 323 | I180: Abigail Wicker | J180: Talk To Me Goose | L180: 16.756
H181: 448 | I181: Josh Seeger | J181: Wins Famous Lady | K181: O | L181: 16.76 | M181: =IF(OR(K181=5,K181=10, K181=15, K181="BP",K181="SCR"),"NT",L181) -> 16.76
D182: A | H182: 449 | I182: Whitney Godinez | J182: Chilla On The Rocks | K182: OA | L182: 16.763 | M182: =IF(OR(K182=5,K182=10, K182=15, K182="BP",K182="SCR"),"NT",L182) -> 16.763
H183: 240 | I183: Steely Steiner | J183: Oakies Little Check | L183: 16.765
H184: 405 | I184: Brandi Felder | J184: Graves Leavin Tucson | K184: O | L184: 16.767 | M184: =IF(OR(K184=5,K184=10, K184=15, K184="BP",K184="SCR"),"NT",L184) -> 16.767
H185: 450 | I185: Wyatt Paul | J185: MJ Condo Cowboy | K185: O | L185: 16.769 | M185: =IF(OR(K185=5,K185=10, K185=15, K185="BP",K185="SCR"),"NT",L185) -> 16.769
H186: 210 | I186: Fallon Forbes | J186: Perksontherocks | L186: 16.77
E187: X | F187: X | H187: 227 | I187: Salem Brooks | J187: Sugas Smooth Duke | L187: 16.793
H188: 169 | I188: Connie Randolph | J188: Hot Rod Kitty Catt | L188: 16.797
H189: 134 | I189: Cassidy Thomas | J189: Ladys Moon Fire | L189: 16.798
H190: 306 | I190: Ashlyn Williams | J190: Sweet Day To Fly | L190: 16.799
H191: 226 | I191: Blair Aaron | J191: Smooth Fortune | L191: 16.806
H192: 59 | I192: Casey Hammons | J192: BH Trip Ta Fame | L192: 16.808
E193: X | F193: X | H193: 344 | I193: Hadley Durfey | J193: One Smooth Kelly | L193: 16.818
E194: x | F194: X | H194: 273 | I194: Jolie Smith | J194: Bartender Nics | L194: 16.826
H195: 38 | I195: Josh Seeger | J195: Cival War Hero | L195: 16.833
D196: A | H196: 78 | I196: Savannah Hays | J196: Ultimate Barley | L196: 16.837
E197: X | F197: X | H197: 383 | I197: Oceane Veilleux | J197: KN Snap Back | K197: OY | L197: 16.838
H198: 132 | I198: Lacy Matthews | J198: Shilohs Perky Pistol | L198: 16.853
D199: A | H199: 106 | I199: Sydney Swatsell | J199: Feature Me Firin | L199: 16.858
E200: X | F200: X | H200: 357 | I200: Abigail Wicker | J200: So Guys Top Stick | L200: 16.869
H201: 175 | I201: Abby Fields | J201: Felix | L201: 16.884
D202: A | H202: 49 | I202: Jimmie Smith | J202: Traffic Kat | L202: 16.886
... 302 more rows

Sheet Senior
A1: Futurity | B1: Der | C1: Age Inct. | D1: BBR | E1: Draw | F1: Rider Name | G1: Horse Name | H1: Pen | I1: Time | J1: Final Time | K1: Placing | L1: Money Earned
E2: 1 | F2: Donna Kay Rule | G2: High Valor | I2: 15.515 | K2: 1D 1st | L2: 143.5
E3: 2 | F3: Jenny Zant | G3: Raise Me Ta Fame | I3: 15.736 | K3: 1D 2nd | L3: 86.1
E4: 3 | F4: Shelly Shields | G4: Toast Ta Val | I4: 15.869 | K4: 1D 3rd | L4: 57.4
E5: 4 | F5: Sherri Barnes | G5: Racing For Perks | I5: 16.027 | K5: 2D 1st | L5: 123
E6: 5 | F6: Sherri Barnes | G6: Famous Lil Jet | I6: 16.07 | K6: 2D 2nd | L6: 74
E7: 6 | F7: Tammy Rokus | G7: Mitey Confederate | I7: 16.093 | K7: 2D 3rd | L7: 49
E8: 7 | F8: Kathy Rush | G8: JL Twisted Roc | I8: 16.145
E9: 8 | F9: Lisa Wernli | G9: Flashs Fine Effort | I9: 16.189
E10: 9 | F10: Denny Ralls | G10: SV Southern Comfort | I10: 16.21
E11: 10 | F11: Trina Murray | G11: Fuel For Dash | I11: 16.321
E12: 11 | F12: Jolene Jones | G12: Peppys Streakof Fame | I12: 16.4
E13: 12 | F13: Tracie Schoenthal | G13: Gunsnfirewater | I13: 16.58 | K13: 3D 1st | L13: 82
E14: 13 | F14: Simone Elmore | G14: Badger A Conchadrift | I14: 16.604 | K14: 3D 2nd | L14: 49.2
E15: 32 | F15: Jo Kirby | G15: Heavenly Joak | I15: 16.615 | K15: 3D 3rd | L15: 33
E16: 14 | F16: Jana Kurosky | G16: Winnies Red kai | I16: 16.664
E17: 15 | F17: Karen Davis | G17: Funderous Frost | I17: 16.681
E18: 16 | F18: Gretchen Goedeken | G18: Pretty Bay Pony | I18: 16.71
E19: 17 | F19: Jolene Jones | G19: Capone | I19: 16.721
E20: 18 | F20: Kathy Vazquez | G20: Sail On Ta Fame | I20: 16.887
E21: 19 | F21: Jolene Jones | G21: Mark Me Angels | H21: OS | I21: 16.899
E22: 20 | F22: Renee Osborne | G22: Hurricane | I22: 16.932
E23: 21 | F23: Lisa Wernli | G23: Babe on The Run | I23: 16.966
E24: 22 | F24: Renee Douglas | G24: Ticket Ta Fame | H24: OS | I24: 17.009
E25: 23 | F25: Julie Wright | G25: Neolas Ned | I25: 17.127 | K25: 4D 1st | L25: 61.5
E26: 24 | F26: Lisa Corey | G26: Beda Dream | I26: 17.158 | K26: 4D 2nd | L26: 36.9
E27: 25 | F27: Bill Barber | G27: Cruzn OnA Jet | I27: 17.264 | K27: 4D 3rd | L27: 24.6
E28: 26 | F28: Leann Wills | G28: Shoot Yeah Shes Sassy | I28: 17.346
E29: 27 | F29: Carole Lynn Newsome | G29: Pistol | I29: 17.381
E30: 28 | F30: Jolene Jones | G30: Kate | I30: 17.497
E31: 29 | F31: Dave Keffeler | G31: Convincing Awe | I31: 17.516
E32: 30 | F32: Carole Lynn Newsome | G32: SA Docs Dual Ruby | I32: 18.385
E33: 31 | F33: Simone Elmore | G33: Mitey Moon Dash | I33: 18.78
E34: 33 | F34: Jamey Odell | G34: THC Dat Frenchman | I34: nt
E35: 34 | F35: Martha Jordan | G35: JLFourTaFame | I35: nt16.215
E36: 35 | F36: Glenda Barnett | G36: Bogies Royal Opey | I36: nt16.399
E37: 36 | F37: Martha Jordan | G37: MV Fury Of The Fame | H37: OS | I37: nt16.466
E38: 37 | F38: Kelly Bruner | G38: LLP Shadrach | I38: nt16.5
E39: 38 | F39: Bobbie Kuhn | G39: MeaMakeItAnywhere | I39: nt16.516
E40: 39 | F40: Cindy Shephard | G40: Aspecially Mine | I40: nt16.600
E41: 40 | F41: Johnell Ray | G41: Smooth Your Jets | I41: nt16.994
E42: 41 | F42: Bobbie Kuhn | G42: BKStreakNThruTraffic | I42: nt18.147
E43: 42 | F43: Karen Coskrey | G43: TS Dream Drifter | I43: scratch
E44: 43 | F44: Karen Coskrey | G44: CJ PeptoBoonesFarm | I44: scratch
E45: 44
E46: 45
E47: 46
E48: 47
E49: 48
E50: 49
E51: 50
E52: 51
E53: 52
E54: 53
E55: 54
E56: 55
E57: 56
E58: 57
E59: 58
E60: 59
E61: 60
E62: 61
E63: 62
E64: 63
E65: 64
E66: 65
E67: 66 | J67: =IF(OR(H67=5,H67=10, H67=15, H67="BP",H67="SCR"),"NT",I67) -> 0
E68: 67 | J68: 0
E69: 68 | J69: 0
E70: 69 | J70: 0
E71: 70 | J71: 0
E72: 71 | J72: 0
E73: 72 | J73: 0
E74: 73 | J74: 0
E75: 74 | J75: 0
E76: 75 | J76: 0
E77: 76 | J77: 0
E78: 77 | J78: 0
E79: 78 | J79: 0
E80: 79 | J80: 0
E81: 80 | J81: 0
E82: 81 | J82: 0
E83: 82 | J83: 0
E84: 83 | J84: 0
E85: 84 | J85: 0
E86: 85 | J86: 0
E87: 86 | J87: 0
E88: 87 | J88: 0
E89: 88 | J89: 0
E90: 89 | J90: 0
E91: 90 | J91: 0
E92: 91 | J92: 0
E93: 92 | J93: 0
E94: 93 | J94: 0
E95: 94 | J95: 0
E96: 95 | J96: 0
E97: 96 | J97: 0
E98: 97 | J98: 0
E99: 98 | J99: 0
E100: 99 | J100: 0
E101: 100 | J101: 0
E102: 101 | J102: 0
E103: 102 | J103: 0
E104: 103 | J104: 0
E105: 104 | J105: 0
E106: 105 | J106: 0
E107: 106 | J107: 0
E108: 107 | J108: 0
E109: 108 | J109: 0
E110: 109 | J110: 0
E111: 110 | J111: 0
E112: 111 | J112: 0
E113: 112 | J113: 0
E114: 113 | J114: 0
E115: 114 | J115: 0
E116: 115 | J116: 0
E117: 116 | J117: 0
E118: 117 | J118: 0
E119: 118 | J119: 0
E120: 119 | J120: 0
E121: 120 | J121: 0
E122: 121 | J122: 0
E123: 122 | J123: 0
E124: 123 | J124: 0
E125: 124 | J125: 0
E126: 125 | J126: 0
E127: 126 | J127: 0
E128: 127 | J128: 0
E129: 128 | J129: 0
E130: 129 | J130: 0
E131: 130 | J131: =IF(OR(H131=5,H131=10, H131=15, H131="BP",H131="SCR"),"NT",I131) -> 0
E132: 131 | J132: 0
E133: 132 | J133: 0
E134: 133 | J134: 0
E135: 134 | J135: 0
E136: 135 | J136: 0
E137: 136 | J137: 0
E138: 137 | J138: 0
E139: 138 | J139: 0
E140: 139 | J140: 0
E141: 140 | J141: 0
E142: 141 | J142: 0
E143: 142 | J143: 0
E144: 143 | J144: 0
E145: 144 | J145: 0
E146: 145 | J146: 0
E147: 146 | J147: 0
E148: 147 | J148: 0
E149: 148 | J149: 0
E150: 149 | J150: 0
E151: 150 | J151: 0
E152: 151 | J152: 0
E153: 152 | J153: 0
E154: 153 | J154: 0
E155: 154 | J155: 0
E156: 155 | J156: 0
E157: 156 | J157: 0
E158: 157 | J158: 0
E159: 158 | J159: 0
E160: 159 | J160: 0
E161: 160 | J161: 0
E162: 161 | J162: 0
E163: 162 | J163: 0
E164: 163 | J164: 0
E165: 164 | J165: 0
E166: 165 | J166: 0
E167: 166 | J167: 0
E168: 167 | J168: 0
E169: 168 | J169: 0
E170: 169 | J170: 0
E171: 170 | J171: 0
E172: 171 | J172: 0
E173: 172 | J173: 0
E174: 173 | J174: 0
E175: 174 | J175: 0
E176: 175 | J176: 0
E177: 176 | J177: 0
E178: 177 | J178: 0
E179: 178 | J179: 0
E180: 179 | J180: 0
E181: 180 | J181: 0
E182: 181 | J182: 0
E183: 182 | J183: 0
E184: 183 | J184: 0
E185: 184 | J185: 0
E186: 185 | J186: 0
E187: 186 | J187: 0
E188: 187 | J188: 0
E189: 188 | J189: 0
E190: 189 | J190: 0
E191: 190 | J191: 0
E192: 191 | J192: 0
E193: 192 | J193: 0
E194: 193 | J194: 0
E195: 194 | J195: =IF(OR(H195=5,H195=10, H195=15, H195="BP",H195="SCR"),"NT",I195) -> 0
E196: 195 | J196: 0
E197: 196 | J197: 0
E198: 197 | J198: 0
E199: 198 | J199: 0
E200: 199 | J200: 0
... 101 more rows

Sheet Adult
A1: Futurity | B1: Der | C1: Age Inct. | D1: BBR | E1: Draw | F1: Rider Name | G1: Horse Name | H1: Pen | I1: Time | J1: Final Time | K1: Placing | L1: Money Earned
E2: 1 | F2: Kylee Scribner | G2: Firewater Cartel | H2: OAH | I2: 15.761 | K2: 1D 1st | L2: 224
E3: 2 | F3: Whitney Godinez | G3: Im Dun Smokin Bugs | H3: OAH | I3: 15.903 | K3: 1D 2nd | L3: 134.4
E4: 3 | F4: Kelly Allen | G4: Miss JB 165 | H4: OA | I4: 15.943 | K4: 1D 3rd | L4: 89.6
E5: 4 | F5: Jamie Wilson | G5: A Streak Of Phame | I5: 16.038
E6: 5 | F6: Jimmie Smith | G6: Lever Action | I6: 16.135
E7: 6 | F7: Jamie Wilson | G7: Check Your Bet | I7: 16.135
E8: 7 | F8: Jennifer Cullen | G8: HLC Pretty Lil Sugar | I8: 16.194
E9: 8 | F9: Stephanie Fryar | G9: The Red Maserati | I9: 16.251
E10: 9 | F10: Boo Burttschell | G10: The Great Gatsby | H10: OA | I10: 16.263 | K10: 2D 1st | L10: 192
E11: 10 | F11: Savannah Hays | G11: Perkzilla | I11: 16.328 | K11: 2D 2nd | L11: 115.2
E12: 11 | F12: Tawnie Vander Lans | G12: TS Return N Hayday | I12: 16.357 | K12: 2D 3rd | L12: 76.8
E13: 12 | F13: Ashley Watson | G13: First Down Hooter | I13: 16.385
E14: 13 | F14: Faith Ross | G14: Kuhl Calvin | I14: 16.403
E15: 14 | F15: Stephanie Fryar | G15: Special Bid Of Frost | H15: OA | I15: 16.521
E16: 15 | F16: Jennifer Abbott | G16: Wendall Jackson | I16: 16.539
E17: 16 | F17: Janee' Ornelas | G17: Peter Wabbitt | H17: OA | I17: 16.549
E18: 17 | F18: Leslie Rickman | G18: Festus Dun It | I18: 16.554
E19: 18 | F19: Megan Epperson | G19: Kama Woodbridge | I19: 16.591
E20: 19 | F20: Jennifer Cullen | G20: Chasin Annie Fame | I20: 16.592
E21: 20 | F21: Sarah Peters | G21: Rockin My Fame | H21: OA | I21: 16.604
E22: 21 | F22: Lindsey Stevens | G22: JM I Got Faith | I22: 16.624
E23: 22 | F23: Keley Bissett | G23: Diamond Bar Flit | I23: 16.645
E24: 23 | F24: Traci Ross | G24: Brady | I24: 16.684
E25: 24 | F25: Leslie Rickman | G25: Autimns Catty Mate | I25: 16.73
E26: 25 | F26: Sydney Frey | G26: Sid Frey | I26: 16.744
E27: 26 | F27: Whitney Godinez | G27: Chilla On The Rocks | H27: OA | I27: 16.763 | K27: 3D 1st | L27: 128
E28: 27 | F28: Savannah Hays | G28: Ultimate Barley | I28: 16.837 | K28: 3D 2nd | L28: 76.8
E29: 28 | F29: Sydney Swatsell | G29: Feature Me Firin | I29: 16.858 | K29: 3D 3rd | L29: 51.2
E30: 29 | F30: Jimmie Smith | G30: Traffic Kat | I30: 16.886
E31: 30 | F31: Tiffany Durham | G31: Stolin Rubies | H31: OA | I31: 16.957
E32: 31 | F32: Nicole Buell | G32: Dirty Money | I32: 16.97
E33: 32 | F33: Randi Roberts | G33: Boom Slicka Boom | H33: OAP | I33: 17.019
E34: 33 | F34: Becky Dockery | G34: Power Of A Faithman | I34: 17.146
E35: 34 | F35: Jesse Budd | G35: Flicker Nic | I35: 17.151
E36: 35 | F36: Mary Van Cleve | G36: This Buds For Fame | H36: OA | I36: 17.165
E37: 36 | F37: Kaylyn Smith | G37: Bet She Can Fly | I37: 17.173
E38: 37 | F38: Tiffany Durham | G38: Colones Kerosene | I38: 17.22
E39: 38 | F39: Whitney Baton | G39: Flit En Chic | I39: 17.285 | K39: 4D 1st | L39: 96
E40: 39 | F40: Sydney Frey | G40: Ballarina | I40: 17.447 | K40: 4D 2nd | L40: 57.6
E41: 40 | F41: Katie Kapanick | G41: Pistol Packin Lark | I41: 17.451 | K41: 4D 3rd | L41: 38.4
E42: 41 | F42: Blake Myers | G42: Luvondarocks | I42: 17.504
E43: 42 | F43: Samantha Hanna | G43: Dashin By You | I43: 17.64
E44: 43 | F44: Timberly Erickson | G44: Mines Fast | I44: 17.703
E45: 44 | F45: Charlie Colella | G45: Sticks Lil Bro | I45: 17.775
E46: 45 | F46: Reagan Jackson | G46: Red Hot Temptress | I46: 17.932
E47: 46 | F47: Reagan Jackson | G47: CPB Ryker | I47: 18.416
E48: 47 | F48: Lori Berryman | G48: Separate Luv For M21 | H48: OA | I48: 18.446
E49: 48 | F49: Jimmie Smith | G49: Marthas Bullion | I49: nt15.728
E50: 49 | F50: Stephanie Fryar | G50: Some Streakin French | H50: OA | I50: nt15.909
E51: 50 | F51: Cassidy Teague | G51: Woodrow | I51: nt16.024 | J51: =IF(OR(H51=5,H51=10, H51=15, H51="BP",H51="SCR"),"NT",I51) -> nt16.024
E52: 51 | F52: Keley Bissett | G52: Pepto Stylish | I52: nt16.344 | J52: nt16.344
E53: 52 | F53: Brian Ramirez | G53: Holly | I53: nt16.434 | J53: nt16.434
E54: 53 | F54: Jimmie Smith | G54: Guys Ima Bunny Cat | H54: OA | I54: nt16.448 | J54: nt16.448
E55: 54 | F55: Bianca Dos Santos | G55: One Famous Streaker | I55: nt16.660 | J55: nt16.660
E56: 55 | F56: Dale Long | G56: Stinsons Run N Turn | I56: nt16.677 | J56: nt16.677
E57: 56 | F57: Kelly Allen | G57: Miss Regality | H57: OA | I57: nt16.720 | J57: nt16.720
E58: 57 | F58: Tiffany Durham | G58: Dashin Luke Perry | I58: nt16.902 | J58: nt16.902
E59: 58 | F59: Lindsey Stevens | G59: Miss America Fame | I59: nt16.982 | J59: nt16.982
E60: 59 | F60: Blake Myers | G60: Shawne Wampum | I60: nt17.018 | J60: nt17.018
E61: 60 | F61: Sydney Swatsell | G61: Smalls | I61: nt17.075 | J61: nt17.075
E62: 61 | F62: Shyla Real Bird | G62: Paula | I62: nt17.122 | J62: nt17.122
E63: 62 | F63: Emily Duello | G63: Turbo | I63: nt17.344 | J63: nt17.344
E64: 63 | F64: Savannah Hays | G64: JE Aint Smashed Yet | I64: nt17.582 | J64: nt17.582
E65: 64 | F65: Bianca Dos Santos | I65: nt21.119 | J65: nt21.119
E66: 65 | F66: Ella Barch | G66: JK Drop Dead Red | I66: scratch | J66: =IF(OR(H66=5,H66=10, H66=15, H66="BP",H66="SCR"),"NT",I66) -> scratch
E67: 66 | J67: 0
E68: 67 | J68: 0
E69: 68 | J69: 0
E70: 69 | J70: 0
E71: 70 | J71: 0
E72: 72 | J72: 0
E73: 73 | J73: 0
E74: 74 | J74: 0
E75: 75 | J75: 0
E76: 76 | J76: 0
E77: 77 | J77: 0
E78: 78 | J78: 0
E79: 79 | J79: 0
E80: 80 | J80: 0
E81: 81 | J81: 0
E82: 82 | J82: 0
E83: 83 | J83: 0
E84: 84 | J84: 0
E85: 85 | J85: 0
E86: 86 | J86: 0
E87: 87 | J87: 0
E88: 88 | J88: 0
E89: 89 | J89: 0
E90: 90 | J90: 0
E91: 91 | J91: 0
E92: 92 | J92: 0
E93: 93 | J93: 0
E94: 94 | J94: 0
E95: 95 | J95: 0
E96: 96 | J96: 0
E97: 97 | J97: 0
E98: 98 | J98: 0
E99: 99 | J99: 0
E100: 100 | J100: 0
E101: 101 | J101: 0
E102: 102 | J102: 0
E103: 103 | J103: 0
E104: 104 | J104: 0
E105: 105 | J105: 0
E106: 106 | J106: 0
E107: 107 | J107: 0
E108: 108 | J108: 0
E109: 109 | J109: 0
E110: 110 | J110: 0
E111: 111 | J111: 0
E112: 112 | J112: 0
E113: 113 | J113: 0
E114: 114 | J114: 0
E115: 115 | J115: 0
E116: 116 | J116: 0
E117: 117 | J117: 0
E118: 118 | J118: 0
E119: 119 | J119: 0
E120: 120 | J120: 0
E121: 121 | J121: 0
E122: 122 | J122: 0
E123: 123 | J123: 0
E124: 124 | J124: 0
E125: 125 | J125: 0
E126: 126 | J126: 0
E127: 127 | J127: 0
E128: 128 | J128: 0
E129: 129 | J129: 0
E130: 130 | J130: =IF(OR(H130=5,H130=10, H130=15, H130="BP",H130="SCR"),"NT",I130) -> 0
E131: 131 | J131: 0
E132: 132 | J132: 0
E133: 133 | J133: 0
E134: 134 | J134: 0
E135: 135 | J135: 0
E136: 136 | J136: 0
E137: 137 | J137: 0
E138: 138 | J138: 0
E139: 139 | J139: 0
E140: 140 | J140: 0
E141: 141 | J141: 0
E142: 142 | J142: 0
E143: 143 | J143: 0
E144: 144 | J144: 0
E145: 145 | J145: 0
E146: 146 | J146: 0
E147: 147 | J147: 0
E148: 148 | J148: 0
E149: 149 | J149: 0
E150: 150 | J150: 0
E151: 151 | J151: 0
E152: 152 | J152: 0
E153: 153 | J153: 0
E154: 154 | J154: 0
E155: 155 | J155: 0
E156: 156 | J156: 0
E157: 157 | J157: 0
E158: 158 | J158: 0
E159: 159 | J159: 0
E160: 160 | J160: 0
E161: 161 | J161: 0
E162: 162 | J162: 0
E163: 163 | J163: 0
E164: 164 | J164: 0
E165: 165 | J165: 0
E166: 166 | J166: 0
E167: 167 | J167: 0
E168: 168 | J168: 0
E169: 169 | J169: 0
E170: 170 | J170: 0
E171: 171 | J171: 0
E172: 172 | J172: 0
E173: 173 | J173: 0
E174: 174 | J174: 0
E175: 175 | J175: 0
E176: 176 | J176: 0
E177: 177 | J177: 0
E178: 178 | J178: 0
E179: 179 | J179: 0
E180: 180 | J180: 0
E181: 181 | J181: 0
E182: 182 | J182: 0
E183: 183 | J183: 0
E184: 184 | J184: 0
E185: 185 | J185: 0
E186: 186 | J186: 0
E187: 187 | J187: 0
E188: 188 | J188: 0
E189: 189 | J189: 0
E190: 190 | J190: 0
E191: 191 | J191: 0
E192: 192 | J192: 0
E193: 193 | J193: 0
E194: 194 | J194: =IF(OR(H194=5,H194=10, H194=15, H194="BP",H194="SCR"),"NT",I194) -> 0
E195: 195 | J195: 0
E196: 196 | J196: 0
E197: 197 | J197: 0
E198: 198 | J198: 0
E199: 199 | J199: 0
E200: 200 | J200: 0
... 100 more rows

Sheet Youth
A1: Futurity | B1: Der | C1: Age Inct. | D1: BBR | E1: Draw | F1: Rider Name | G1: Horse Name | H1: Pen | I1: Time | J1: Placing | K1: Money Earned
E2: 1 | F2: Brianna Woodmansee | G2: CC Fancy Lil Cowgirl | I2: 15.748 | J2: 1D 1st | K2: 393.04
E3: 2 | F3: Oceane Veilleux | G3: DR Rise N Shine | I3: 15.973 | J3: 1D 2nd | K3: 294.78
E4: 3 | F4: Kate Neill | G4: SHS Short Go Ike | I4: 15.993 | J4: 1D 3rd | K4: 196.52
E5: 4 | F5: Tristan Bowles | G5: Short Oakie Lena | I5: 16.107 | J5: 1D 4th | K5: 98.26
E6: 5 | F6: Josie Jartmann | G6: Hes Honor | I6: 16.224
E7: 6 | F7: Skylar Eisinger | G7: All Bugged Up | H7: OY | I7: 16.233
E8: 7 | F8: Trinity Beauvais | G8: Eyes Okey Dokey | I8: 16.344 | J8: 2D 1st | K8: 358
E9: 8 | F9: Hevenli Scribner | G9: JSHLucky Bottom Roy | I9: 16.368 | J9: 2D 2nd | K9: 269
E10: 9 | F10: Kate Neill | G10: NF French Tigger | I10: 16.46 | J10: 2D 3rd | K10: 179
E11: 10 | F11: Paige Clayton | G11: Imafrenchcaptain | I11: 16.485 | J11: 2D 4th | K11: 90
E12: 11 | F12: Oceane Veilleux | G12: KN Bam Special | H12: OY | I12: 16.512
E13: 12 | F13: Brinley Howard | G13: Lil Bid Of Flit | I13: 16.541
E14: 13 | F14: Stormi Branch | G14: Pretty Theory | I14: 16.651
E15: 14 | F15: Abigail Wicker | G15: Talk To Me Goose | I15: 16.756 | J15: 3D 1st | K15: 289
E16: 15 | F16: Salem Brooks | G16: Sugas Smooth Duke | I16: 16.793 | J16: 3D 2nd | K16: 217
E17: 16 | F17: Hadley Durfey | G17: One Smooth Kelly | I17: 16.818 | J17: 3D 3rd | K17: 144
E18: 17 | F18: Jolie Smith | G18: Bartender Nics | I18: 16.826 | J18: 3D 4th | K18: 72
E19: 18 | F19: Oceane Veilleux | G19: KN Snap Back | H19: OY | I19: 16.838
E20: 19 | F20: Abigail Wicker | G20: So Guys Top Stick | I20: 16.869
E21: 20 | F21: Stormi Branch | G21: Demon | I21: 16.896
E22: 21 | F22: Addison Byars | G22: CinchMeUpTaWin | I22: 16.931
E23: 22 | F23: Bella Blaylock | G23: Wildfires Golden Drift | I23: 16.943
E24: 23 | F24: Hayva Hawkins | G24: Shotgun | I24: 16.955
E25: 24 | F25: Haley King | G25: Playboy | I25: 16.958
E26: 25 | F26: Bella Blaylock | G26: Lucy | I26: 17.059
E27: 26 | F27: Jolie Smith | G27: Ms Hollywood Delight | I27: 17.07
E28: 27 | F28: Hadley Durfey | G28: Delightful Brownies | I28: 17.118
E29: 28 | F29: Chloe Powell | G29: Blessing | I29: 17.182
E30: 29 | F30: Addison Steed | G30: Commander | I30: 17.205
E31: 30 | F31: Kyla Morris | G31: Belle | I31: 17.232
E32: 31 | F32: Brinley Howard | G32: Whoneedsfameimfrench | I32: 17.248 | J32: 4D 1st | K32: 254
E33: 32 | F33: Trinity Joiner | G33: HighOnBrownWhiskey | I33: 17.27 | J33: 4D 2nd | K33: 191
E34: 33 | F34: Abby Taylor | G34: Joselina | I34: 17.328 | J34: 4D 3rd | K34: 127
E35: 34 | F35: Collynz Sanders | G35: Liberty | I35: 17.384 | J35: 4D 4th | K35: 64
E36: 35 | F36: Gracie Kachuriak | G36: Chica Please | I36: 17.482
E37: 36 | F37: Jaidyn Ornelas | G37: Awards First | I37: 17.503
E38: 37 | F38: Jaidyn Ornelas | G38: Churro | I38: 17.709
E39: 38 | F39: Taegan Sanders | G39: Whizzer Guy | I39: 17.948
E40: 39 | F40: Rylie Auvenshine | G40: Rio | I40: 18.037
E41: 40 | F41: Rheese Walker | G41: STIX | I41: 18.191
E42: 41 | F42: Madelyn Taylor | G42: Specks Boston Velvet | I42: 18.235
E43: 42 | F43: Madeleine Moll | G43: Vibrant Stylish Chic | I43: 18.344
E44: 43 | F44: Madeleine Moll | G44: Gear'em Up Nic | I44: 18.433
E45: 44 | F45: Lillian Pool | G45: Tonto | I45: 18.699
E46: 45 | F46: Kate Neill | G46: El Scotchsome Tin | I46: 18.785
E47: 46 | F47: Louis-Josef Veilleux | G47: Famous Cartel Legacy | I47: 19.469
E48: 47 | F48: Reagan Laney | G48: FrostyFeelinlucky | I48: nt16.225
E49: 48 | F49: Brianna Woodmansee | G49: AH Mias Cowboy | I49: nt16.239
E50: 49 | F50: Oceane Veilleux | G50: Heavens Guy | H50: OY | I50: nt16.255
E51: 50 | F51: Reece Cook | G51: Allen Gunsmoke Leo | I51: nt16.443
E52: 51 | F52: Laine Tucker | G52: Streak Laico Dude | I52: nt16.606
E53: 52 | F53: Kate Neill | G53: Dox Mega Magnolia | I53: nt16.816
E54: 53 | F54: MaKenna Limbaugh | G54: Tucker Tail And Run | I54: nt16.842
E55: 54 | F55: Hailey Beauvais | G55: This Marvs Rockin | I55: nt16.930
E56: 55 | F56: Brynn Owens | G56: BJ Spoon | I56: nt17.011
E57: 56 | F57: Mikayla Cearley | G57: TF PeppySmokenSavage | I57: nt17.17.749
E58: 57 | F58: Cooper Peek | G58: Dolly | I58: nt17.276
E59: 58 | F59: Genevieve Blanchard | G59: Hot Traffic Pursuit | H59: OY | I59: nt17.364
E60: 59 | F60: Hayva Hawkins | G60: Bolt | I60: nt17.378
E61: 60 | F61: Dakota Limbaugh | G61: Firewater Flight | I61: nt17.834
E62: 61 | F62: MaKenna Limbaugh | G62: Paizlee | I62: nt18.025
E63: 62 | F63: Kathryn William | G63: Jewels | I63: nt22.462
E64: 63 | F64: Rye Grantham | I64: scratch
E65: 64 | F65: Sadie Wilson | G65: Roany | I65: scratch
E66: 65
E67: 66
E68: 67
E69: 68
E70: 69
E71: 70
E72: 71
E73: 72
E74: 73
E75: 74
E76: 75
E77: 76
E78: 77
E79: 78
E80: 79
E81: 80
E82: 81
E83: 82
E84: 83
E85: 84
E86: 85
E87: 86
E88: 87
E89: 88
E90: 89
E91: 90
E92: 91
E93: 92
E94: 93
E95: 94
E96: 95
E97: 96
E98: 97
E99: 98
E100: 99
E101: 100
E102: 101
E103: 102
E104: 103
E105: 104
E106: 105
E107: 106
E108: 107
E109: 108
E110: 109
E111: 110
E112: 111
E113: 112
E114: 113
E115: 114
E116: 115
E117: 116
E118: 117
E119: 118
E120: 119
E121: 120
E122: 121
E123: 122
E124: 123
E125: 124
E126: 125
E127: 126
E128: 127
E129: 128
E130: 129
E131: 130
E132: 131
E133: 132
E134: 133
E135: 134
E136: 135
E137: 136
E138: 137
E139: 138
E140: 139
E141: 140
E142: 141
E143: 142
E144: 143
E145: 144
E146: 145
E147: 146
E148: 147
E149: 148
E150: 149
E151: 150
E152: 151
E153: 152
E154: 153
E155: 154
E156: 155
E157: 156
E158: 157
E159: 158
E160: 159
E161: 160
E162: 161
E163: 162
E164: 163
E165: 164
E166: 165
E167: 166
E168: 167
E169: 168
E170: 169
E171: 170
E172: 171
E173: 172
E174: 173
E175: 174
E176: 175
E177: 176
E178: 177
E179: 178
E180: 179
E181: 180
E182: 181
E183: 182
E184: 183
E185: 184
E186: 185
E187: 186
E188: 187
E189: 188
E190: 189
E191: 190
E192: 191
E193: 192
E194: 193
E195: 194
E196: 195
E197: 196
E198: 197
E199: 198
E200: 199
... 101 more rows

Sheet Derby
A1: Futurity | B1: Der | C1: Age Inct. | D1: BBR | E1: Draw | F1: Rider Name | G1: Horse Name | H1: c/o | I1: Time | J1: Final Time | K1: Placing | L1: Money Earned
E2: 2 | F2: Cassidy Champlin | G2: DG Excuse My French | H2: O | I2: 15.732 | K2: 1st | L2: 1650
E3: 6 | F3: Lacey Harmon | G3: Mended Heart | H3: O | I3: 15.855 | J3: =IF(OR(H3=5,H3=10, H3=15, H3="BP",H3="SCR"),"NT",I3) -> 15.855 | K3: 2nd | L3: 1376
E4: 11 | F4: Sharin Hall | G4: Rare Packin Six | H4: O | I4: 15.97 | K4: 3rd | L4: 1100
E5: 16 | F5: Karri McKim | G5: Firen Ta Fame | H5: O | I5: 16.057 | K5: 4th | L5: 826
E6: 21 | F6: Cassidy Champlin | G6: Wood Bea French Girl | H6: O | I6: 16.125 | K6: 5th | L6: 550
E7: 15 | F7: Kara Kreder | G7: Dreams Of Fame | H7: O | I7: 16.208
E8: 5 | F8: Rylee Shields | G8: Furys Princess | H8: O | I8: 16.251 | J8: =IF(OR(H8=5,H8=10, H8=15, H8="BP",H8="SCR"),"NT",I8) -> 16.251
E9: 7 | F9: Boo Burttschell | G9: The Great Gatsby | H9: OA | I9: 16.263 | J9: =IF(OR(H9=5,H9=10, H9=15, H9="BP",H9="SCR"),"NT",I9) -> 16.263
E10: 24 | F10: Shelly Shields | G10: Streakers Queen | H10: O | I10: 16.393 | J10: =IF(OR(H10=5,H10=10, H10=15, H10="BP",H10="SCR"),"NT",I10) -> 16.393
E11: 13 | F11: Jamie Olsen | G11: Miss Famous Beduino | H11: OP | I11: 16.456
E12: 22 | F12: Oceane Veilleux | G12: KN Bam Special | H12: OY | I12: 16.512 | J12: =IF(OR(H12=5,H12=10, H12=15, H12="BP",H12="SCR"),"NT",I12) -> 16.512
E13: 8 | F13: Janee' Ornelas | G13: Peter Wabbitt | H13: OA | I13: 16.549 | J13: =IF(OR(H13=5,H13=10, H13=15, H13="BP",H13="SCR"),"NT",I13) -> 16.549
E14: 25 | F14: Sarah Peters | G14: Rockin My Fame | H14: OA | I14: 16.604 | J14: =IF(OR(H14=5,H14=10, H14=15, H14="BP",H14="SCR"),"NT",I14) -> 16.604
E15: 19 | F15: Brandi Felder | G15: Graves Leavin Tucson | H15: O | I15: 16.767
E16: 14 | F16: Randi Roberts | G16: Boom Slicka Boom | H16: OAP | I16: 17.019
E17: 4 | F17: Fonda Melby | G17: A Fling With A Sting | H17: O | I17: 17.295
E18: 18 | F18: Stephanie Fryar | G18: Some Streakin French | H18: OA | I18: nt15.909
E19: 9 | F19: Hallie Hannsen | G19: Wicked Little Leader | H19: O | I19: nt16.068
E20: 3 | F20: Oceane Veilleux | G20: Heavens Guy | H20: OY | I20: nt16.255 | J20: =IF(OR(H20=5,H20=10, H20=15, H20="BP",H20="SCR"),"NT",I20) -> nt16.255
E21: 12 | F21: Martha Jordan | G21: MV Fury Of The Fame | H21: OS | I21: nt16.466
E22: 1 | F22: Wyatt Paul | G22: FC Strait Cajun | H22: O | I22: nt16.472
E23: 20 | F23: Wyatt Paul | G23: OE Money In My Socks | H23: O | I23: nt16.493 | J23: =IF(OR(H23=5,H23=10, H23=15, H23="BP",H23="SCR"),"NT",I23) -> nt16.493
E24: 10 | F24: Cindy Shepherd | G24: Aspeically Mine | I24: nt16.949
E25: 17 | F25: Fonda Melby | G25: Traffic Jam | H25: O | I25: nt17.795
E26: 26 | J26: =IF(OR(H26=5,H26=10, H26=15, H26="BP",H26="SCR"),"NT",I26) -> 0
E27: 27 | J27: 0
E28: 28 | J28: 0
E29: 29 | J29: 0
E30: 30 | J30: 0
E31: 32 | J31: 0
E32: 33 | J32: 0
E33: 34 | J33: 0
E34: 35 | J34: 0
E35: 36 | J35: 0
E36: 37 | J36: 0
E37: 38 | J37: 0
E38: 39 | J38: 0
E39: 40 | J39: 0
E40: 41 | J40: 0
E41: 42 | J41: 0
E42: 43 | J42: 0
E43: 44 | J43: 0
E44: 45 | J44: 0
E45: 46 | J45: 0
E46: 47 | J46: 0
E47: 48 | J47: 0
E48: 49 | J48: 0
E49: 50 | J49: 0
E50: 51 | J50: 0
E51: 52 | J51: 0
E52: 53 | J52: 0
E53: 54 | J53: 0
E54: 55 | J54: 0
E55: 56 | J55: 0
E56: 57 | J56: 0
E57: 58 | J57: 0
E58: 59 | J58: 0
E59: 60 | J59: 0
E60: 61 | J60: 0
E61: 62 | J61: 0
E62: 63 | J62: 0
E63: 64 | J63: 0
E64: 65 | J64: 0
E65: 66 | J65: 0
E66: 67 | J66: 0
E67: 68 | J67: 0
E68: 69 | J68: 0
E69: 70 | J69: 0
E70: 71 | J70: 0
E71: 72 | J71: 0
E72: 73 | J72: 0
E73: 74 | J73: 0
E74: 75 | J74: 0
E75: 76 | J75: 0
E76: 77 | J76: 0
E77: 78 | J77: 0
E78: 79 | J78: 0
E79: 80 | J79: 0
E80: 81 | J80: 0
E81: 82 | J81: 0
E82: 83 | J82: 0
E83: 84 | J83: 0
E84: 85 | J84: 0
E85: 86 | J85: 0
E86: 87 | J86: 0
E87: 88 | J87: 0
E88: 89 | J88: 0
E89: 90 | J89: 0
E90: 91 | J90: =IF(OR(H90=5,H90=10, H90=15, H90="BP",H90="SCR"),"NT",I90) -> 0
E91: 92 | J91: 0
E92: 93 | J92: 0
E93: 94 | J93: 0
E94: 95 | J94: 0
E95: 96 | J95: 0
E96: 97 | J96: 0
E97: 98 | J97: 0
E98: 99 | J98: 0
E99: 100 | J99: 0
E100: 101 | J100: 0
E101: 102 | J101: 0
E102: 103 | J102: 0
E103: 104 | J103: 0
E104: 105 | J104: 0
E105: 106 | J105: 0
E106: 107 | J106: 0
E107: 108 | J107: 0
E108: 109 | J108: 0
E109: 110 | J109: 0
E110: 111 | J110: 0
E111: 112 | J111: 0
E112: 113 | J112: 0
E113: 114 | J113: 0
E114: 115 | J114: 0
E115: 116 | J115: 0
E116: 117 | J116: 0
E117: 118 | J117: 0
E118: 119 | J118: 0
E119: 120 | J119: 0
E120: 121 | J120: 0
E121: 122 | J121: 0
E122: 123 | J122: 0
E123: 124 | J123: 0
E124: 125 | J124: 0
E125: 126 | J125: 0
E126: 127 | J126: 0
E127: 128 | J127: 0
E128: 129 | J128: 0
E129: 130 | J129: 0
E130: 131 | J130: 0
E131: 132 | J131: 0
E132: 133 | J132: 0
E133: 134 | J133: 0
E134: 135 | J134: 0
E135: 136 | J135: 0
E136: 137 | J136: 0
E137: 138 | J137: 0
E138: 139 | J138: 0
E139: 140 | J139: 0
E140: 141 | J140: 0
E141: 142 | J141: 0
E142: 143 | J142: 0
E143: 144 | J143: 0
E144: 145 | J144: 0
E145: 146 | J145: 0
E146: 147 | J146: 0
E147: 148 | J147: 0
E148: 149 | J148: 0
E149: 150 | J149: 0
E150: 151 | J150: 0
E151: 152 | J151: 0
E152: 153 | J152: 0
E153: 154 | J153: 0
E154: 155 | J154: =IF(OR(H154=5,H154=10, H154=15, H154="BP",H154="SCR"),"NT",I154) -> 0
E155: 156 | J155: 0
E156: 157 | J156: 0
E157: 158 | J157: 0
E158: 159 | J158: 0
E159: 160 | J159: 0
E160: 161 | J160: 0
E161: 162 | J161: 0
E162: 163 | J162: 0
E163: 164 | J163: 0
E164: 165 | J164: 0
E165: 166 | J165: 0
E166: 167 | J166: 0
E167: 168 | J167: 0
E168: 169 | J168: 0
E169: 170 | J169: 0
E170: 171 | J170: 0
E171: 172 | J171: 0
E172: 173 | J172: 0
E173: 174 | J173: 0
E174: 175 | J174: 0
E175: 176 | J175: 0
E176: 177 | J176: 0
E177: 178 | J177: 0
E178: 179 | J178: 0
E179: 180 | J179: 0
E180: 181 | J180: 0
E181: 182 | J181: 0
E182: 183 | J182: 0
E183: 184 | J183: 0
E184: 185 | J184: 0
E185: 186 | J185: 0
E186: 187 | J186: 0
E187: 188 | J187: 0
E188: 189 | J188: 0
E189: 190 | J189: 0
E190: 191 | J190: 0
E191: 192 | J191: 0
E192: 193 | J192: 0
E193: 194 | J193: 0
E194: 195 | J194: 0
E195: 196 | J195: 0
E196: 197 | J196: 0
E197: 198 | J197: 0
E198: 199 | J198: 0
E199: 200 | J199: 0
E200: 201 | J200: 0
... 99 more rows

Sheet Highstakes
A1: Futurity | B1: Der | C1: Age Inct. | D1: BBR | E1: Draw | F1: Rider Name | G1: Horse Name | H1: c/o | I1: Time | J1: Final Time | K1: Placing | L1: Money Earned
E2: 1 | F2: Kylee Scribner | G2: Firewater Cartel | H2: OAH | I2: 15.761 | K2: 1st | L2: 384
E3: 2 | F3: Whitney Godinez | G3: Im Dun Smokin Bugs | H3: OAH | I3: 15.903 | K3: 2nd | L3: 256
E4: 3 | F4: Hallie Hannsen | G4: Jesswatchmestreak | H4: OH | I4: 15.916
E5: 4 | F5: Jimmie Smith | G5: Lever Action | I5: 16.135
E6: 5 | F6: Shelby Stansbury | G6: One Tuf Knight | I6: 16.178
E7: 6 | F7: Ashley Watson | G7: First Down Hooter | I7: 16.385
E8: 7 | F8: Jimmie Smith | G8: Marthas Bullion | I8: nt15.728
E9: 8 | F9: Steely Steiner | G9: Hittin Fame | I9: nt15.971
E10: 9
E11: 10
E12: 11
E13: 12
E14: 13
E15: 14
E16: 15
E17: 16
E18: 17
E19: 18
E20: 19
E21: 20
E22: 21
E23: 22
E24: 23
E25: 24
E26: 25
E27: 26
E28: 27
E29: 28
E30: 29
E31: 30
E32: 31
E33: 32
E34: 33
E35: 34
E36: 35
E37: 36
E38: 37
E39: 38
E40: 39 | J40: =IF(OR(H40=5,H40=10, H40=15, H40="BP",H40="SCR"),"NT",I40) -> 0
E41: 40 | J41: 0
E42: 41 | J42: 0
E43: 42 | J43: 0
E44: 43 | J44: 0
E45: 44 | J45: 0
E46: 45 | J46: 0
E47: 46 | J47: 0
E48: 47 | J48: 0
E49: 48 | J49: 0
E50: 49 | J50: 0
E51: 50 | J51: 0
E52: 51 | J52: 0
E53: 52 | J53: 0
E54: 53 | J54: 0
E55: 54 | J55: 0
E56: 55 | J56: 0
E57: 56 | J57: 0
E58: 57 | J58: 0
E59: 58 | J59: 0
E60: 59 | J60: 0
E61: 60 | J61: 0
E62: 61 | J62: 0
E63: 62 | J63: 0
E64: 63 | J64: 0
E65: 64 | J65: 0
E66: 65 | J66: 0
E67: 66 | J67: 0
E68: 67 | J68: 0
E69: 68 | J69: 0
E70: 69 | J70: 0
E71: 70 | J71: 0
E72: 71 | J72: 0
E73: 72 | J73: 0
E74: 73 | J74: 0
E75: 74 | J75: 0
E76: 75 | J76: 0
E77: 76 | J77: 0
E78: 77 | J78: 0
E79: 78 | J79: 0
E80: 79 | J80: 0
E81: 80 | J81: 0
E82: 81 | J82: 0
E83: 82 | J83: 0
E84: 83 | J84: 0
E85: 84 | J85: 0
E86: 85 | J86: 0
E87: 86 | J87: 0
E88: 87 | J88: 0
E89: 88 | J89: 0
E90: 89 | J90: 0
E91: 90 | J91: 0
E92: 91 | J92: 0
E93: 92 | J93: 0
E94: 93 | J94: 0
E95: 94 | J95: 0
E96: 95 | J96: 0
E97: 96 | J97: 0
E98: 97 | J98: 0
E99: 98 | J99: 0
E100: 99 | J100: 0
E101: 100 | J101: 0
E102: 101 | J102: 0
E103: 102 | J103: 0
E104: 103 | J104: =IF(OR(H104=5,H104=10, H104=15, H104="BP",H104="SCR"),"NT",I104) -> 0
E105: 104 | J105: 0
E106: 105 | J106: 0
E107: 106 | J107: 0
E108: 107 | J108: 0
E109: 108 | J109: 0
E110: 109 | J110: 0
E111: 110 | J111: 0
E112: 111 | J112: 0
E113: 112 | J113: 0
E114: 113 | J114: 0
E115: 114 | J115: 0
E116: 115 | J116: 0
E117: 116 | J117: 0
E118: 117 | J118: 0
E119: 118 | J119: 0
E120: 119 | J120: 0
E121: 120 | J121: 0
E122: 121 | J122: 0
E123: 122 | J123: 0
E124: 123 | J124: 0
E125: 124 | J125: 0
E126: 125 | J126: 0
E127: 126 | J127: 0
E128: 127 | J128: 0
E129: 128 | J129: 0
E130: 129 | J130: 0
E131: 130 | J131: 0
E132: 131 | J132: 0
E133: 132 | J133: 0
E134: 133 | J134: 0
E135: 134 | J135: 0
E136: 135 | J136: 0
E137: 136 | J137: 0
E138: 137 | J138: 0
E139: 138 | J139: 0
E140: 139 | J140: 0
E141: 140 | J141: 0
E142: 141 | J142: 0
E143: 142 | J143: 0
E144: 143 | J144: 0
E145: 144 | J145: 0
E146: 145 | J146: 0
E147: 146 | J147: 0
E148: 147 | J148: 0
E149: 148 | J149: 0
E150: 149 | J150: 0
E151: 150 | J151: 0
E152: 151 | J152: 0
E153: 152 | J153: 0
E154: 153 | J154: 0
E155: 154 | J155: 0
E156: 155 | J156: 0
E157: 156 | J157: 0
E158: 157 | J158: 0
E159: 158 | J159: 0
E160: 159 | J160: 0
E161: 160 | J161: 0
E162: 161 | J162: 0
E163: 162 | J163: 0
E164: 163 | J164: 0
E165: 164 | J165: 0
E166: 165 | J166: 0
E167: 166 | J167: 0
E168: 167 | J168: =IF(OR(H168=5,H168=10, H168=15, H168="BP",H168="SCR"),"NT",I168) -> 0
E169: 168 | J169: 0
E170: 169 | J170: 0
E171: 170 | J171: 0
E172: 171 | J172: 0
E173: 172 | J173: 0
E174: 173 | J174: 0
E175: 174 | J175: 0
E176: 175 | J176: 0
E177: 176 | J177: 0
E178: 177 | J178: 0
E179: 178 | J179: 0
E180: 179 | J180: 0
E181: 180 | J181: 0
E182: 181 | J182: 0
E183: 182 | J183: 0
E184: 183 | J184: 0
E185: 184 | J185: 0
E186: 185 | J186: 0
E187: 186 | J187: 0
E188: 187 | J188: 0
E189: 188 | J189: 0
E190: 189 | J190: 0
E191: 190 | J191: 0
E192: 191 | J192: 0
E193: 192 | J193: 0
E194: 193 | J194: 0
E195: 194 | J195: 0
E196: 195 | J196: 0
E197: 196 | J197: 0
E198: 197 | J198: 0
E199: 198 | J199: 0
E200: 199 | J200: 0
... 101 more rows

Sheet 2020 Fut
A1: Futurity | B1: Der | C1: Age Inct. | D1: BBR | E1: Draw | F1: Rider Name | G1: Horse Name | H1: c/o | I1: Time | J1: Final Time | K1: Placing | L1: Money Earned
E2: 6 | F2: Kylee Scribner | G2: Firewater Cartel | H2: OAH | I2: 15.761 | K2: 1D 1st | L2: 2100
E3: 14 | F3: Lacy Billingsley | G3: PV Watchmeneighneigh | H3: OP | I3: 15.842 | K3: 1D 2nd | L3: 1750
E4: 13 | F4: Whitney Godinez | G4: Im Dun Smokin Bugs | H4: OAH | I4: 15.903 | K4: 1D 3rd | L4: 1400
E5: 8 | F5: Hallie Hannsen | G5: Jesswatchmestreak | H5: OH | I5: 15.916 | K5: 1D 4th | L5: 1050
E6: 21 | F6: Kelly Allen | G6: Miss JB 165 | H6: OA | I6: 15.943 | K6: 1D 5th | L6: 700
E7: 1 | F7: Molli Montgomery | G7: This Fling Is Famous | H7: O | I7: 16.046
E8: 22 | F8: Ashley Schafer | G8: Our Bobby McGee | H8: O | I8: 16.061
E9: 5 | F9: Odale Comer | G9: Bullie In LA | H9: O | I9: 16.279
E10: 2 | F10: Ashley Schafer | G10: French Streakin Slew | H10: O | I10: 16.303
E11: 25 | F11: Chelsea Bartlett | G11: Whynotmetoo | H11: O | I11: 16.319
E12: 10 | F12: Caroline Boucher | G12: Jet To The Sun | H12: O | I12: 16.421
E13: 17 | F13: Shelby Stansbury | G13: KC Moonshine Over Rocs | H13: O | I13: 16.434
E14: 4 | F14: Joao Leao | G14: Flos Hush Money | H14: O | I14: 16.447
E15: 12 | F15: Stephanie Fryar | G15: Special Bid Of Frost | H15: OA | I15: 16.521 | K15: 2D 1st | L15: 900
E16: 19 | F16: Kassie Rieken | G16: SO Ima Famous Guy | H16: O | I16: 16.576 | K16: 2D 2nd | L16: 750
E17: 15 | F17: Jessica Lear | G17: GL Fly Girl | H17: O | I17: 16.661 | K17: 2D 3rd | L17: 600
E18: 7 | F18: Oceane Veilleux | G18: KN Snap Back | H18: OY | I18: 16.838 | K18: 2D 4th | L18: 450
E19: 20 | F19: Maddie Dewberry | G19: Flights Quick Chick | H19: O | I19: 16.992 | K19: 2D 5th | L19: 300
E20: 24 | F20: Sarah Pauels | G20: VF Eddie Flashed Me | I20: 17.997
E21: 11 | F21: Kelly Bruner | G21: Tufferenell | H21: O | I21: nt15.675
E22: 9 | F22: Fonda Melby | G22: RF Chrome In Black | H22: O | I22: nt15.917
E23: 23 | F23: Molli Montgomery | G23: First Famous Chic | H23: O | I23: nt15.993
E24: 18 | F24: Jimmie Smith | G24: Guys Ima Bunny Cat | H24: OA | I24: nt16.448
E25: 16 | F25: Louis Paradis | G25: French Ta Vegas | H25: O | I25: nt16.602
E26: 3 | F26: Kelly Allen | G26: Miss Regality | H26: OA | I26: nt16.720
E27: 25
E28: 26
E29: 27
E30: 28
E31: 29
E32: 30
E33: 31 | J33: =IF(OR(H33=5,H33=10, H33=15, H33="BP",H33="SCR"),"NT",I33) -> 0
E34: 32 | J34: 0
E35: 33 | J35: 0
E36: 34 | J36: 0
E37: 35 | J37: 0
E38: 36 | J38: 0
E39: 37 | J39: 0
E40: 38 | J40: 0
E41: 39 | J41: 0
E42: 40 | J42: 0
E43: 41 | J43: 0
E44: 42 | J44: 0
E45: 43 | J45: 0
E46: 44 | J46: 0
E47: 45 | J47: 0
E48: 46 | J48: 0
E49: 47 | J49: 0
E50: 48 | J50: 0
E51: 49 | J51: 0
E52: 50 | J52: 0
E53: 51 | J53: 0
E54: 52 | J54: 0
E55: 53 | J55: 0
E56: 54 | J56: 0
E57: 55 | J57: 0
E58: 56 | J58: 0
E59: 57 | J59: 0
E60: 58 | J60: 0
E61: 59 | J61: 0
E62: 60 | J62: 0
E63: 61 | J63: 0
E64: 62 | J64: 0
E65: 63 | J65: 0
E66: 64 | J66: 0
E67: 65 | J67: 0
E68: 66 | J68: 0
E69: 67 | J69: 0
E70: 68 | J70: 0
E71: 69 | J71: 0
E72: 70 | J72: 0
E73: 71 | J73: 0
E74: 72 | J74: 0
E75: 73 | J75: 0
E76: 74 | J76: 0
E77: 75 | J77: 0
E78: 76 | J78: 0
E79: 77 | J79: 0
E80: 78 | J80: 0
E81: 79 | J81: 0
E82: 80 | J82: 0
E83: 81 | J83: 0
E84: 82 | J84: 0
E85: 83 | J85: 0
E86: 84 | J86: 0
E87: 85 | J87: 0
E88: 86 | J88: 0
E89: 87 | J89: 0
E90: 88 | J90: 0
E91: 89 | J91: 0
E92: 90 | J92: 0
E93: 91 | J93: 0
E94: 92 | J94: 0
E95: 93 | J95: 0
E96: 94 | J96: 0
E97: 95 | J97: =IF(OR(H97=5,H97=10, H97=15, H97="BP",H97="SCR"),"NT",I97) -> 0
E98: 96 | J98: 0
E99: 97 | J99: 0
E100: 98 | J100: 0
E101: 99 | J101: 0
E102: 100 | J102: 0
E103: 101 | J103: 0
E104: 102 | J104: 0
E105: 103 | J105: 0
E106: 104 | J106: 0
E107: 105 | J107: 0
E108: 106 | J108: 0
E109: 107 | J109: 0
E110: 108 | J110: 0
E111: 109 | J111: 0
E112: 110 | J112: 0
E113: 111 | J113: 0
E114: 112 | J114: 0
E115: 113 | J115: 0
E116: 114 | J116: 0
E117: 115 | J117: 0
E118: 116 | J118: 0
E119: 117 | J119: 0
E120: 118 | J120: 0
E121: 119 | J121: 0
E122: 120 | J122: 0
E123: 121 | J123: 0
E124: 122 | J124: 0
E125: 123 | J125: 0
E126: 124 | J126: 0
E127: 125 | J127: 0
E128: 126 | J128: 0
E129: 127 | J129: 0
E130: 128 | J130: 0
E131: 129 | J131: 0
E132: 130 | J132: 0
E133: 131 | J133: 0
E134: 132 | J134: 0
E135: 133 | J135: 0
E136: 134 | J136: 0
E137: 135 | J137: 0
E138: 136 | J138: 0
E139: 137 | J139: 0
E140: 138 | J140: 0
E141: 139 | J141: 0
E142: 140 | J142: 0
E143: 141 | J143: 0
E144: 142 | J144: 0
E145: 143 | J145: 0
E146: 144 | J146: 0
E147: 145 | J147: 0
E148: 146 | J148: 0
E149: 147 | J149: 0
E150: 148 | J150: 0
E151: 149 | J151: 0
E152: 150 | J152: 0
E153: 151 | J153: 0
E154: 152 | J154: 0
E155: 153 | J155: 0
E156: 154 | J156: 0
E157: 155 | J157: 0
E158: 156 | J158: 0
E159: 157 | J159: 0
E160: 158 | J160: 0
E161: 159 | J161: =IF(OR(H161=5,H161=10, H161=15, H161="BP",H161="SCR"),"NT",I161) -> 0
E162: 160 | J162: 0
E163: 161 | J163: 0
E164: 162 | J164: 0
E165: 163 | J165: 0
E166: 164 | J166: 0
E167: 165 | J167: 0
E168: 166 | J168: 0
E169: 167 | J169: 0
E170: 168 | J170: 0
E171: 169 | J171: 0
E172: 170 | J172: 0
E173: 171 | J173: 0
E174: 172 | J174: 0
E175: 173 | J175: 0
E176: 174 | J176: 0
E177: 175 | J177: 0
E178: 176 | J178: 0
E179: 177 | J179: 0
E180: 178 | J180: 0
E181: 179 | J181: 0
E182: 180 | J182: 0
E183: 181 | J183: 0
E184: 182 | J184: 0
E185: 183 | J185: 0
E186: 184 | J186: 0
E187: 185 | J187: 0
E188: 186 | J188: 0
E189: 187 | J189: 0
E190: 188 | J190: 0
E191: 189 | J191: 0
E192: 190 | J192: 0
E193: 191 | J193: 0
E194: 192 | J194: 0
E195: 193 | J195: 0
E196: 194 | J196: 0
E197: 195 | J197: 0
E198: 196 | J198: 0
E199: 197 | J199: 0
E200: 198 | J200: 0
... 102 more rows

Sheet 12 & Under (hidden)
A1: Futurity | B1: Der | C1: Age Inct. | D1: R/O | E1: Draw | F1: Rider Name | G1: Horse Name | H1: Time | I1: Final Time | J1: Placing | K1: Money Earned
E33: 32
E34: 33
E35: 34
E36: 35
E37: 36
E38: 37
E39: 38
E40: 39
E41: 40
E42: 41
E43: 42
E44: 43
E45: 44
E46: 45
E47: 46
E48: 47
E49: 48
E50: 49
E51: 50
E52: 51
E53: 52
E54: 53
E55: 54
E56: 55
E57: 56
E58: 57
E59: 58
E60: 59
E61: 60
E62: 61
E63: 62
E64: 63
E65: 64
E66: 65
E67: 66
E68: 67
E69: 68
E70: 69
E71: 70
E72: 71
E73: 72
E74: 73
E75: 74
E76: 75
E77: 76
E78: 77
E79: 78
E80: 79
E81: 80
E82: 81
E83: 82
E84: 83
E85: 84
E86: 85
E87: 86
E88: 87
E89: 88
E90: 89
E91: 90
E92: 91
E93: 92
E94: 93
E95: 94
E96: 95
E97: 96
E98: 97
E99: 98
E100: 99
E101: 100
E102: 101
E103: 102
E104: 103
E105: 104
E106: 105
E107: 106
E108: 107
E109: 108
E110: 109
E111: 110
E112: 111
E113: 112
E114: 113
E115: 114
E116: 115
E117: 116
E118: 117
E119: 118
E120: 119
E121: 120
E122: 121
E123: 122
E124: 123
E125: 124
E126: 125
E127: 126
E128: 127
E129: 128
E130: 129
E131: 130
E132: 131
E133: 132
E134: 133
E135: 134
E136: 135
E137: 136
E138: 137
E139: 138
E140: 139
E141: 140
E142: 141
E143: 142
E144: 143
E145: 144
E146: 145
E147: 146
E148: 147
E149: 148
E150: 149
E151: 150
E152: 151
E153: 152
E154: 153
E155: 154
E156: 155
E157: 156
E158: 157
E159: 158
E160: 159
E161: 160
E162: 161
E163: 162
E164: 163
E165: 164
E166: 165
E167: 166
E168: 167
E169: 168
E170: 169
E171: 170
E172: 171
E173: 172
E174: 173
E175: 174
E176: 175
E177: 176
E178: 177
E179: 178
E180: 179
E181: 180
E182: 181
E183: 182
E184: 183
E185: 184
E186: 185
E187: 186
E188: 187
E189: 188
E190: 189
E191: 190
E192: 191
E193: 192
E194: 193
E195: 194
E196: 195
E197: 196
E198: 197
E199: 198
E200: 199
E201: 200
E202: 201
E203: 202
E204: 203
E205: 204
E206: 205
E207: 206
E208: 207
E209: 208
E210: 209
E211: 210
E212: 211
E213: 212
E214: 213
E215: 214
E216: 215
E217: 216
E218: 217
E219: 218
E220: 219
E221: 220
E222: 221
E223: 222
E224: 223
E225: 224
E226: 225
E227: 226
E228: 227
E229: 228
E230: 229
E231: 230
... 70 more rows

Sheet Future champs
A1: Draw | B1: Rider Name | C1: Horse Name | D1: Pen | E1: Time | F1: Final Time | G1: Placing | H1: Money Earned
A2: 17 | B2: Kimber Steffen | C2: Katie | E2: 16.851 | F2: =IF(OR(D2=5,D2=10, D2=15, D2="BP",D2="SCR"),"NT",E2) -> 16.851 | H2: 128
A3: 4 | B3: Josey Teague | C3: MeMe | E3: 17.488 | H3: 106
A4: 1 | B4: MacLaine Degroot | C4: Monkey | E4: 18.128 | H4: 85
A5: 5 | B5: RuthAnn Hutchison | C5: Daffy | E5: 18.189 | H5: 64
A6: 18 | B6: RuthAnn Hutchison | C6: Winnie | E6: 18.86 | F6: =IF(OR(D6=5,D6=10, D6=15, D6="BP",D6="SCR"),"NT",E6) -> 18.86 | H6: 43
A7: 6 | B7: Bryson Rawson | E7: 19.016
A8: 8 | B8: CoraLee Williams | E8: 20.729
A9: 9 | B9: Reata Worthington | C9: Stella | E9: 22.525
A10: 2 | B10: Kyah Pillans | C10: Scarlett | E10: 24.421
A11: 16 | B11: Kaley Steffen | C11: Cookie | E11: 28.747 | F11: =IF(OR(D11=5,D11=10, D11=15, D11="BP",D11="SCR"),"NT",E11) -> 28.747
A12: 10 | B12: Breelyn Black | C12: Poptart | E12: 30.507
A13: 11 | B13: Quincy Tucker | C13: Sophie | E13: 32.32
A14: 12 | B14: Wheyzbrie Nilson | C14: He Can Chant | E14: 39
A15: 7 | B15: Wyatt Williams | E15: 39.997
A16: 13 | B16: Blaze Ornelas | C16: Soldier | E16: 49.15
A17: 14 | B17: Sophie ROberts | C17: Rainbowdash | E17: 70.759
A18: 15 | B18: Kase Ferguson | C18: Bay | E18: 77.494
A19: 3 | B19: Annabelle Alexander | C19: A Master Blueprint | E19: nt
A20: 19 | B20: Annabelle Alexander | E20: nt | F20: =IF(OR(D20=5,D20=10, D20=15, D20="BP",D20="SCR"),"NT",E20) -> nt
A21: 20 | F21: =IF(OR(D21=5,D21=10, D21=15, D21="BP",D21="SCR"),"NT",E21) -> 0

Sheet Average
A1: Parker County Arena
A2: Open
A3: 4 Yr Fut | B3: 5 Yr Fut | C3: Der | D3: Age Inct. | E3: Am | F3: Carry | G3: T/C | H3: F/F | I3: Mem | J3: Nom | K3: Av | L3: BBR | M3: WPRA | N3: Draw | O3: Owner Name | P3: Rider Name | Q3: Horse Name | R3: Pen | S3: Time 1 | T3: Final Time 1 | U3: Pen | V3: Time 2 | W3: Final Time 2 | X3: Total Time | Y3: Average Time | Z3: Placing | AA3: Money Earned | AC3: D Placing | AE3: Split
N4: 1 | T4: =IF(OR(R4=5,R4=10, R4=15, R4="BP",R4="SCR"),"NT",S4) -> 0 | W4: =IF(OR(U4=5,U4=10, U4=15, U4="BP",U4="SCR"),"NT",V4) -> 0 | X4: =(T4+W4) -> 0 | Y4: =(T4+W4)/2 -> 0 | AC4: 1D
N5: 2 | T5: 0 | W5: 0 | X5: 0 | Y5: 0 | AC5: 2D | AD5: =$AD$4+$AE$5 -> 0.5 | AE5: 0.5
N6: 3 | T6: 0 | W6: 0 | X6: 0 | Y6: 0 | AC6: 3D | AD6: =$AD$5+$AE$6 -> 1 | AE6: 0.5
N7: 4 | T7: 0 | W7: 0 | X7: 0 | Y7: 0 | AC7: 4D | AD7: =$AD$6+$AE$7 -> 1.5 | AE7: 0.5
N8: 5 | T8: 0 | W8: 0 | X8: 0 | Y8: 0 | AC8: 5D | AD8: =$AD$7+$AE$8 -> 2 | AE8: 0.5
N9: 6 | T9: 0 | W9: 0 | X9: 0 | Y9: 0
N10: 7 | T10: 0 | W10: 0 | X10: 0 | Y10: 0 | AC10: # Entered
N11: 8 | T11: 0 | W11: 0 | X11: 0 | Y11: 0 | AC11: =COUNTA(P4:P503) -> 0
N12: 9 | T12: 0 | W12: 0 | X12: 0 | Y12: 0
N13: 10 | T13: 0 | W13: 0 | X13: 0 | Y13: 0
N14: 11 | T14: 0 | W14: 0 | X14: 0 | Y14: 0
N15: 12 | T15: 0 | W15: 0 | X15: 0 | Y15: 0
N16: 13 | T16: 0 | W16: 0 | X16: 0 | Y16: 0
N17: 14 | T17: =IF(OR(R17=5,R17=10, R17=15, R17="BP",R17="SCR"),"NT",S17) -> 0 | W17: =IF(OR(U17=5,U17=10, U17=15, U17="BP",U17="SCR"),"NT",V17) -> 0 | X17: =(T17+W17) -> 0 | Y17: =(T17+W17)/2 -> 0
N18: 15 | T18: 0 | W18: 0 | X18: 0 | Y18: 0
N19: 16 | T19: 0 | W19: 0 | X19: 0 | Y19: 0
N20: 17 | T20: 0 | W20: 0 | X20: 0 | Y20: 0
N21: 18 | T21: 0 | W21: 0 | X21: 0 | Y21: 0
N22: 19 | T22: 0 | W22: 0 | X22: 0 | Y22: 0
N23: 20 | T23: 0 | W23: 0 | X23: 0 | Y23: 0
N24: 21 | T24: 0 | W24: 0 | X24: 0 | Y24: 0
N25: 22 | T25: 0 | W25: 0 | X25: 0 | Y25: 0
N26: 23 | T26: 0 | W26: 0 | X26: 0 | Y26: 0
N27: 24 | T27: 0 | W27: 0 | X27: 0 | Y27: 0
N28: 25 | T28: 0 | W28: 0 | X28: 0 | Y28: 0
N29: 26 | T29: 0 | W29: 0 | X29: 0 | Y29: 0
N30: 27 | T30: 0 | W30: 0 | X30: 0 | Y30: 0
N31: 28 | T31: 0 | W31: 0 | X31: 0 | Y31: 0
N32: 29 | T32: 0 | W32: 0 | X32: 0 | Y32: 0
N33: 30 | T33: 0 | W33: 0 | X33: 0 | Y33: 0
N34: 31 | T34: 0 | W34: 0 | X34: 0 | Y34: 0
N35: 32 | T35: 0 | W35: 0 | X35: 0 | Y35: 0
N36: 33 | T36: 0 | W36: 0 | X36: 0 | Y36: 0
N37: 34 | T37: 0 | W37: 0 | X37: 0 | Y37: 0
N38: 35 | T38: 0 | W38: 0 | X38: 0 | Y38: 0
N39: 36 | T39: 0 | W39: 0 | X39: 0 | Y39: 0
N40: 37 | T40: 0 | W40: 0 | X40: 0 | Y40: 0
N41: 38 | T41: 0 | W41: 0 | X41: 0 | Y41: 0
N42: 39 | T42: 0 | W42: 0 | X42: 0 | Y42: 0
N43: 40 | T43: 0 | W43: 0 | X43: 0 | Y43: 0
N44: 41 | T44: 0 | W44: 0 | X44: 0 | Y44: 0
N45: 42 | T45: 0 | W45: 0 | X45: 0 | Y45: 0
N46: 43 | T46: 0 | W46: 0 | X46: 0 | Y46: 0
N47: 44 | T47: 0 | W47: 0 | X47: 0 | Y47: 0
N48: 45 | T48: 0 | W48: 0 | X48: 0 | Y48: 0
N49: 46 | T49: 0 | W49: 0 | X49: 0 | Y49: 0
N50: 47 | T50: 0 | W50: 0 | X50: 0 | Y50: 0
N51: 48 | T51: 0 | W51: 0 | X51: 0 | Y51: 0
N52: 49 | T52: 0 | W52: 0 | X52: 0 | Y52: 0
N53: 50 | T53: 0 | W53: 0 | X53: 0 | Y53: 0
N54: 51 | T54: 0 | W54: 0 | X54: 0 | Y54: 0
N55: 52 | T55: 0 | W55: 0 | X55: 0 | Y55: 0
N56: 53 | T56: 0 | W56: 0 | X56: 0 | Y56: 0
N57: 54 | T57: 0 | W57: 0 | X57: 0 | Y57: 0
N58: 55 | T58: 0 | W58: 0 | X58: 0 | Y58: 0
N59: 56 | T59: 0 | W59: 0 | X59: 0 | Y59: 0
N60: 57 | T60: 0 | W60: 0 | X60: 0 | Y60: 0
N61: 58 | T61: 0 | W61: 0 | X61: 0 | Y61: 0
N62: 59 | T62: 0 | W62: 0 | X62: 0 | Y62: 0
N63: 60 | T63: 0 | W63: 0 | X63: 0 | Y63: 0
N64: 61 | T64: 0 | W64: 0 | X64: 0 | Y64: 0
N65: 62 | T65: 0 | W65: 0 | X65: 0 | Y65: 0
N66: 63 | T66: 0 | W66: 0 | X66: 0 | Y66: 0
N67: 64 | T67: 0 | W67: 0 | X67: 0 | Y67: 0
N68: 65 | T68: 0 | W68: 0 | X68: 0 | Y68: 0
N69: 66 | T69: =IF(OR(R69=5,R69=10, R69=15, R69="BP",R69="SCR"),"NT",S69) -> 0 | W69: =IF(OR(U69=5,U69=10, U69=15, U69="BP",U69="SCR"),"NT",V69) -> 0 | X69: =(T69+W69) -> 0 | Y69: =(T69+W69)/2 -> 0
N70: 67 | T70: 0 | W70: 0 | X70: 0 | Y70: 0
N71: 68 | T71: 0 | W71: 0 | X71: 0 | Y71: 0
N72: 69 | T72: 0 | W72: 0 | X72: 0 | Y72: 0
N73: 70 | T73: 0 | W73: 0 | X73: 0 | Y73: 0
N74: 71 | T74: 0 | W74: 0 | X74: 0 | Y74: 0
N75: 72 | T75: 0 | W75: 0 | X75: 0 | Y75: 0
N76: 73 | T76: 0 | W76: 0 | X76: 0 | Y76: 0
N77: 74 | T77: 0 | W77: 0 | X77: 0 | Y77: 0
N78: 75 | T78: 0 | W78: 0 | X78: 0 | Y78: 0
N79: 76 | T79: 0 | W79: 0 | X79: 0 | Y79: 0
N80: 77 | T80: 0 | W80: 0 | X80: 0 | Y80: 0
N81: 78 | T81: 0 | W81: 0 | X81: 0 | Y81: 0
N82: 79 | T82: 0 | W82: 0 | X82: 0 | Y82: 0
N83: 80 | T83: 0 | W83: 0 | X83: 0 | Y83: 0
N84: 81 | T84: 0 | W84: 0 | X84: 0 | Y84: 0
N85: 82 | T85: 0 | W85: 0 | X85: 0 | Y85: 0
N86: 83 | T86: 0 | W86: 0 | X86: 0 | Y86: 0
N87: 84 | T87: 0 | W87: 0 | X87: 0 | Y87: 0
N88: 85 | T88: 0 | W88: 0 | X88: 0 | Y88: 0
N89: 86 | T89: 0 | W89: 0 | X89: 0 | Y89: 0
N90: 87 | T90: 0 | W90: 0 | X90: 0 | Y90: 0
N91: 88 | T91: 0 | W91: 0 | X91: 0 | Y91: 0
N92: 89 | T92: 0 | W92: 0 | X92: 0 | Y92: 0
N93: 90 | T93: 0 | W93: 0 | X93: 0 | Y93: 0
N94: 91 | T94: 0 | W94: 0 | X94: 0 | Y94: 0
N95: 92 | T95: 0 | W95: 0 | X95: 0 | Y95: 0
N96: 93 | T96: 0 | W96: 0 | X96: 0 | Y96: 0
N97: 94 | T97: 0 | W97: 0 | X97: 0 | Y97: 0
N98: 95 | T98: 0 | W98: 0 | X98: 0 | Y98: 0
N99: 96 | T99: 0 | W99: 0 | X99: 0 | Y99: 0
N100: 97 | T100: 0 | W100: 0 | X100: 0 | Y100: 0
N101: 98 | T101: 0 | W101: 0 | X101: 0 | Y101: 0
N102: 99 | T102: 0 | W102: 0 | X102: 0 | Y102: 0
N103: 100 | T103: 0 | W103: 0 | X103: 0 | Y103: 0
N104: 101 | T104: 0 | W104: 0 | X104: 0 | Y104: 0
N105: 102 | T105: 0 | W105: 0 | X105: 0 | Y105: 0
N106: 103 | T106: 0 | W106: 0 | X106: 0 | Y106: 0
N107: 104 | T107: 0 | W107: 0 | X107: 0 | Y107: 0
N108: 105 | T108: 0 | W108: 0 | X108: 0 | Y108: 0
N109: 106 | T109: 0 | W109: 0 | X109: 0 | Y109: 0
N110: 107 | T110: 0 | W110: 0 | X110: 0 | Y110: 0
N111: 108 | T111: 0 | W111: 0 | X111: 0 | Y111: 0
N112: 109 | T112: 0 | W112: 0 | X112: 0 | Y112: 0
N113: 110 | T113: 0 | W113: 0 | X113: 0 | Y113: 0
N114: 111 | T114: 0 | W114: 0 | X114: 0 | Y114: 0
N115: 112 | T115: 0 | W115: 0 | X115: 0 | Y115: 0
N116: 113 | T116: 0 | W116: 0 | X116: 0 | Y116: 0
N117: 114 | T117: 0 | W117: 0 | X117: 0 | Y117: 0
N118: 115 | T118: 0 | W118: 0 | X118: 0 | Y118: 0
N119: 116 | T119: 0 | W119: 0 | X119: 0 | Y119: 0
N120: 117 | T120: 0 | W120: 0 | X120: 0 | Y120: 0
N121: 118 | T121: 0 | W121: 0 | X121: 0 | Y121: 0
N122: 119 | T122: 0 | W122: 0 | X122: 0 | Y122: 0
N123: 120 | T123: 0 | W123: 0 | X123: 0 | Y123: 0
N124: 121 | T124: 0 | W124: 0 | X124: 0 | Y124: 0
N125: 122 | T125: 0 | W125: 0 | X125: 0 | Y125: 0
N126: 123 | T126: 0 | W126: 0 | X126: 0 | Y126: 0
N127: 124 | T127: 0 | W127: 0 | X127: 0 | Y127: 0
N128: 125 | T128: 0 | W128: 0 | X128: 0 | Y128: 0
N129: 126 | T129: 0 | W129: 0 | X129: 0 | Y129: 0
N130: 127 | T130: 0 | W130: 0 | X130: 0 | Y130: 0
N131: 128 | T131: 0 | W131: 0 | X131: 0 | Y131: 0
N132: 129 | T132: 0 | W132: 0 | X132: 0 | Y132: 0
N133: 130 | T133: =IF(OR(R133=5,R133=10, R133=15, R133="BP",R133="SCR"),"NT",S133) -> 0 | W133: =IF(OR(U133=5,U133=10, U133=15, U133="BP",U133="SCR"),"NT",V133) -> 0 | X133: =(T133+W133) -> 0 | Y133: =(T133+W133)/2 -> 0
N134: 131 | T134: 0 | W134: 0 | X134: 0 | Y134: 0
N135: 132 | T135: 0 | W135: 0 | X135: 0 | Y135: 0
N136: 133 | T136: 0 | W136: 0 | X136: 0 | Y136: 0
N137: 134 | T137: 0 | W137: 0 | X137: 0 | Y137: 0
N138: 135 | T138: 0 | W138: 0 | X138: 0 | Y138: 0
N139: 136 | T139: 0 | W139: 0 | X139: 0 | Y139: 0
N140: 137 | T140: 0 | W140: 0 | X140: 0 | Y140: 0
N141: 138 | T141: 0 | W141: 0 | X141: 0 | Y141: 0
N142: 139 | T142: 0 | W142: 0 | X142: 0 | Y142: 0
N143: 140 | T143: 0 | W143: 0 | X143: 0 | Y143: 0
N144: 141 | T144: 0 | W144: 0 | X144: 0 | Y144: 0
N145: 142 | T145: 0 | W145: 0 | X145: 0 | Y145: 0
N146: 143 | T146: 0 | W146: 0 | X146: 0 | Y146: 0
N147: 144 | T147: 0 | W147: 0 | X147: 0 | Y147: 0
N148: 145 | T148: 0 | W148: 0 | X148: 0 | Y148: 0
N149: 146 | T149: 0 | W149: 0 | X149: 0 | Y149: 0
N150: 147 | T150: 0 | W150: 0 | X150: 0 | Y150: 0
N151: 148 | T151: 0 | W151: 0 | X151: 0 | Y151: 0
N152: 149 | T152: 0 | W152: 0 | X152: 0 | Y152: 0
N153: 150 | T153: 0 | W153: 0 | X153: 0 | Y153: 0
N154: 151 | T154: 0 | W154: 0 | X154: 0 | Y154: 0
N155: 152 | T155: 0 | W155: 0 | X155: 0 | Y155: 0
N156: 153 | T156: 0 | W156: 0 | X156: 0 | Y156: 0
N157: 154 | T157: 0 | W157: 0 | X157: 0 | Y157: 0
N158: 155 | T158: 0 | W158: 0 | X158: 0 | Y158: 0
N159: 156 | T159: 0 | W159: 0 | X159: 0 | Y159: 0
N160: 157 | T160: 0 | W160: 0 | X160: 0 | Y160: 0
N161: 158 | T161: 0 | W161: 0 | X161: 0 | Y161: 0
N162: 159 | T162: 0 | W162: 0 | X162: 0 | Y162: 0
N163: 160 | T163: 0 | W163: 0 | X163: 0 | Y163: 0
N164: 161 | T164: 0 | W164: 0 | X164: 0 | Y164: 0
N165: 162 | T165: 0 | W165: 0 | X165: 0 | Y165: 0
N166: 163 | T166: 0 | W166: 0 | X166: 0 | Y166: 0
N167: 164 | T167: 0 | W167: 0 | X167: 0 | Y167: 0
N168: 165 | T168: 0 | W168: 0 | X168: 0 | Y168: 0
N169: 166 | T169: 0 | W169: 0 | X169: 0 | Y169: 0
N170: 167 | T170: 0 | W170: 0 | X170: 0 | Y170: 0
N171: 168 | T171: 0 | W171: 0 | X171: 0 | Y171: 0
N172: 169 | T172: 0 | W172: 0 | X172: 0 | Y172: 0
N173: 170 | T173: 0 | W173: 0 | X173: 0 | Y173: 0
N174: 171 | T174: 0 | W174: 0 | X174: 0 | Y174: 0
N175: 172 | T175: 0 | W175: 0 | X175: 0 | Y175: 0
N176: 173 | T176: 0 | W176: 0 | X176: 0 | Y176: 0
N177: 174 | T177: 0 | W177: 0 | X177: 0 | Y177: 0
N178: 175 | T178: 0 | W178: 0 | X178: 0 | Y178: 0
N179: 176 | T179: 0 | W179: 0 | X179: 0 | Y179: 0
N180: 177 | T180: 0 | W180: 0 | X180: 0 | Y180: 0
N181: 178 | T181: 0 | W181: 0 | X181: 0 | Y181: 0
N182: 179 | T182: 0 | W182: 0 | X182: 0 | Y182: 0
N183: 180 | T183: 0 | W183: 0 | X183: 0 | Y183: 0
N184: 181 | T184: 0 | W184: 0 | X184: 0 | Y184: 0
N185: 182 | T185: 0 | W185: 0 | X185: 0 | Y185: 0
N186: 183 | T186: 0 | W186: 0 | X186: 0 | Y186: 0
N187: 184 | T187: 0 | W187: 0 | X187: 0 | Y187: 0
N188: 185 | T188: 0 | W188: 0 | X188: 0 | Y188: 0
N189: 186 | T189: 0 | W189: 0 | X189: 0 | Y189: 0
N190: 187 | T190: 0 | W190: 0 | X190: 0 | Y190: 0
N191: 188 | T191: 0 | W191: 0 | X191: 0 | Y191: 0
N192: 189 | T192: 0 | W192: 0 | X192: 0 | Y192: 0
N193: 190 | T193: 0 | W193: 0 | X193: 0 | Y193: 0
N194: 191 | T194: 0 | W194: 0 | X194: 0 | Y194: 0
N195: 192 | T195: 0 | W195: 0 | X195: 0 | Y195: 0
N196: 193 | T196: 0 | W196: 0 | X196: 0 | Y196: 0
N197: 194 | T197: =IF(OR(R197=5,R197=10, R197=15, R197="BP",R197="SCR"),"NT",S197) -> 0 | W197: =IF(OR(U197=5,U197=10, U197=15, U197="BP",U197="SCR"),"NT",V197) -> 0 | X197: =(T197+W197) -> 0 | Y197: =(T197+W197)/2 -> 0
N198: 195 | T198: 0 | W198: 0 | X198: 0 | Y198: 0
N199: 196 | T199: 0 | W199: 0 | X199: 0 | Y199: 0
N200: 197 | T200: 0 | W200: 0 | X200: 0 | Y200: 0
... 303 more rows

Sheet BFA 2D Payout (hidden)
A1: BFA 2D Payout
A2: Entry Fee | B2: # Entries | C2: % Payback | D2: Added $ | E2: Total Payout | F2: Each Go
A3: 25 | B3: 19 | C3: 0.8 | D3: 200 | E3: =(A3*$C$3)*B3+D3 -> 580 | F3: 0.3
F4: =$E$3*$F$3 -> 174
A5: $5,000-7,500 Pays 5 Places 4 to 1D 1 to 2D
A6: Placings | B6: 1D | D6: 2D
A7: 1st | B7: =($F$4*$C$7) -> 57.42 | C7: 0.33 | D7: =$F$4*$E$7 -> 12.18 | E7: 0.07
A8: 2nd | B8: =$F$4*$C$8 -> 46.98 | C8: 0.27
A9: 3rd | B9: =$F$4*$C$9 -> 34.8 | C9: 0.2
A10: 4th | B10: =$F$4*$C$10 -> 22.62 | C10: 0.13
A11: Totals | B11: =SUM(B7:B10) -> 161.82 | D11: =SUM(D7:D10) -> 12.18 | E11: =(C7+C8+C9+C10+E7+E8) -> 1
A12: =B11+D11 -> 174
A13: $7,501 - 10,000 Pays 6 Places 4 to 1D, 2 to 2D
A14: Placings | B14: 1D | D14: 2D
A15: 1st | B15: =$F$4*$C$15 -> 50.46 | C15: 0.29 | D15: =$F$4*$E$15 -> 15.66 | E15: 0.09
A16: 2nd | B16: =+$F$4*$C$16 -> 41.76 | C16: 0.24 | D16: =F4*E16 -> 8.7 | E16: 0.05
A17: 3rd | B17: =$F$4*$C$17 -> 33.06 | C17: 0.19
A18: 4th | B18: =$F$4*$C$18 -> 24.36 | C18: 0.14
A19: Totals | B19: =SUM(B15:B18) -> 149.64 | D19: =D16+D15 -> 24.36 | E19: =SUM(C15+C16+C17+C18+E15+E16) -> 1
A20: =D19+B19 -> 174
A21: $10,001 - $15,000 Payes 8 Places 5 to 1D, 3 to 2D
A22: Placings | B22: 1D | D22: 2D
A23: 1st | B23: =F4*C23 -> 41.76 | C23: 0.24 | D23: =F4*E23 -> 12.18 | E23: 0.07
A24: 2nd | B24: =F4*C24 -> 34.8 | C24: 0.2 | D24: =F4*E24 -> 8.7 | E24: 0.05
A25: 3rd | B25: =F4*C25 -> 29.58 | C25: 0.17 | D25: =F4*E25 -> 6.96 | E25: 0.04
A26: 4th | B26: =F4*C26 -> 22.62 | C26: 0.13
A27: 5th | B27: =F4*C27 -> 17.4 | C27: 0.1
A28: Totals | B28: =SUM(B23:B27) -> 146.16 | D28: =SUM(D23:D27) -> 27.84 | E28: =C23+C24+C25+C26+C27+E23+E24+E25 -> 1
A29: =B28+D28 -> 174
A30: $15,001 - $25,000 Payes 11 Places 7 to 1D, 4 to 2D
A31: Placings | B31: 1D | D31: 2D
A32: 1st | B32: =$F$4*C32 -> 36.54 | C32: 0.21 | D32: =$F$4*E32 -> 8.7 | E32: 0.05
A33: 2nd | B33: =$F$4*C33 -> 31.32 | C33: 0.18 | D33: =$F$4*E33 -> 6.96 | E33: 0.04
A34: 3rd | B34: 26.1 | C34: 0.15 | D34: 5.22 | E34: 0.03
A35: 4th | B35: 19.14 | C35: 0.11 | D35: 3.48 | E35: 0.02
A36: 5th | B36: 13.92 | C36: 0.08
A37: 6th | B37: 12.18 | C37: 0.07
A38: 7th | B38: 10.44 | C38: 0.06
A39: Totals | B39: =SUM(B32:B38) -> 149.64 | D39: =SUM(D32:D38) -> 24.36 | E39: =C32+C33+C34+C35+C36+C37+C38+E32+E33+E34+E35 -> 1
A40: =SUM(B39+D39) -> 174
A41: $25,001 - $35,000 Payes 12 Places 8 to 1D, 4 to 2D
A42: Placings | B42: 1D | D42: 2D
A43: 1st | B43: =$F$4*C43 -> 33.06 | C43: 0.19 | D43: =$F$4*E43 -> 8.7 | E43: 0.05
A44: 2nd | B44: =$F$4*C44 -> 26.1 | C44: 0.15 | D44: =$F$4*E44 -> 6.96 | E44: 0.04
A45: 3rd | B45: 20.88 | C45: 0.12 | D45: 5.22 | E45: 0.03
A46: 4th | B46: 17.4 | C46: 0.1 | D46: 3.48 | E46: 0.02
A47: 5th | B47: 15.66 | C47: 0.09
A48: 6th | B48: 13.92 | C48: 0.08
A49: 7th | B49: 12.18 | C49: 0.07
A50: 8th | B50: 10.44 | C50: 0.06
A51: Totals | B51: =SUM(B43:B50) -> 149.64 | D51: =SUM(D43:D46) -> 24.36 | E51: =C43+C44+C45+C46+C47+C48+C49+C50+E43+E44+E45+E46 -> 1
A52: =D51+B51 -> 174

Sheet 2D Payout
A1: 2D Payout
A2: Entry Fee | B2: # Entries | C2: % Payback | D2: Added $ | E2: Total Payout
A3: 100 | B3: 8 | C3: 0.8 | E3: =(A3*$C$3)*B3+D3 -> 640
A5: % in each D | B5: 0.6 | C5: 0.4 | D5: Total % = | E5: =SUM(B5:C5) -> 1
B6: 1D | C6: 2D
B7: =(($A$3*$B$3*$C$3*$B$5)+($D$3*$B$5)) -> 384 | C7: =(($A$3*$B$3*$C$3*$C$5)+($D$3*$C$5)) -> 256
A8: Totals | B8: =SUM(B7) -> 384 | C8: =SUM(C7) -> 256 | D8: =SUM(B8:C8) -> 640
A10: For 1-7 riders 1 place
A11: Placings | B11: 1D | C11: 2D
A12: 1st | B12: =$B$7*$E$12 -> 384 | C12: =$C$7*$E$5 -> 256 | D12: è | E12: 1
A13: Totals | B13: =SUM(B12:B12) -> 384 | C13: =SUM(C12:C12) -> 256 | D13: =SUM(B13:C13) -> 640 | E13: =SUM(E12) -> 1
A15: For 8-11 riders 2 places
A16: Placings | B16: 1D | C16: 2D
A17: 1st | B17: =$B$7*$E$17 -> 230.4 | C17: =$C$7*$E$17 -> 153.6 | D17: è | E17: 0.6
A18: 2nd | B18: =$B$7*$E$18 -> 153.6 | C18: =$C$7*$E$18 -> 102.4 | D18: è | E18: 0.4
A19: Totals | B19: =SUM(B17:B18) -> 384 | C19: =SUM(C17:C18) -> 256 | D19: =SUM(B19:C19) -> 640 | E19: =SUM(E17:E18) -> 1
A21: For 12-15 riders 3 places
A22: Placings | B22: 1D | C22: 2D
A23: 1st | B23: =$B$7*$E$23 -> 192 | C23: =$C$7*$E$23 -> 128 | D23: è | E23: 0.5
A24: 2nd | B24: =$B$7*$E$24 -> 115.2 | C24: =$C$7*$E$24 -> 76.8 | D24: è | E24: 0.3
A25: 3rd | B25: =$B$7*$E$25 -> 76.8 | C25: =$C$7*$E$25 -> 51.2 | D25: è | E25: 0.2
A26: Totals | B26: =SUM(B23:B25) -> 384 | C26: =SUM(C23:C25) -> 256 | D26: =SUM(B26:C26) -> 640 | E26: =SUM(E23:E25) -> 1
A28: For 16-19 riders 4 places
A29: Placings | B29: 1D | C29: 2D
A30: 1st | B30: =$B$7*$E$30 -> 153.6 | C30: =$C$7*$E$30 -> 102.4 | D30: è | E30: 0.4
A31: 2nd | B31: =$B$7*$E$31 -> 115.2 | C31: =$C$7*$E$31 -> 76.8 | D31: è | E31: 0.3
A32: 3rd | B32: =$B$7*$E$32 -> 76.8 | C32: =$C$7*$E$32 -> 51.2 | D32: è | E32: 0.2
A33: 4th | B33: =$B$7*$E$33 -> 38.4 | C33: =$C$7*$E$33 -> 25.6 | D33: è | E33: 0.1
A34: Totals | B34: =SUM(B30:B33) -> 384 | C34: =SUM(C30:C33) -> 256 | D34: =SUM(B34:C34) -> 640 | E34: =SUM(E30:E33) -> 1
A36: For 20-23 riders 5 places
A37: Placings | B37: 1D | C37: 2D
A38: 1st | B38: =$B$7*$E$38 -> 115.2 | C38: =$C$7*$E$38 -> 76.8 | D38: è | E38: 0.3
A39: 2nd | B39: =$B$7*$E$39 -> 96 | C39: =$C$7*$E$39 -> 64 | D39: è | E39: 0.25
A40: 3rd | B40: =$B$7*$E$40 -> 76.8 | C40: =$C$7*$E$40 -> 51.2 | D40: è | E40: 0.2
A41: 4th | B41: =$B$7*$E$41 -> 57.6 | C41: =$C$7*$E$41 -> 38.4 | D41: è | E41: 0.15
A42: 5th | B42: =$B$7*$E$42 -> 38.4 | C42: =$C$7*$E$42 -> 25.6 | D42: è | E42: 0.1
A43: Totals | B43: =SUM(B38:B42) -> 384 | C43: =SUM(C38:C42) -> 256 | D43: =SUM(B43:C43) -> 640 | E43: =SUM(E38:E42) -> 1
A45: For 24-27 riders 6 places
A46: Placings | B46: 1D | C46: 2D
A47: 1st | B47: =$B$7*$E$47 -> 96 | C47: =$C$7*$E$47 -> 64 | D47: è | E47: 0.25
A48: 2nd | B48: =$B$7*$E$48 -> 76.8 | C48: =$C$7*$E$48 -> 51.2 | D48: è | E48: 0.2
A49: 3rd | B49: =$B$7*$E$49 -> 69.12 | C49: =$C$7*$E$49 -> 46.08 | D49: è | E49: 0.18
A50: 4th | B50: =$B$7*$E$50 -> 57.6 | C50: =$C$7*$E$50 -> 38.4 | D50: è | E50: 0.15
A51: 5th | B51: =$B$7*$E$51 -> 46.08 | C51: =$C$7*$E$51 -> 30.72 | D51: è | E51: 0.12
A52: 6th | B52: =$B$7*$E$52 -> 38.4 | C52: =$C$7*$E$52 -> 25.6 | D52: è | E52: 0.1
A53: Totals | B53: =SUM(B47:B52) -> 384 | C53: =SUM(C47:C52) -> 256 | D53: =SUM(B53:C53) -> 640 | E53: =SUM(E47:E52) -> 1
A55: For 28-31 riders 7 places
A56: Placings | B56: 1D | C56: 2D
A57: 1st | B57: =$B$7*$E$57 -> 84.48 | C57: =$C$7*$E$57 -> 56.32 | D57: è | E57: 0.22
A58: 2nd | B58: =$B$7*$E$58 -> 69.12 | C58: =$C$7*$E$58 -> 46.08 | D58: è | E58: 0.18
A59: 3rd | B59: =$B$7*$E$59 -> 61.44 | C59: =$C$7*$E$59 -> 40.96 | D59: è | E59: 0.16
A60: 4th | B60: =$B$7*$E$60 -> 53.76 | C60: =$C$7*$E$60 -> 35.84 | D60: è | E60: 0.14
A61: 5th | B61: =$B$7*$E$61 -> 46.08 | C61: =$C$7*$E$61 -> 30.72 | D61: è | E61: 0.12
A62: 6th | B62: =$B$7*$E$62 -> 38.4 | C62: =$C$7*$E$62 -> 25.6 | D62: è | E62: 0.1
A63: 7th | B63: =$B$7*$E$63 -> 30.72 | C63: =$C$7*$E$63 -> 20.48 | D63: è | E63: 0.08
A64: Totals | B64: =SUM(B57:B63) -> 384 | C64: =SUM(C57:C63) -> 256 | D64: =SUM(B64:C64) -> 640 | E64: =SUM(E57:E63) -> 1
A66: For 32 or more riders 8 places
A67: Placings | B67: 1D | C67: 2D
A68: 1st | B68: =$B$7*$E$68 -> 88.32 | C68: =$C$7*$E$68 -> 58.88 | D68: è | E68: 0.23
A69: 2nd | B69: =$B$7*$E$69 -> 76.8 | C69: =$C$7*$E$69 -> 51.2 | D69: è | E69: 0.2
A70: 3rd | B70: =$B$7*$E$70 -> 65.28 | C70: =$C$7*$E$70 -> 43.52 | D70: è | E70: 0.17
A71: 4th | B71: =$B$7*$E$71 -> 53.76 | C71: =$C$7*$E$71 -> 35.84 | D71: è | E71: 0.14
A72: 5th | B72: =$B$7*$E$72 -> 42.24 | C72: =$C$7*$E$72 -> 28.16 | D72: è | E72: 0.11
A73: 6th | B73: =$B$7*$E$73 -> 30.72 | C73: =$C$7*$E$73 -> 20.48 | D73: è | E73: 0.08
A74: 7th | B74: =$B$7*$E$74 -> 19.2 | C74: =$C$7*$E$74 -> 12.8 | D74: è | E74: 0.05
A75: 8th | B75: =$B$7*$E$75 -> 7.68 | C75: =$C$7*$E$75 -> 5.12 | D75: è | E75: 0.02
A76: Totals | B76: =SUM(B68:B75) -> 384 | C76: =SUM(C68:C75) -> 256 | D76: =SUM(B76:C76) -> 640 | E76: =SUM(E68:E75) -> 1

Sheet 3D Payout (hidden)
A1: 3D Payout
A2: Entry Fee | B2: # Entries | C2: % Payback | D2: $ From Entry | E2: Added $ | F2: Total Payout
A3: 10 | B3: 3 | C3: 0.8 | D3: =$A$3*$C$3*$B$3 -> 24 | F3: =$D$3+$E$3 -> 24
A5: % in each D | B5: 0.5 | C5: 0.3 | D5: 0.2 | E5: Total % = | F5: =SUM(B5:D5) -> 1
B6: 1D | C6: 2D | D6: 3D
B7: =(($A$3*$B$3*$C$3*$B$5)+($E$3*$B$5)) -> 12 | C7: =(($A$3*$B$3*$C$3*$C$5)+($E$3*$C$5)) -> 7.2 | D7: =(($A$3*$B$3*$C$3*$D$5)+($E$3*$D$5)) -> 4.8
A8: Totals | B8: =SUM(B7) -> 12 | C8: =SUM(C7) -> 7.2 | D8: 4.8 | E8: =SUM(B8:D8) -> 24
A10: For 1-10 riders 1 place
A11: Placings | B11: 1D | C11: 2D | D11: 3D
A12: 1st | B12: =$B$7*$F$12 -> 12 | C12: =$C$7*$F$12 -> 7.2 | D12: =$D$7*$F$12 -> 4.8 | E12: è | F12: 1
A13: Totals | B13: =SUM(B12:B12) -> 12 | C13: =SUM(C12:C12) -> 7.2 | D13: =SUM(D12:D12) -> 4.8 | E13: =SUM(B13:D13) -> 24 | F13: =SUM(F12) -> 1
A15: For 11-15 riders 2 places
A16: Placings | B16: 1D | C16: 2D | D16: 3D
A17: 1st | B17: =$B$7*$F$17 -> 7.2 | C17: =$C$7*$F$17 -> 4.32 | D17: =$D$7*$F$17 -> 2.88 | E17: è | F17: 0.6
A18: 2nd | B18: =$B$7*$F$18 -> 4.8 | C18: =$C$7*$F$18 -> 2.88 | D18: =$D$7*$F$18 -> 1.92 | E18: è | F18: 0.4
A19: Totals | B19: =SUM(B17:B18) -> 12 | C19: =SUM(C17:C18) -> 7.2 | D19: =SUM(D17:D18) -> 4.8 | E19: =SUM(B19:D19) -> 24 | F19: =SUM(F17:F18) -> 1
A21: For 16-30 riders 3 places
A22: Placings | B22: 1D | C22: 2D | D22: 3D
A23: 1st | B23: =$B$7*$F$23 -> 6 | C23: =$C$7*$F$23 -> 3.6 | D23: =$D$7*$F$23 -> 2.4 | E23: è | F23: 0.5
A24: 2nd | B24: =$B$7*$F$24 -> 3.6 | C24: =$C$7*$F$24 -> 2.16 | D24: =$D$7*$F$24 -> 1.44 | E24: è | F24: 0.3
A25: 3rd | B25: =$B$7*$F$25 -> 2.4 | C25: =$C$7*$F$25 -> 1.44 | D25: =$D$7*$F$25 -> 0.96 | E25: è | F25: 0.2
A26: Totals | B26: =SUM(B23:B25) -> 12 | C26: =SUM(C23:C25) -> 7.2 | D26: =SUM(D22:D25) -> 4.8 | E26: =SUM(B26:D26) -> 24 | F26: =SUM(F23:F25) -> 1
A28: For 31-60 riders 4 places
A29: Placings | B29: 1D | C29: 2D | D29: 3D
A30: 1st | B30: =$B$7*$F$30 -> 5.04 | C30: =$C$7*$F$30 -> 3.024 | D30: =$D$7*$F$30 -> 2.016 | E30: è | F30: 0.42
A31: 2nd | B31: =$B$7*$F$31 -> 3.48 | C31: =$C$7*$F$31 -> 2.088 | D31: =$D$7*$F$31 -> 1.392 | E31: è | F31: 0.29
A32: 3rd | B32: =$B$7*$F$32 -> 2.28 | C32: =$C$7*$F$32 -> 1.368 | D32: =$D$7*$F$32 -> 0.912 | E32: è | F32: 0.19
A33: 4th | B33: =$B$7*$F$33 -> 1.2 | C33: =$C$7*$F$33 -> 0.72 | D33: =$D$7*$F$33 -> 0.48 | E33: è | F33: 0.1
A34: Totals | B34: =SUM(B30:B33) -> 12 | C34: =SUM(C30:C33) -> 7.2 | D34: =SUM(D30:D33) -> 4.8 | E34: =SUM(B34:D34) -> 24 | F34: =SUM(F30:F33) -> 1
A36: For 61-90 riders 5 places
A37: Placings | B37: 1D | C37: 2D | D37: 3D
A38: 1st | B38: =$B$7*$F$38 -> 4.56 | C38: =$C$7*$F$38 -> 2.736 | D38: =$D$7*$F$38 -> 1.824 | E38: è | F38: 0.38
A39: 2nd | B39: =$B$7*$F$39 -> 3.36 | C39: =$C$7*$F$39 -> 2.016 | D39: =$D$7*$F$39 -> 1.344 | E39: è | F39: 0.28
A40: 3rd | B40: =$B$7*$F$40 -> 2.16 | C40: =$C$7*$F$40 -> 1.296 | D40: =$D$7*$F$40 -> 0.864 | E40: è | F40: 0.18
A41: 4th | B41: =$B$7*$F$41 -> 1.2 | C41: =$C$7*$F$41 -> 0.72 | D41: =$D$7*$F$41 -> 0.48 | E41: è | F41: 0.1
A42: 5th | B42: =$B$7*$F$42 -> 0.72 | C42: =$C$7*$F$42 -> 0.432 | D42: =$D$7*$F$42 -> 0.288 | E42: è | F42: 0.06
A43: Totals | B43: =SUM(B38:B42) -> 12 | C43: =SUM(C38:C42) -> 7.2 | D43: =SUM(D38:D42) -> 4.8 | E43: =SUM(B43:D43) -> 24 | F43: =SUM(F38:F42) -> 1
A45: For 91-120 riders 6 places
A46: Placings | B46: 1D | C46: 2D | D46: 3D
A47: 1st | B47: =$B$7*$F$47 -> 4.32 | C47: =$C$7*$F$47 -> 2.592 | D47: =$D$7*$F$47 -> 1.728 | E47: è | F47: 0.36
A48: 2nd | B48: =$B$7*$F$48 -> 3.12 | C48: =$C$7*$F$48 -> 1.872 | D48: =$D$7*$F$48 -> 1.248 | E48: è | F48: 0.26
A49: 3rd | B49: =$B$7*$F$49 -> 1.92 | C49: =$C$7*$F$49 -> 1.152 | D49: =$D$7*$F$49 -> 0.768 | E49: è | F49: 0.16
A50: 4th | B50: =$B$7*$F$50 -> 1.2 | C50: =$C$7*$F$50 -> 0.72 | D50: =$D$7*$F$50 -> 0.48 | E50: è | F50: 0.1
A51: 5th | B51: =$B$7*$F$51 -> 0.84 | C51: =$C$7*$F$51 -> 0.504 | D51: =$D$7*$F$51 -> 0.336 | E51: è | F51: 0.07
A52: 6th | B52: =$B$7*$F$52 -> 0.6 | C52: =$C$7*$F$52 -> 0.36 | D52: =$D$7*$F$52 -> 0.24 | E52: è | F52: 0.05
A53: Totals | B53: =SUM(B47:B52) -> 12 | C53: =SUM(C47:C52) -> 7.2 | D53: =SUM(D47:D52) -> 4.8 | E53: =SUM(B53:D53) -> 24 | F53: =SUM(F47:F52) -> 1
A55: For 121-200 riders 7 places
A56: Placings | B56: 1D | C56: 2D | D56: 3D
A57: 1st | B57: =$B$7*$F$57 -> 3.12 | C57: =$C$7*$F$57 -> 1.872 | D57: =$D$7*$F$57 -> 1.248 | E57: è | F57: 0.26
A58: 2nd | B58: =$B$7*$F$58 -> 2.4 | C58: =$C$7*$F$58 -> 1.44 | D58: =$D$7*$F$58 -> 0.96 | E58: è | F58: 0.2
A59: 3rd | B59: =$B$7*$F$59 -> 1.8 | C59: =$C$7*$F$59 -> 1.08 | D59: =$D$7*$F$59 -> 0.72 | E59: è | F59: 0.15
A60: 4th | B60: =$B$7*$F$60 -> 1.44 | C60: =$C$7*$F$60 -> 0.864 | D60: =$D$7*$F$60 -> 0.576 | E60: è | F60: 0.12
A61: 5th | B61: =$B$7*$F$61 -> 1.2 | C61: =$C$7*$F$61 -> 0.72 | D61: =$D$7*$F$61 -> 0.48 | E61: è | F61: 0.1
A62: 6th | B62: =$B$7*$F$62 -> 1.08 | C62: =$C$7*$F$62 -> 0.648 | D62: =$D$7*$F$62 -> 0.432 | E62: è | F62: 0.09
A63: 7th | B63: =$B$7*$F$63 -> 0.96 | C63: =$C$7*$F$63 -> 0.576 | D63: =$D$7*$F$63 -> 0.384 | E63: è | F63: 0.08
A64: Totals | B64: =SUM(B57:B63) -> 12 | C64: =SUM(C57:C63) -> 7.2 | D64: =SUM(D57:D63) -> 4.8 | E64: =SUM(B64:D64) -> 24 | F64: =SUM(F57:F63) -> 1
A66: For 201 or more riders 8 places
A67: Placings | B67: 1D | C67: 2D | D67: 3D
A68: 1st | B68: =$B$7*0.24 -> 2.88 | C68: =$C$7*0.24 -> 1.728 | D68: =$D$7*0.24 -> 1.152 | E68: è | F68: 0.24
A69: 2nd | B69: =$B$7*0.18 -> 2.16 | C69: =$C$7*0.18 -> 1.296 | D69: =$D$7*0.18 -> 0.864 | E69: è | F69: 0.18
A70: 3rd | B70: =$B$7*0.15 -> 1.8 | C70: =$C$7*0.15 -> 1.08 | D70: =$D$7*0.15 -> 0.72 | E70: è | F70: 0.15
A71: 4th | B71: =$B$7*0.12 -> 1.44 | C71: =$C$7*0.12 -> 0.864 | D71: =$D$7*0.12 -> 0.576 | E71: è | F71: 0.12
A72: 5th | B72: =$B$7*0.1 -> 1.2 | C72: =$C$7*0.1 -> 0.72 | D72: =$D$7*0.1 -> 0.48 | E72: è | F72: 0.1
A73: 6th | B73: =$B$7*0.08 -> 0.96 | C73: =$C$7*0.08 -> 0.576 | D73: =$D$7*0.08 -> 0.384 | E73: è | F73: 0.08
A74: 7th | B74: =$B$7*0.07 -> 0.84 | C74: =$C$7*0.07 -> 0.504 | D74: =$D$7*0.07 -> 0.336 | E74: è | F74: 0.07
A75: 8th | B75: =$B$7*0.06 -> 0.72 | C75: =$C$7*0.06 -> 0.432 | D75: =$D$7*0.06 -> 0.288 | E75: è | F75: 0.06
A76: Totals | B76: =SUM(B68:B75) -> 12 | C76: =SUM(C68:C75) -> 7.2 | D76: =SUM(D68:D75) -> 4.8 | E76: =SUM(B76:D76) -> 24 | F76: =SUM(F68:F75) -> 1

Sheet 4D Payout BBR (hidden)
A1: 4D Payout BBR
A2: Entry Fee | B2: # Entries | C2: % Payback | D2: $ From Entry | E2: Added $ | F2: Total Payout
A3: 40 | B3: 200 | C3: 0.8 | D3: =$A$3*$C$3*$B$3 -> 6400 | E3: 1100 | F3: =($A$3*$C$3)*$B$3+$E$3 -> 7500
A5: % in each D | B5: 0.35 | C5: 0.3 | D5: 0.2 | E5: 0.15 | F5: Total % Payout | G5: =SUM(B5:E5) -> 1
B6: 1D | C6: 2D | D6: 3D | E6: 4D
B7: =(($A$3*$B$3*$C$3*0.35)+($E$3/4)) -> 2515 | C7: =(($A$3*$B$3*$C$3*0.3)+($E$3/4)) -> 2195 | D7: =(($A$3*$B$3*$C$3*0.2)+($E$3/4)) -> 1555 | E7: =(($A$3*$B$3*$C$3*0.15)+($E$3/4)) -> 1235
A8: Totals | B8: =SUM(B7) -> 2515 | C8: =SUM(C7) -> 2195 | D8: 1555 | E8: 1235 | F8: =SUM(B8:E8) -> 7500
A10: For 1-16 riders 1 place
A11: Placings | B11: 1D | C11: 2D | D11: 3D | E11: 4D
A12: 1st | B12: =$B$7*$G$12 -> 2515 | C12: =$C$7*$G$12 -> 2195 | D12: =$D$7*$G$12 -> 1555 | E12: =$E$7*$G$12 -> 1235 | F12: è | G12: 1
A13: Totals | B13: =SUM(B12:B12) -> 2515 | C13: =SUM(C12:C12) -> 2195 | D13: =SUM(D12:D12) -> 1555 | E13: =SUM(E12:E12) -> 1235 | F13: =SUM(B13:E13) -> 7500 | G13: =SUM(G12) -> 1
A15: For 17-33 riders 2 places
A16: Placings | B16: 1D | C16: 2D | D16: 3D | E16: 4D
A17: 1st | B17: =$B$7*$G$17 -> 1509 | C17: =$C$7*$G$17 -> 1317 | D17: =$D$7*$G$17 -> 933 | E17: =$E$7*$G$17 -> 741 | F17: è | G17: 0.6
A18: 2nd | B18: =$B$7*$G$18 -> 1006 | C18: =$C$7*$G$18 -> 878 | D18: =$D$7*$G$18 -> 622 | E18: =$E$7*$G$18 -> 494 | F18: è | G18: 0.4
A19: Totals | B19: =SUM(B17:B18) -> 2515 | C19: =SUM(C17:C18) -> 2195 | D19: =SUM(D17:D18) -> 1555 | E19: =SUM(E17:E18) -> 1235 | F19: =SUM(B19:E19) -> 7500 | G19: =SUM(G17:G18) -> 1
A21: For 34-66 riders 3 places
A22: Placings | B22: 1D | C22: 2D | D22: 3D | E22: 4D
A23: 1st | B23: =$B$7*$G$23 -> 1257.5 | C23: =$C$7*$G$23 -> 1097.5 | D23: =$D$7*$G$23 -> 777.5 | E23: =$E$7*$G$23 -> 617.5 | F23: è | G23: 0.5
A24: 2nd | B24: =$B$7*$G$24 -> 754.5 | C24: =$C$7*$G$24 -> 658.5 | D24: =$D$7*$G$24 -> 466.5 | E24: =$E$7*$G$24 -> 370.5 | F24: è | G24: 0.3
A25: 3rd | B25: =$B$7*$G$25 -> 503 | C25: =$C$7*$G$25 -> 439 | D25: =$D$7*$G$25 -> 311 | E25: =$E$7*$G$25 -> 247 | F25: è | G25: 0.2
A26: Totals | B26: =SUM(B23:B25) -> 2515 | C26: =SUM(C23:C25) -> 2195 | D26: =SUM(D23:D25) -> 1555 | E26: =SUM(E23:E25) -> 1235 | F26: =SUM(B26:E26) -> 7500 | G26: =SUM(G23:G25) -> 1
A28: For 97-95 riders 4 places
A29: Placings | B29: 1D | C29: 2D | D29: 3D | E29: 4D
A30: 1st | B30: =$B$7*$G$30 -> 1006 | C30: =$C$7*$G$30 -> 878 | D30: =$D$7*$G$30 -> 622 | E30: =$E$7*$G$30 -> 494 | F30: è | G30: 0.4
A31: 2nd | B31: =$B$7*$G$31 -> 754.5 | C31: =$C$7*$G$31 -> 658.5 | D31: =$D$7*$G$31 -> 466.5 | E31: =$E$7*$G$31 -> 370.5 | F31: è | G31: 0.3
A32: 3rd | B32: =$B$7*$G$32 -> 503 | C32: =$C$7*$G$32 -> 439 | D32: =$D$7*$G$32 -> 311 | E32: =$E$7*$G$32 -> 247 | F32: è | G32: 0.2
A33: 4th | B33: =$B$7*$G$33 -> 251.5 | C33: =$C$7*$G$33 -> 219.5 | D33: =$D$7*$G$33 -> 155.5 | E33: =$E$7*$G$33 -> 123.5 | F33: è | G33: 0.1
A34: Totals | B34: =SUM(B30:B33) -> 2515 | C34: =SUM(C30:C33) -> 2195 | D34: =SUM(D30:D33) -> 1555 | E34: =SUM(E30:E33) -> 1235 | F34: =SUM(B34:E34) -> 7500 | G34: =SUM(G30:G33) -> 1
A36: For 96-133 riders 5 places
A37: Placings | B37: 1D | C37: 2D | D37: 3D | E37: 4D
A38: 1st | B38: =$B$7*$G$38 -> 829.95 | C38: =$C$7*$G$38 -> 724.35 | D38: =$D$7*G38 -> 513.15 | E38: =$E$7*$G$38 -> 407.55 | F38: è | G38: 0.33
A39: 2nd | B39: =$B$7*$G$39 -> 679.05 | C39: =$C$7*$G$39 -> 592.65 | D39: =$D$7*$G$39 -> 419.85 | E39: =$E$7*$G$39 -> 333.45 | F39: è | G39: 0.27
A40: 3rd | B40: =$B$7*$G$40 -> 503 | C40: =$C$7*$G$40 -> 439 | D40: =$D$7*$G$40 -> 311 | E40: =$E$7*$G$40 -> 247 | F40: è | G40: 0.2
A41: 4th | B41: =$B$7*$G$41 -> 326.95 | C41: =$C$7*$G$41 -> 285.35 | D41: =$D$7*$G$41 -> 202.15 | E41: =$E$7*$G$41 -> 160.55 | F41: è | G41: 0.13
A42: 5th | B42: =$B$7*$G$42 -> 176.05 | C42: =$C$7*$G$42 -> 153.65 | D42: =$D$7*$G$42 -> 108.85 | E42: =$E$7*$G$42 -> 86.45 | F42: è | G42: 0.07
A43: Totals | B43: =SUM(B38:B42) -> 2515 | C43: =SUM(C38:C42) -> 2195 | D43: =SUM(D38:D42) -> 1555 | E43: =SUM(E38:E42) -> 1235 | F43: =SUM(B43:E43) -> 7500 | G43: =SUM(G38:G42) -> 1
A45: For 134-166 riders 6 places
A46: Placings | B46: 1D | C46: 2D | D46: 3D | E46: 4D
A47: 1st | B47: =$B$7*$G$47 -> 729.35 | C47: =$C$7*$G$47 -> 636.55 | D47: =$D$7*$G$47 -> 450.95 | E47: =$E$7*$G$47 -> 358.15 | F47: è | G47: 0.29
A48: 2nd | B48: =$B$7*$G$48 -> 603.6 | C48: =$C$7*$G$48 -> 526.8 | D48: =$D$7*$G$48 -> 373.2 | E48: =$E$7*$G$48 -> 296.4 | F48: è | G48: 0.24
A49: 3rd | B49: =$B$7*$G$49 -> 477.85 | C49: =$C$7*$G$49 -> 417.05 | D49: =$D$7*$G$49 -> 295.45 | E49: =$E$7*$G$49 -> 234.65 | F49: è | G49: 0.19
A50: 4th | B50: =$B$7*$G$50 -> 352.1 | C50: =$C$7*$G$50 -> 307.3 | D50: =$D$7*$G$50 -> 217.7 | E50: =$E$7*$G$50 -> 172.9 | F50: è | G50: 0.14
A51: 5th | B51: =$B$7*$G$51 -> 226.35 | C51: =$C$7*$G$51 -> 197.55 | D51: =$D$7*$G$51 -> 139.95 | E51: =$E$7*$G$51 -> 111.15 | F51: è | G51: 0.09
A52: 6th | B52: =$B$7*$G$52 -> 125.75 | C52: =$C$7*$G$52 -> 109.75 | D52: =$D$7*$G$52 -> 77.75 | E52: =$E$7*$G$52 -> 61.75 | F52: è | G52: 0.05
A53: Totals | B53: =SUM(B47:B52) -> 2515 | C53: =SUM(C47:C52) -> 2195 | D53: =SUM(D47:D52) -> 1555 | E53: =SUM(E47:E52) -> 1235 | F53: =SUM(B53:E53) -> 7500 | G53: =SUM(G47:G52) -> 1
A55: For 167-222 riders 8 places
A56: Placings | B56: 1D | C56: 2D | D56: 3D | E56: 4D
A57: 1st | B57: =$B$7*$G$57 -> 603.6 | C57: =$C$7*$G$57 -> 526.8 | D57: =$D$7*$G$57 -> 373.2 | E57: =$E$7*$G$57 -> 296.4 | F57: è | G57: 0.24
A58: 2nd | B58: =$B$7*$G$58 -> 503 | C58: =$C$7*$G$58 -> 439 | D58: =$D$7*$G$58 -> 311 | E58: =$E$7*$G$58 -> 247 | F58: è | G58: 0.2
A59: 3rd | B59: =$B$7*$G$59 -> 427.55 | C59: =$C$7*$G$59 -> 373.15 | D59: =$D$7*$G$59 -> 264.35 | E59: =$E$7*$G$59 -> 209.95 | F59: è | G59: 0.17
A60: 4th | B60: =$B$7*$G$60 -> 326.95 | C60: =$C$7*$G$60 -> 285.35 | D60: =$D$7*$G$60 -> 202.15 | E60: =$E$7*$G$60 -> 160.55 | F60: è | G60: 0.13
A61: 5th | B61: =$B$7*$G$61 -> 251.5 | C61: =$C$7*$G$61 -> 219.5 | D61: =$D$7*$G$61 -> 155.5 | E61: =$E$7*$G$61 -> 123.5 | F61: è | G61: 0.1
A62: 6th | B62: =$B$7*$G$62 -> 176.05 | C62: =$C$7*$G$62 -> 153.65 | D62: =$D$7*$G$62 -> 108.85 | E62: =$E$7*$G$62 -> 86.45 | F62: è | G62: 0.07
A63: 7th | B63: =$B$7*$G$63 -> 125.75 | C63: =$C$7*$G$63 -> 109.75 | D63: =$D$7*$G$63 -> 77.75 | E63: =$E$7*$G$63 -> 61.75 | F63: è | G63: 0.05
A64: 8th | B64: =$B$7*$G$64 -> 100.6 | C64: =$C$7*$G$64 -> 87.8 | D64: =$D$7*$G$64 -> 62.2 | E64: =$E$7*$G$64 -> 49.4 | F64: è | G64: 0.04
A65: Totals | B65: =SUM(B57:B64) -> 2515 | C65: =SUM(C57:C64) -> 2195 | D65: =SUM(D57:D64) -> 1555 | E65: =SUM(E57:E64) -> 1235 | F65: =SUM(B65:E65) -> 7500 | G65: =SUM(G57:G64) -> 1
A67: For 223-333 riders 10 places
A68: Placings | B68: 1D | C68: 2D | D68: 3D | E68: 4D
A69: 1st | B69: =$B$7*$G$69 -> 528.15 | C69: =$C$7*$G$69 -> 460.95 | D69: =$D$7*$G$69 -> 326.55 | E69: =$E$7*$G$69 -> 259.35 | F69: è | G69: 0.21
A70: 2nd | B70: =$B$7*$G$70 -> 452.7 | C70: =$C$7*$G$70 -> 395.1 | D70: =$D$7*$G$70 -> 279.9 | E70: =$E$7*$G$70 -> 222.3 | F70: è | G70: 0.18
A71: 3rd | B71: =$B$7*$G$71 -> 377.25 | C71: =$C$7*$G$71 -> 329.25 | D71: =$D$7*$G$71 -> 233.25 | E71: =$E$7*$G$71 -> 185.25 | F71: è | G71: 0.15
A72: 4th | B72: =$B$7*$G$72 -> 301.8 | C72: =$C$7*$G$72 -> 263.4 | D72: =$D$7*$G$72 -> 186.6 | E72: =$E$7*$G$72 -> 148.2 | F72: è | G72: 0.12
A73: 5th | B73: =$B$7*$G$73 -> 226.35 | C73: =$C$7*$G$73 -> 197.55 | D73: =$D$7*$G$73 -> 139.95 | E73: =$E$7*$G$73 -> 111.15 | F73: è | G73: 0.09
A74: 6th | B74: =$B$7*$G$74 -> 176.05 | C74: =$C$7*$G$74 -> 153.65 | D74: =$D$7*$G$74 -> 108.85 | E74: =$E$7*$G$74 -> 86.45 | F74: è | G74: 0.07
A75: 7th | B75: =$B$7*$G$75 -> 150.9 | C75: =$C$7*$G$75 -> 131.7 | D75: =$D$7*$G$75 -> 93.3 | E75: =$E$7*$G$75 -> 74.1 | F75: è | G75: 0.06
A76: 8th | B76: =$B$7*$G$76 -> 125.75 | C76: =$C$7*$G$76 -> 109.75 | D76: =$D$7*$G$76 -> 77.75 | E76: =$E$7*$G$76 -> 61.75 | F76: è | G76: 0.05
A77: 9th | B77: =$B$7*$G$77 -> 100.6 | C77: =$C$7*$G$77 -> 87.8 | D77: =$D$7*$G$77 -> 62.2 | E77: =$E$7*$G$77 -> 49.4 | F77: è | G77: 0.04
A78: 10th | B78: =$B$7*$G$78 -> 75.45 | C78: =$C$7*$G$78 -> 65.85 | D78: =$D$7*$G$78 -> 46.65 | E78: =$E$7*$G$78 -> 37.05 | F78: è | G78: 0.03
A79: Totals | B79: =SUM(B69:B78) -> 2515 | C79: =SUM(C69:C78) -> 2195 | D79: =SUM(D69:D78) -> 1555 | E79: =SUM(E69:E78) -> 1235 | F79: =B79+C79+D79+E79 -> 7500 | G79: =SUM(G69:G78) -> 1
A81: For 334-500 riders 12 places
A82: Placings | B82: 1D | C82: 2D | D82: 3D | E82: 4D
A83: 1st | B83: =$B$7*$G$83 -> 477.85 | C83: =$C$7*$G$83 -> 417.05 | D83: =$D$7*$G$83 -> 295.45 | E83: =$E$7*$G$83 -> 234.65 | F83: è | G83: 0.19
A84: 2nd | B84: =$B$7*$G$84 -> 377.25 | C84: =$C$7*$G$84 -> 329.25 | D84: =$D$7*$G$84 -> 233.25 | E84: =$E$7*$G$84 -> 185.25 | F84: è | G84: 0.15
A85: 3rd | B85: =$B$7*$G$85 -> 301.8 | C85: =$C$7*$G$85 -> 263.4 | D85: =$D$7*$G$85 -> 186.6 | E85: =$E$7*$G$85 -> 148.2 | F85: è | G85: 0.12
A86: 4th | B86: =$B$7*$G$86 -> 251.5 | C86: =$C$7*$G$86 -> 219.5 | D86: =$D$7*$G$86 -> 155.5 | E86: =$E$7*$G$86 -> 123.5 | F86: è | G86: 0.1
A87: 5th | B87: =$B$7*$G$87 -> 226.35 | C87: =$C$7*$G$87 -> 197.55 | D87: =$D$7*$G$87 -> 139.95 | E87: =$E$7*$G$87 -> 111.15 | F87: è | G87: 0.09
A88: 6th | B88: =$B$7*$G$88 -> 201.2 | C88: =$C$7*$G$88 -> 175.6 | D88: =$D$7*$G$88 -> 124.4 | E88: =$E$7*$G$88 -> 98.8 | F88: è | G88: 0.08
A89: 7th | B89: =$B$7*$G$89 -> 176.05 | C89: =$C$7*$G$89 -> 153.65 | D89: =$D$7*$G$89 -> 108.85 | E89: =$E$7*$G$89 -> 86.45 | F89: è | G89: 0.07
A90: 8th | B90: =$B$7*$G$90 -> 150.9 | C90: =$C$7*$G$90 -> 131.7 | D90: =$D$7*$G$90 -> 93.3 | E90: =$E$7*$G$90 -> 74.1 | F90: è | G90: 0.06
A91: 9th | B91: =$B$7*$G$91 -> 125.75 | C91: =$C$7*$G$91 -> 109.75 | D91: =$D$7*$G$91 -> 77.75 | E91: =$E$7*$G$91 -> 61.75 | F91: è | G91: 0.05
A92: 10th | B92: =$B$7*$G$92 -> 100.6 | C92: =$C$7*$G$92 -> 87.8 | D92: =$D$7*$G$92 -> 62.2 | E92: =$E$7*$G$92 -> 49.4 | F92: è | G92: 0.04
A93: 11th | B93: =$B$7*$G$93 -> 75.45 | C93: =$C$7*$G$93 -> 65.85 | D93: =$D$7*$G$93 -> 46.65 | E93: =$E$7*$G$93 -> 37.05 | F93: è | G93: 0.03
A94: 12th | B94: =$B$7*$G$94 -> 50.3 | C94: =$C$7*$G$94 -> 43.9 | D94: =$D$7*$G$94 -> 31.1 | E94: =$E$7*$G$94 -> 24.7 | F94: è | G94: 0.02
A95: Totals | B95: =SUM(B83:B94) -> 2515 | C95: =SUM(C83:C94) -> 2195 | D95: 1555 | E95: 1235 | F95: =B95+C95+D95+E95 -> 7500 | G95: =SUM(G83:G94) -> 1
A97: For 501-750 riders 15 places
A98: Placings | B98: 1D | C98: 2D | D98: 3D | E98: 4D
A99: 1st | B99: =$B$7*$G$99 -> 452.7 | C99: =$C$7*$G$99 -> 395.1 | D99: =$D$7*$G$99 -> 279.9 | E99: =$E$7*$G$99 -> 222.3 | F99: è | G99: 0.18
A100: 2nd | B100: =$B$7*$G$100 -> 377.25 | C100: =$C$7*$G$100 -> 329.25 | D100: =$D$7*$G$100 -> 233.25 | E100: =$E$7*$G$100 -> 185.25 | F100: è | G100: 0.15
A101: 3rd | B101: =$B$7*$G$101 -> 301.8 | C101: =$C$7*$G$101 -> 263.4 | D101: =$D$7*$G$101 -> 186.6 | E101: =$E$7*$G$101 -> 148.2 | F101: è | G101: 0.12
A102: 4th | B102: =$B$7*$G$102 -> 251.5 | C102: =$C$7*$G$102 -> 219.5 | D102: =$D$7*$G$102 -> 155.5 | E102: =$E$7*$G$102 -> 123.5 | F102: è | G102: 0.1
A103: 5th | B103: =$B$7*$G$103 -> 213.775 | C103: =$C$7*$G$103 -> 186.575 | D103: =$D$7*$G$103 -> 132.175 | E103: =$E$7*$G$103 -> 104.975 | F103: è | G103: 0.085
A104: 6th | B104: =$B$7*$G$104 -> 176.05 | C104: =$C$7*$G$104 -> 153.65 | D104: =$D$7*$G$104 -> 108.85 | E104: =$E$7*$G$104 -> 86.45 | F104: è | G104: 0.07
A105: 7th | B105: =$B$7*$G$105 -> 150.9 | C105: =$C$7*$G$105 -> 131.7 | D105: =$D$7*$G$105 -> 93.3 | E105: =$E$7*$G$105 -> 74.1 | F105: è | G105: 0.06
A106: 8th | B106: =$B$7*$G$106 -> 125.75 | C106: =$C$7*$G$106 -> 109.75 | D106: =$D$7*$G$106 -> 77.75 | E106: =$E$7*$G$106 -> 61.75 | F106: è | G106: 0.05
A107: 9th | B107: =$B$7*$G$107 -> 106.8875 | C107: =$C$7*$G$107 -> 93.2875 | D107: =$D$7*$G$107 -> 66.0875 | E107: =$E$7*$G$107 -> 52.4875 | F107: è | G107: 0.0425
A108: 10th | B108: =$B$7*$G$108 -> 88.025 | C108: =$C$7*$G$108 -> 76.825 | D108: =$D$7*$G$108 -> 54.425 | E108: =$E$7*$G$108 -> 43.225 | F108: è | G108: 0.035
A109: 11th | B109: =$B$7*$G$109 -> 75.45 | C109: =$C$7*$G$109 -> 65.85 | D109: =$D$7*$G$109 -> 46.65 | E109: =$E$7*$G$109 -> 37.05 | F109: è | G109: 0.03
A110: 12th | B110: =$B$7*$G$110 -> 62.875 | C110: =$C$7*$G$110 -> 54.875 | D110: =$D$7*$G$110 -> 38.875 | E110: =$E$7*$G$110 -> 30.875 | F110: è | G110: 0.025
A111: 13th | B111: =$B$7*$G$111 -> 50.3 | C111: =$C$7*$G$111 -> 43.9 | D111: =$D$7*$G$111 -> 31.1 | E111: =$E$7*$G$111 -> 24.7 | F111: è | G111: 0.02
A112: 14th | B112: =$B$7*$G$112 -> 44.0125 | C112: =$C$7*$G$112 -> 38.4125 | D112: =$D$7*$G$112 -> 27.2125 | E112: =$E$7*$G$112 -> 21.6125 | F112: è | G112: 0.0175
A113: 15th | B113: =$B$7*$G$113 -> 37.725 | C113: =$C$7*$G$113 -> 32.925 | D113: =$D$7*$G$113 -> 23.325 | E113: =$E$7*$G$113 -> 18.525 | F113: è | G113: 0.015
A114: Totals | B114: =SUM(B99:B113) -> 2515 | C114: =SUM(C99:C113) -> 2195 | D114: 1555 | E114: 1235 | F114: =B114+C114+D114+E114 -> 7500 | G114: =SUM(G99:G113) -> 1
A116: For 751-1200 riders 20 places
A117: Placings | B117: 1D | C117: 2D | D117: 3D | E117: 4D
A118: 1st | B118: =$B$7*$G$118 -> 352.1 | C118: =$C$7*$G$118 -> 307.3 | D118: =$D$7*$G$118 -> 217.7 | E118: =$E$7*$G$118 -> 172.9 | F118: è | G118: 0.14
A119: 2nd | B119: =$B$7*$G$119 -> 276.65 | C119: =$C$7*$G$119 -> 241.45 | D119: =$D$7*$G$119 -> 171.05 | E119: =$E$7*$G$119 -> 135.85 | F119: è | G119: 0.11
A120: 3rd | B120: =$B$7*$G$120 -> 226.35 | C120: =$C$7*$G$120 -> 197.55 | D120: =$D$7*$G$120 -> 139.95 | E120: =$E$7*$G$120 -> 111.15 | F120: è | G120: 0.09
A121: 4th | B121: =$B$7*$G$121 -> 193.655 | C121: =$C$7*$G$121 -> 169.015 | D121: =$D$7*$G$121 -> 119.735 | E121: =$E$7*$G$121 -> 95.095 | F121: è | G121: 0.077
A122: 5th | B122: =$B$7*$G$122 -> 176.05 | C122: =$C$7*$G$122 -> 153.65 | D122: =$D$7*$G$122 -> 108.85 | E122: =$E$7*$G$122 -> 86.45 | F122: è | G122: 0.07
A123: 6th | B123: =$B$7*$G$123 -> 163.475 | C123: =$C$7*$G$123 -> 142.675 | D123: =$D$7*$G$123 -> 101.075 | E123: =$E$7*$G$123 -> 80.275 | F123: è | G123: 0.065
A124: 7th | B124: =$B$7*$G$124 -> 150.9 | C124: =$C$7*$G$124 -> 131.7 | D124: =$D$7*$G$124 -> 93.3 | E124: =$E$7*$G$124 -> 74.1 | F124: è | G124: 0.06
A125: 8th | B125: =$B$7*$G$125 -> 138.325 | C125: =$C$7*$G$125 -> 120.725 | D125: =$D$7*$G$125 -> 85.525 | E125: =$E$7*$G$125 -> 67.925 | F125: è | G125: 0.055
A126: 9th | B126: =$B$7*$G$126 -> 125.75 | C126: =$C$7*$G$126 -> 109.75 | D126: =$D$7*$G$126 -> 77.75 | E126: =$E$7*$G$126 -> 61.75 | F126: è | G126: 0.05
A127: 10th | B127: =$B$7*$G$127 -> 113.175 | C127: =$C$7*$G$127 -> 98.775 | D127: =$D$7*$G$127 -> 69.975 | E127: =$E$7*$G$127 -> 55.575 | F127: è | G127: 0.045
A128: 11th | B128: =$B$7*$G$128 -> 100.6 | C128: =$C$7*$G$128 -> 87.8 | D128: =$D$7*$G$128 -> 62.2 | E128: =$E$7*$G$128 -> 49.4 | F128: è | G128: 0.04
A129: 12th | B129: =$B$7*$G$129 -> 93.055 | C129: =$C$7*$G$129 -> 81.215 | D129: =$D$7*$G$129 -> 57.535 | E129: =$E$7*$G$129 -> 45.695 | F129: è | G129: 0.037
A130: 13th | B130: =$B$7*$G$130 -> 82.995 | C130: =$C$7*$G$130 -> 72.435 | D130: =$D$7*$G$130 -> 51.315 | E130: =$E$7*$G$130 -> 40.755 | F130: è | G130: 0.033
A131: 14th | B131: =$B$7*$G$131 -> 72.935 | C131: =$C$7*$G$131 -> 63.655 | D131: =$D$7*$G$131 -> 45.095 | E131: =$E$7*$G$131 -> 35.815 | F131: è | G131: 0.029
A132: 15th | B132: =$B$7*$G$132 -> 62.875 | C132: =$C$7*$G$132 -> 54.875 | D132: =$D$7*$G$132 -> 38.875 | E132: =$E$7*$G$132 -> 30.875 | F132: è | G132: 0.025
A133: 16th | B133: =$B$7*$G$133 -> 52.815 | C133: =$C$7*$G$133 -> 46.095 | D133: =$D$7*$G$133 -> 32.655 | E133: =$E$7*$G$133 -> 25.935 | F133: è | G133: 0.021
A134: 17th | B134: =$B$7*$G$134 -> 42.755 | C134: =$C$7*$G$134 -> 37.315 | D134: =$D$7*$G$134 -> 26.435 | E134: =$E$7*$G$134 -> 20.995 | F134: è | G134: 0.017
A135: 18th | B135: =$B$7*$G$135 -> 35.21 | C135: =$C$7*$G$135 -> 30.73 | D135: =$D$7*$G$135 -> 21.77 | E135: =$E$7*$G$135 -> 17.29 | F135: è | G135: 0.014
A136: 19th | B136: =$B$7*$G$136 -> 30.18 | C136: =$C$7*$G$136 -> 26.34 | D136: =$D$7*$G$136 -> 18.66 | E136: =$E$7*$G$136 -> 14.82 | F136: è | G136: 0.012
A137: 20th | B137: =$B$7*$G$137 -> 25.15 | C137: =$C$7*$G$137 -> 21.95 | D137: =$D$7*$G$137 -> 15.55 | E137: =$E$7*$G$137 -> 12.35 | F137: è | G137: 0.01
A138: Totals | B138: =SUM(B118:B137) -> 2515 | C138: =SUM(C118:C137) -> 2195 | D138: 1555 | E138: 1235 | F138: =B138+C138+D138+E138 -> 7500 | G138: =SUM(G118:G137) -> 1
A140: For 1201 or More riders 30 places
A141: Placings | B141: 1D | C141: 2D | D141: 3D | E141: 4D
A142: 1st | B142: =$B$7*$G$142 -> 301.8 | C142: =$C$7*$G$142 -> 263.4 | D142: =$D$7*$G$142 -> 186.6 | E142: =$E$7*$G$142 -> 148.2 | F142: è | G142: 0.12
A143: 2nd | B143: =$B$7*$G$143 -> 238.925 | C143: =$C$7*$G$143 -> 208.525 | D143: =$D$7*$G$143 -> 147.725 | E143: =$E$7*$G$143 -> 117.325 | F143: è | G143: 0.095
A144: 3rd | B144: =$B$7*$G$144 -> 183.595 | C144: =$C$7*$G$144 -> 160.235 | D144: =$D$7*$G$144 -> 113.515 | E144: =$E$7*$G$144 -> 90.155 | F144: è | G144: 0.073
A145: 4th | B145: =$B$7*$G$145 -> 155.93 | C145: =$C$7*$G$145 -> 136.09 | D145: =$D$7*$G$145 -> 96.41 | E145: =$E$7*$G$145 -> 76.57 | F145: è | G145: 0.062
A146: 5th | B146: =$B$7*$G$146 -> 125.75 | C146: =$C$7*$G$146 -> 109.75 | D146: =$D$7*$G$146 -> 77.75 | E146: =$E$7*$G$146 -> 61.75 | F146: è | G146: 0.05
A147: 6th | B147: =$B$7*$G$147 -> 113.175 | C147: =$C$7*$G$147 -> 98.775 | D147: =$D$7*$G$147 -> 69.975 | E147: =$E$7*$G$147 -> 55.575 | F147: è | G147: 0.045
A148: 7th | B148: =$B$7*$G$148 -> 108.145 | C148: =$C$7*$G$148 -> 94.385 | D148: =$D$7*$G$148 -> 66.865 | E148: =$E$7*$G$148 -> 53.105 | F148: è | G148: 0.043
A149: 8th | B149: =$B$7*$G$149 -> 100.6 | C149: =$C$7*$G$149 -> 87.8 | D149: =$D$7*$G$149 -> 62.2 | E149: =$E$7*$G$149 -> 49.4 | F149: è | G149: 0.04
A150: 9th | B150: =$B$7*$G$150 -> 93.055 | C150: =$C$7*$G$150 -> 81.215 | D150: =$D$7*$G$150 -> 57.535 | E150: =$E$7*$G$150 -> 45.695 | F150: è | G150: 0.037
A151: 10th | B151: =$B$7*$G$151 -> 88.025 | C151: =$C$7*$G$151 -> 76.825 | D151: =$D$7*$G$151 -> 54.425 | E151: =$E$7*$G$151 -> 43.225 | F151: è | G151: 0.035
A152: 11th | B152: =$B$7*$G$152 -> 82.995 | C152: =$C$7*$G$152 -> 72.435 | D152: =$D$7*$G$152 -> 51.315 | E152: =$E$7*$G$152 -> 40.755 | F152: è | G152: 0.033
A153: 12th | B153: =$B$7*$G$153 -> 77.965 | C153: =$C$7*$G$153 -> 68.045 | D153: =$D$7*$G$153 -> 48.205 | E153: =$E$7*$G$153 -> 38.285 | F153: è | G153: 0.031
A154: 13th | B154: =$B$7*$G$154 -> 72.935 | C154: =$C$7*$G$154 -> 63.655 | D154: =$D$7*$G$154 -> 45.095 | E154: =$E$7*$G$154 -> 35.815 | F154: è | G154: 0.029
A155: 14th | B155: =$B$7*$G$155 -> 67.905 | C155: =$C$7*$G$155 -> 59.265 | D155: =$D$7*$G$155 -> 41.985 | E155: =$E$7*$G$155 -> 33.345 | F155: è | G155: 0.027
A156: 15th | B156: =$B$7*$G$156 -> 62.875 | C156: =$C$7*$G$156 -> 54.875 | D156: =$D$7*$G$156 -> 38.875 | E156: =$E$7*$G$156 -> 30.875 | F156: è | G156: 0.025
A157: 16th | B157: =$B$7*$G$157 -> 60.36 | C157: =$C$7*$G$157 -> 52.68 | D157: =$D$7*$G$157 -> 37.32 | E157: =$E$7*$G$157 -> 29.64 | F157: è | G157: 0.024
A158: 17th | B158: =$B$7*$G$158 -> 57.845 | C158: =$C$7*$G$158 -> 50.485 | D158: =$D$7*$G$158 -> 35.765 | E158: =$E$7*$G$158 -> 28.405 | F158: è | G158: 0.023
A159: 18th | B159: =$B$7*$G$159 -> 55.33 | C159: =$C$7*$G$159 -> 48.29 | D159: =$D$7*$G$159 -> 34.21 | E159: =$E$7*$G$159 -> 27.17 | F159: è | G159: 0.022
A160: 19th | B160: =$B$7*$G$160 -> 52.815 | C160: =$C$7*$G$160 -> 46.095 | D160: =$D$7*$G$160 -> 32.655 | E160: =$E$7*$G$160 -> 25.935 | F160: è | G160: 0.021
A161: 20th | B161: =$B$7*$G$161 -> 50.3 | C161: =$C$7*$G$161 -> 43.9 | D161: =$D$7*$G$161 -> 31.1 | E161: =$E$7*$G$161 -> 24.7 | F161: è | G161: 0.02
A162: 21st | B162: =$B$7*$G$162 -> 47.785 | C162: =$C$7*$G$162 -> 41.705 | D162: =$D$7*$G$162 -> 29.545 | E162: =$E$7*$G$162 -> 23.465 | F162: è | G162: 0.019
A163: 22nd | B163: =$B$7*$G$163 -> 45.27 | C163: =$C$7*$G$163 -> 39.51 | D163: =$D$7*$G$163 -> 27.99 | E163: =$E$7*$G$163 -> 22.23 | F163: è | G163: 0.018
A164: 23rd | B164: =$B$7*$G$164 -> 42.755 | C164: =$C$7*$G$164 -> 37.315 | D164: =$D$7*$G$164 -> 26.435 | E164: =$E$7*$G$164 -> 20.995 | F164: è | G164: 0.017
A165: 24th | B165: =$B$7*$G$165 -> 40.24 | C165: =$C$7*$G$165 -> 35.12 | D165: =$D$7*$G$165 -> 24.88 | E165: =$E$7*$G$165 -> 19.76 | F165: è | G165: 0.016
A166: 25th | B166: =$B$7*$G$166 -> 37.725 | C166: =$C$7*$G$166 -> 32.925 | D166: =$D$7*$G$166 -> 23.325 | E166: =$E$7*$G$166 -> 18.525 | F166: è | G166: 0.015
A167: 26th | B167: =$B$7*$G$167 -> 35.21 | C167: =$C$7*$G$167 -> 30.73 | D167: =$D$7*$G$167 -> 21.77 | E167: =$E$7*$G$167 -> 17.29 | F167: è | G167: 0.014
A168: 27th | B168: =$B$7*$G$168 -> 32.695 | C168: =$C$7*$G$168 -> 28.535 | D168: =$D$7*$G$168 -> 20.215 | E168: =$E$7*$G$168 -> 16.055 | F168: è | G168: 0.013
A169: 28th | B169: =$B$7*$G$169 -> 30.18 | C169: =$C$7*$G$169 -> 26.34 | D169: =$D$7*$G$169 -> 18.66 | E169: =$E$7*$G$169 -> 14.82 | F169: è | G169: 0.012
A170: 29th | B170: =$B$7*$G$170 -> 27.665 | C170: =$C$7*$G$170 -> 24.145 | D170: =$D$7*$G$170 -> 17.105 | E170: =$E$7*$G$170 -> 13.585 | F170: è | G170: 0.011
A171: 30th | B171: =$B$7*$G$171 -> 25.15 | C171: =$C$7*$G$171 -> 21.95 | D171: =$D$7*$G$171 -> 15.55 | E171: =$E$7*$G$171 -> 12.35 | F171: è | G171: 0.01
A172: Totals | B172: =SUM(B142:B171) -> 2515 | C172: =SUM(C142:C171) -> 2195 | D172: =SUM(D142:D171) -> 1555 | E172: =SUM(E142:E171) -> 1235 | F172: =B172+C172+D172+E172 -> 7500 | G172: =SUM(G142:G171) -> 1

Sheet 5D Payout BBR
A1: 5D Payout BBR
A2: Entry Fee | B2: # Entries | C2: % Payback | D2: $ From Entry | E2: Added $ | F2: Total Payout | G2: Total $ Held
A3: 25 | B3: 64 | C3: 0.8 | D3: =$A$3*$C$3*$B$3 -> 1280 | G3: =$A$3*(100%-$C$3)*$B$3 -> 320
A5: % in each D | B5: 0.3 | C5: 0.25 | D5: 0.2 | E5: 0.15 | F5: 0.1 | G5: Total % Payout | H5: =SUM(B5:F5) -> 1
B6: 1D | C6: 2D | D6: 3D | E6: 4D | F6: 5D
B7: =(($A$3*$B$3*$C$3*$B$5)+($E$3*$B$5)) -> 384 | C7: =(($A$3*$B$3*$C$3*$C$5)+($E$3*$C$5)) -> 320 | D7: =(($A$3*$B$3*$C$3*$D$5)+($E$3*$D$5)) -> 256 | E7: =(($A$3*$B$3*$C$3*$E$5)+($E$3*$E$5)) -> 192 | F7: =(($A$3*$B$3*$C$3*$F$5)+($E$3*$F$5)) -> 128
A8: Totals | B8: =SUM(B7) -> 384 | C8: =SUM(C7) -> 320 | D8: 256 | E8: 192 | F8: 128 | G8: =SUM(B8:F8) -> 1280
A10: For 1-25 riders 1 place
A11: Placings | B11: 1D | C11: 2D | D11: 3D | E11: 4D | F11: 5D
A12: 1st | B12: =$B$7*$H$12 -> 384 | C12: =$C$7*$H$12 -> 320 | D12: =$D$7*$H$12 -> 256 | E12: =$E$7*$H$12 -> 192 | F12: =$F$7*$H$12 -> 128 | G12: è | H12: 1
A13: Totals | B13: =SUM(B12:B12) -> 384 | C13: =SUM(C12:C12) -> 320 | D13: =SUM(D12:D12) -> 256 | E13: =SUM(E12:E12) -> 192 | F13: =SUM(F12) -> 128 | G13: =SUM(B13:F13) -> 1280 | H13: =SUM(H12) -> 1
A15: For 26-50 riders 2 places
A16: Placings | B16: 1D | C16: 2D | D16: 3D | E16: 4D | F16: 5D
A17: 1st | B17: =$B$7*$H$17 -> 230.4 | C17: =$C$7*$H$17 -> 192 | D17: =$D$7*$H$17 -> 153.6 | E17: =$E$7*$H$17 -> 115.2 | F17: =$F$7*$H$17 -> 76.8 | G17: è | H17: 0.6
A18: 2nd | B18: =$B$7*$H$18 -> 153.6 | C18: =$C$7*$H$18 -> 128 | D18: =$D$7*$H$18 -> 102.4 | E18: =$E$7*$H$18 -> 76.8 | F18: =$F$7*$H$18 -> 51.2 | G18: è | H18: 0.4
A19: Totals | B19: =SUM(B17:B18) -> 384 | C19: =SUM(C17:C18) -> 320 | D19: =SUM(D17:D18) -> 256 | E19: =SUM(E17:E18) -> 192 | F19: =SUM(F17:F18) -> 128 | G19: =SUM(B19:F19) -> 1280 | H19: =SUM(H17:H18) -> 1
A21: For 51-100 riders 3 places
A22: Placings | B22: 1D | C22: 2D | D22: 3D | E22: 4D | F22: 5D
A23: 1st | B23: =$B$7*$H$23 -> 192 | C23: =$C$7*$H$23 -> 160 | D23: =$D$7*$H$23 -> 128 | E23: =$E$7*$H$23 -> 96 | F23: =$F$7*$H$23 -> 64 | G23: è | H23: 0.5
A24: 2nd | B24: =$B$7*$H$24 -> 115.2 | C24: =$C$7*$H$24 -> 96 | D24: =$D$7*$H$24 -> 76.8 | E24: =$E$7*$H$24 -> 57.6 | F24: =$F$7*$H$24 -> 38.4 | G24: è | H24: 0.3
A25: 3rd | B25: =$B$7*$H$25 -> 76.8 | C25: =$C$7*$H$25 -> 64 | D25: =$D$7*$H$25 -> 51.2 | E25: =$E$7*$H$25 -> 38.4 | F25: =$F$7*$H$25 -> 25.6 | G25: è | H25: 0.2
A26: Totals | B26: =SUM(B23:B25) -> 384 | C26: =SUM(C23:C25) -> 320 | D26: =SUM(D23:D25) -> 256 | E26: =SUM(E23:E25) -> 192 | F26: =SUM(F23:F25) -> 128 | G26: =SUM(B26:F26) -> 1280 | H26: =SUM(H23:H25) -> 1
A28: For 101-143 riders 4 places
A29: Placings | B29: 1D | C29: 2D | D29: 3D | E29: 4D | F29: 5D
A30: 1st | B30: =$B$7*$H$30 -> 153.6 | C30: =$C$7*$H$30 -> 128 | D30: =$D$7*$H$30 -> 102.4 | E30: =$E$7*$H$30 -> 76.8 | F30: =$F$7*$H$30 -> 51.2 | G30: è | H30: 0.4
A31: 2nd | B31: =$B$7*$H$31 -> 115.2 | C31: =$C$7*$H$31 -> 96 | D31: =$D$7*$H$31 -> 76.8 | E31: =$E$7*$H$31 -> 57.6 | F31: =$F$7*$H$31 -> 38.4 | G31: è | H31: 0.3
A32: 3rd | B32: =$B$7*$H$32 -> 76.8 | C32: =$C$7*$H$32 -> 64 | D32: =$D$7*$H$32 -> 51.2 | E32: =$E$7*$H$32 -> 38.4 | F32: =$F$7*$H$32 -> 25.6 | G32: è | H32: 0.2
A33: 4th | B33: =$B$7*$H$33 -> 38.4 | C33: =$C$7*$H$33 -> 32 | D33: =$D$7*$H$33 -> 25.6 | E33: =$E$7*$H$33 -> 19.2 | F33: =$F$7*$H$33 -> 12.8 | G33: è | H33: 0.1
A34: Totals | B34: =SUM(B30:B33) -> 384 | C34: =SUM(C30:C33) -> 320 | D34: =SUM(D30:D33) -> 256 | E34: =SUM(E30:E33) -> 192 | F34: =SUM(F30:F33) -> 128 | G34: =SUM(B34:F34) -> 1280 | H34: =SUM(H30:H33) -> 1
A36: For 144-200 riders 5 places
A37: Placings | B37: 1D | C37: 2D | D37: 3D | E37: 4D | F37: 5D
A38: 1st | B38: =$B$7*$H$38 -> 126.72 | C38: =$C$7*$H$38 -> 105.6 | D38: =$D$7*$H$38 -> 84.48 | E38: =$E$7*$H$38 -> 63.36 | F38: =$F$7*$H$38 -> 42.24 | G38: è | H38: 0.33
A39: 2nd | B39: =$B$7*$H$39 -> 103.68 | C39: =$C$7*$H$39 -> 86.4 | D39: =$D$7*$H$39 -> 69.12 | E39: =$E$7*$H$39 -> 51.84 | F39: =$F$7*$H$39 -> 34.56 | G39: è | H39: 0.27
A40: 3rd | B40: =$B$7*$H$40 -> 76.8 | C40: =$C$7*$H$40 -> 64 | D40: =$D$7*$H$40 -> 51.2 | E40: =$E$7*$H$40 -> 38.4 | F40: =$F$7*$H$40 -> 25.6 | G40: è | H40: 0.2
A41: 4th | B41: =$B$7*$H$41 -> 49.92 | C41: =$C$7*$H$41 -> 41.6 | D41: =$D$7*$H$41 -> 33.28 | E41: =$E$7*$H$41 -> 24.96 | F41: =$F$7*$H$41 -> 16.64 | G41: è | H41: 0.13
A42: 5th | B42: =$B$7*$H$42 -> 26.88 | C42: =$C$7*$H$42 -> 22.4 | D42: =$D$7*$H$42 -> 17.92 | E42: =$E$7*$H$42 -> 13.44 | F42: =$F$7*$H$42 -> 8.96 | G42: è | H42: 0.07
A43: Totals | B43: =SUM(B38:B42) -> 384 | C43: =SUM(C38:C42) -> 320 | D43: =SUM(D38:D42) -> 256 | E43: =SUM(E38:E42) -> 192 | F43: =SUM(F38:F42) -> 128 | G43: =SUM(B43:F43) -> 1280 | H43: =SUM(H38:H42) -> 1
A45: For 201-250 riders 6 places
A46: Placings | B46: 1D | C46: 2D | D46: 3D | E46: 4D | F46: 5D
A47: 1st | B47: =$B$7*$H$47 -> 111.36 | C47: =$C$7*$H$47 -> 92.8 | D47: =$D$7*$H$47 -> 74.24 | E47: =$E$7*$H$47 -> 55.68 | F47: =$F$7*$H$47 -> 37.12 | G47: è | H47: 0.29
A48: 2nd | B48: =$B$7*$H$48 -> 92.16 | C48: =$C$7*$H$48 -> 76.8 | D48: =$D$7*$H$48 -> 61.44 | E48: =$E$7*$H$48 -> 46.08 | F48: =$F$7*$H$48 -> 30.72 | G48: è | H48: 0.24
A49: 3rd | B49: =$B$7*$H$49 -> 72.96 | C49: =$C$7*$H$49 -> 60.8 | D49: =$D$7*$H$49 -> 48.64 | E49: =$E$7*$H$49 -> 36.48 | F49: =$F$7*$H$49 -> 24.32 | G49: è | H49: 0.19
A50: 4th | B50: =$B$7*$H$50 -> 53.76 | C50: =$C$7*$H$50 -> 44.8 | D50: =$D$7*$H$50 -> 35.84 | E50: =$E$7*$H$50 -> 26.88 | F50: =$F$7*$H$50 -> 17.92 | G50: è | H50: 0.14
A51: 5th | B51: =$B$7*$H$51 -> 34.56 | C51: =$C$7*$H$51 -> 28.8 | D51: =$D$7*$H$51 -> 23.04 | E51: =$E$7*$H$51 -> 17.28 | F51: =$F$7*$H$51 -> 11.52 | G51: è | H51: 0.09
A52: 6th | B52: =$B$7*$H$52 -> 19.2 | C52: =$C$7*$H$52 -> 16 | D52: =$D$7*$H$52 -> 12.8 | E52: =$E$7*$H$52 -> 9.6 | F52: =$F$7*$H$52 -> 6.4 | G52: è | H52: 0.05
A53: Totals | B53: =SUM(B47:B52) -> 384 | C53: =SUM(C47:C52) -> 320 | D53: =SUM(D47:D52) -> 256 | E53: =SUM(E47:E52) -> 192 | F53: =SUM(F47:F52) -> 128 | G53: =SUM(B53:F53) -> 1280 | H53: =SUM(H47:H52) -> 1
A55: For 251-333 riders 8 places
A56: Placings | B56: 1D | C56: 2D | D56: 3D | E56: 4D | F56: 5D
A57: 1st | B57: =$B$7*$H$57 -> 92.16 | C57: =$C$7*$H$57 -> 76.8 | D57: =$D$7*$H$57 -> 61.44 | E57: =$E$7*$H$57 -> 46.08 | F57: =$F$7*$H$57 -> 30.72 | G57: è | H57: 0.24
A58: 2nd | B58: =$B$7*$H$58 -> 76.8 | C58: =$C$7*$H$58 -> 64 | D58: =$D$7*$H$58 -> 51.2 | E58: =$E$7*$H$58 -> 38.4 | F58: =$F$7*$H$58 -> 25.6 | G58: è | H58: 0.2
A59: 3rd | B59: =$B$7*$H$59 -> 65.28 | C59: =$C$7*$H$59 -> 54.4 | D59: =$D$7*$H$59 -> 43.52 | E59: =$E$7*$H$59 -> 32.64 | F59: =$F$7*$H$59 -> 21.76 | G59: è | H59: 0.17
A60: 4th | B60: =$B$7*$H$60 -> 49.92 | C60: =$C$7*$H$60 -> 41.6 | D60: =$D$7*$H$60 -> 33.28 | E60: =$E$7*$H$60 -> 24.96 | F60: =$F$7*$H$60 -> 16.64 | G60: è | H60: 0.13
A61: 5th | B61: =$B$7*$H$61 -> 38.4 | C61: =$C$7*$H$61 -> 32 | D61: =$D$7*$H$61 -> 25.6 | E61: =$E$7*$H$61 -> 19.2 | F61: =$F$7*$H$61 -> 12.8 | G61: è | H61: 0.1
A62: 6th | B62: =$B$7*$H$62 -> 26.88 | C62: =$C$7*$H$62 -> 22.4 | D62: =$D$7*$H$62 -> 17.92 | E62: =$E$7*$H$62 -> 13.44 | F62: =$F$7*$H$62 -> 8.96 | G62: è | H62: 0.07
A63: 7th | B63: =$B$7*$H$63 -> 19.2 | C63: =$C$7*$H$63 -> 16 | D63: =$D$7*$H$63 -> 12.8 | E63: =$E$7*$H$63 -> 9.6 | F63: =$F$7*$H$63 -> 6.4 | G63: è | H63: 0.05
A64: 8th | B64: =$B$7*$H$64 -> 15.36 | C64: =$C$7*$H$64 -> 12.8 | D64: =$D$7*$H$64 -> 10.24 | E64: =$E$7*$H$64 -> 7.68 | F64: =$F$7*$H$64 -> 5.12 | G64: è | H64: 0.04
A65: Totals | B65: =SUM(B57:B64) -> 384 | C65: =SUM(C57:C64) -> 320 | D65: =SUM(D57:D64) -> 256 | E65: =SUM(E57:E64) -> 192 | F65: =SUM(F57:F64) -> 128 | G65: =SUM(B65:F65) -> 1280 | H65: =SUM(H57:H64) -> 1
A67: For 334-500 riders 10 places
A68: Placings | B68: 1D | C68: 2D | D68: 3D | E68: 4D | F68: 5D
A69: 1st | B69: =$B$7*$H$69 -> 80.64 | C69: =$C$7*$H$69 -> 67.2 | D69: =$D$7*$H$69 -> 53.76 | E69: =$E$7*$H$69 -> 40.32 | F69: =$F$7*$H$69 -> 26.88 | G69: è | H69: 0.21
A70: 2nd | B70: =$B$7*$H$70 -> 69.12 | C70: =$C$7*$H$70 -> 57.6 | D70: =$D$7*$H$70 -> 46.08 | E70: =$E$7*$H$70 -> 34.56 | F70: =$F$7*$H$70 -> 23.04 | G70: è | H70: 0.18
A71: 3rd | B71: =$B$7*$H$71 -> 57.6 | C71: =$C$7*$H$71 -> 48 | D71: =$D$7*$H$71 -> 38.4 | E71: =$E$7*$H$71 -> 28.8 | F71: =$F$7*$H$71 -> 19.2 | G71: è | H71: 0.15
A72: 4th | B72: =$B$7*$H$72 -> 46.08 | C72: =$C$7*$H$72 -> 38.4 | D72: =$D$7*$H$72 -> 30.72 | E72: =$E$7*$H$72 -> 23.04 | F72: =$F$7*$H$72 -> 15.36 | G72: è | H72: 0.12
A73: 5th | B73: =$B$7*$H$73 -> 34.56 | C73: =$C$7*$H$73 -> 28.8 | D73: =$D$7*$H$73 -> 23.04 | E73: =$E$7*$H$73 -> 17.28 | F73: =$F$7*$H$73 -> 11.52 | G73: è | H73: 0.09
A74: 6th | B74: =$B$7*$H$74 -> 26.88 | C74: =$C$7*$H$74 -> 22.4 | D74: =$D$7*$H$74 -> 17.92 | E74: =$E$7*$H$74 -> 13.44 | F74: =$F$7*$H$74 -> 8.96 | G74: è | H74: 0.07
A75: 7th | B75: =$B$7*$H$75 -> 23.04 | C75: =$C$7*$H$75 -> 19.2 | D75: =$D$7*$H$75 -> 15.36 | E75: =$E$7*$H$75 -> 11.52 | F75: =$F$7*$H$75 -> 7.68 | G75: è | H75: 0.06
A76: 8th | B76: =$B$7*$H$76 -> 19.2 | C76: =$C$7*$H$76 -> 16 | D76: =$D$7*$H$76 -> 12.8 | E76: =$E$7*$H$76 -> 9.6 | F76: =$F$7*$H$76 -> 6.4 | G76: è | H76: 0.05
A77: 9th | B77: =$B$7*$H$77 -> 15.36 | C77: =$C$7*$H$77 -> 12.8 | D77: =$D$7*$H$77 -> 10.24 | E77: =$E$7*$H$77 -> 7.68 | F77: =$F$7*$H$77 -> 5.12 | G77: è | H77: 0.04
A78: 10th | B78: =$B$7*$H$78 -> 11.52 | C78: =$C$7*$H$78 -> 9.6 | D78: =$D$7*$H$78 -> 7.68 | E78: =$E$7*$H$78 -> 5.76 | F78: =$F$7*$H$78 -> 3.84 | G78: è | H78: 0.03
A79: Totals | B79: =SUM(B69:B78) -> 384 | C79: =SUM(C69:C78) -> 320 | D79: 256 | E79: 192 | F79: 128 | G79: =SUM(B79:F79) -> 1280 | H79: =SUM(H69:H78) -> 1
A81: For 501-666 riders 12 places
A82: Placings | B82: 1D | C82: 2D | D82: 3D | E82: 4D | F82: 5D
A83: 1st | B83: =$B$7*$H$83 -> 72.96 | C83: =$C$7*$H$83 -> 60.8 | D83: =$D$7*$H$83 -> 48.64 | E83: =$E$7*$H$83 -> 36.48 | F83: =$F$7*$H$83 -> 24.32 | G83: è | H83: 0.19
A84: 2nd | B84: =$B$7*$H$84 -> 57.6 | C84: =$C$7*$H$84 -> 48 | D84: =$D$7*$H$84 -> 38.4 | E84: =$E$7*$H$84 -> 28.8 | F84: =$F$7*$H$84 -> 19.2 | G84: è | H84: 0.15
A85: 3rd | B85: =$B$7*$H$85 -> 46.08 | C85: =$C$7*$H$85 -> 38.4 | D85: =$D$7*$H$85 -> 30.72 | E85: =$E$7*$H$85 -> 23.04 | F85: =$F$7*$H$85 -> 15.36 | G85: è | H85: 0.12
A86: 4th | B86: =$B$7*$H$86 -> 38.4 | C86: =$C$7*$H$86 -> 32 | D86: =$D$7*$H$86 -> 25.6 | E86: =$E$7*$H$86 -> 19.2 | F86: =$F$7*$H$86 -> 12.8 | G86: è | H86: 0.1
A87: 5th | B87: =$B$7*$H$87 -> 34.56 | C87: =$C$7*$H$87 -> 28.8 | D87: =$D$7*$H$87 -> 23.04 | E87: =$E$7*$H$87 -> 17.28 | F87: =$F$7*$H$87 -> 11.52 | G87: è | H87: 0.09
A88: 6th | B88: =$B$7*$H$88 -> 30.72 | C88: =$C$7*$H$88 -> 25.6 | D88: =$D$7*$H$88 -> 20.48 | E88: =$E$7*$H$88 -> 15.36 | F88: =$F$7*$H$88 -> 10.24 | G88: è | H88: 0.08
A89: 7th | B89: =$B$7*$H$89 -> 26.88 | C89: =$C$7*$H$89 -> 22.4 | D89: =$D$7*$H$89 -> 17.92 | E89: =$E$7*$H$89 -> 13.44 | F89: =$F$7*$H$89 -> 8.96 | G89: è | H89: 0.07
A90: 8th | B90: =$B$7*$H$90 -> 23.04 | C90: =$C$7*$H$90 -> 19.2 | D90: =$D$7*$H$90 -> 15.36 | E90: =$E$7*$H$90 -> 11.52 | F90: =$F$7*$H$90 -> 7.68 | G90: è | H90: 0.06
A91: 9th | B91: =$B$7*$H$91 -> 19.2 | C91: =$C$7*$H$91 -> 16 | D91: =$D$7*$H$91 -> 12.8 | E91: =$E$7*$H$91 -> 9.6 | F91: =$F$7*$H$91 -> 6.4 | G91: è | H91: 0.05
A92: 10th | B92: =$B$7*$H$92 -> 15.36 | C92: =$C$7*$H$92 -> 12.8 | D92: =$D$7*$H$92 -> 10.24 | E92: =$E$7*$H$92 -> 7.68 | F92: =$F$7*$H$92 -> 5.12 | G92: è | H92: 0.04
A93: 11th | B93: =$B$7*$H$93 -> 11.52 | C93: =$C$7*$H$93 -> 9.6 | D93: =$D$7*$H$93 -> 7.68 | E93: =$E$7*$H$93 -> 5.76 | F93: =$F$7*$H$93 -> 3.84 | G93: è | H93: 0.03
A94: 12th | B94: =$B$7*$H$94 -> 7.68 | C94: =$C$7*$H$94 -> 6.4 | D94: =$D$7*$H$94 -> 5.12 | E94: =$E$7*$H$94 -> 3.84 | F94: =$F$7*$H$94 -> 2.56 | G94: è | H94: 0.02
A95: Totals | B95: =SUM(B83:B94) -> 384 | C95: =SUM(C83:C94) -> 320 | D95: =SUM(D83:D94) -> 256 | E95: =SUM(E83:E94) -> 192 | F95: =SUM(F83:F94) -> 128 | G95: =SUM(B95:F95) -> 1280 | H95: =SUM(H83:H94) -> 1
A97: For 667-1000 riders 15 places
A98: Placings | B98: 1D | C98: 2D | D98: 3D | E98: 4D | F98: 5D
A99: 1st | B99: =$B$7*$H$99 -> 69.12 | C99: =$C$7*$H$99 -> 57.6 | D99: =$D$7*$H$99 -> 46.08 | E99: =$E$7*$H$99 -> 34.56 | F99: =$F$7*$H$99 -> 23.04 | G99: è | H99: 0.18
A100: 2nd | B100: =$B$7*$H$100 -> 57.6 | C100: =$C$7*$H$100 -> 48 | D100: =$D$7*$H$100 -> 38.4 | E100: =$E$7*$H$100 -> 28.8 | F100: =$F$7*$H$100 -> 19.2 | G100: è | H100: 0.15
A101: 3rd | B101: =$B$7*$H$101 -> 46.08 | C101: =$C$7*$H$101 -> 38.4 | D101: =$D$7*$H$101 -> 30.72 | E101: =$E$7*$H$101 -> 23.04 | F101: =$F$7*$H$101 -> 15.36 | G101: è | H101: 0.12
A102: 4th | B102: =$B$7*$H$102 -> 38.4 | C102: =$C$7*$H$102 -> 32 | D102: =$D$7*$H$102 -> 25.6 | E102: =$E$7*$H$102 -> 19.2 | F102: =$F$7*$H$102 -> 12.8 | G102: è | H102: 0.1
A103: 5th | B103: =$B$7*$H$103 -> 32.64 | C103: =$C$7*$H$103 -> 27.2 | D103: =$D$7*$H$103 -> 21.76 | E103: =$E$7*$H$103 -> 16.32 | F103: =$F$7*$H$103 -> 10.88 | G103: è | H103: 0.085
A104: 6th | B104: =$B$7*$H$104 -> 26.88 | C104: =$C$7*$H$104 -> 22.4 | D104: =$D$7*$H$104 -> 17.92 | E104: =$E$7*$H$104 -> 13.44 | F104: =$F$7*$H$104 -> 8.96 | G104: è | H104: 0.07
A105: 7th | B105: =$B$7*$H$105 -> 23.04 | C105: =$C$7*$H$105 -> 19.2 | D105: =$D$7*$H$105 -> 15.36 | E105: =$E$7*$H$105 -> 11.52 | F105: =$F$7*$H$105 -> 7.68 | G105: è | H105: 0.06
A106: 8th | B106: =$B$7*$H$106 -> 19.2 | C106: =$C$7*$H$106 -> 16 | D106: =$D$7*$H$106 -> 12.8 | E106: =$E$7*$H$106 -> 9.6 | F106: =$F$7*$H$106 -> 6.4 | G106: è | H106: 0.05
A107: 9th | B107: =$B$7*$H$107 -> 16.32 | C107: =$C$7*$H$107 -> 13.6 | D107: =$D$7*$H$107 -> 10.88 | E107: =$E$7*$H$107 -> 8.16 | F107: =$F$7*$H$107 -> 5.44 | G107: è | H107: 0.0425
A108: 10th | B108: =$B$7*$H$108 -> 13.44 | C108: =$C$7*$H$108 -> 11.2 | D108: =$D$7*$H$108 -> 8.96 | E108: =$E$7*$H$108 -> 6.72 | F108: =$F$7*$H$108 -> 4.48 | G108: è | H108: 0.035
A109: 11th | B109: =$B$7*$H$109 -> 11.52 | C109: =$C$7*$H$109 -> 9.6 | D109: =$D$7*$H$109 -> 7.68 | E109: =$E$7*$H$109 -> 5.76 | F109: =$F$7*$H$109 -> 3.84 | G109: è | H109: 0.03
A110: 12th | B110: =$B$7*$H$110 -> 9.6 | C110: =$C$7*$H$110 -> 8 | D110: =$D$7*$H$110 -> 6.4 | E110: =$E$7*$H$110 -> 4.8 | F110: =$F$7*$H$110 -> 3.2 | G110: è | H110: 0.025
A111: 13th | B111: =$B$7*$H$111 -> 7.68 | C111: =$C$7*$H$111 -> 6.4 | D111: =$D$7*$H$111 -> 5.12 | E111: =$E$7*$H$111 -> 3.84 | F111: =$F$7*$H$111 -> 2.56 | G111: è | H111: 0.02
A112: 14th | B112: =$B$7*$H$112 -> 6.72 | C112: =$C$7*$H$112 -> 5.6 | D112: =$D$7*$H$112 -> 4.48 | E112: =$E$7*$H$112 -> 3.36 | F112: =$F$7*$H$112 -> 2.24 | G112: è | H112: 0.0175
A113: 15th | B113: =$B$7*$H$113 -> 5.76 | C113: =$C$7*$H$113 -> 4.8 | D113: =$D$7*$H$113 -> 3.84 | E113: =$E$7*$H$113 -> 2.88 | F113: =$F$7*$H$113 -> 1.92 | G113: è | H113: 0.015
A114: Totals | B114: =SUM(B99:B113) -> 384 | C114: =SUM(C99:C113) -> 320 | D114: =SUM(D99:D113) -> 256 | E114: =SUM(E99:E113) -> 192 | F114: =SUM(F99:F113) -> 128 | G114: =SUM(B114:F114) -> 1280 | H114: =SUM(H99:H113) -> 1
A116: For 1001-1500 riders 20 places
A117: Placings | B117: 1D | C117: 2D | D117: 3D | E117: 4D | F117: 5D
A118: 1st | B118: =$B$7*$H$118 -> 53.76 | C118: =$C$7*$H$118 -> 44.8 | D118: =$D$7*$H$118 -> 35.84 | E118: =$E$7*$H$118 -> 26.88 | F118: =$F$7*$H$118 -> 17.92 | G118: è | H118: 0.14
A119: 2nd | B119: =$B$7*$H$119 -> 42.24 | C119: =$C$7*$H$119 -> 35.2 | D119: =$D$7*$H$119 -> 28.16 | E119: =$E$7*$H$119 -> 21.12 | F119: =$F$7*$H$119 -> 14.08 | G119: è | H119: 0.11
A120: 3rd | B120: =$B$7*$H$120 -> 34.56 | C120: =$C$7*$H$120 -> 28.8 | D120: =$D$7*$H$120 -> 23.04 | E120: =$E$7*$H$120 -> 17.28 | F120: =$F$7*$H$120 -> 11.52 | G120: è | H120: 0.09
A121: 4th | B121: =$B$7*$H$121 -> 29.568 | C121: =$C$7*$H$121 -> 24.64 | D121: =$D$7*$H$121 -> 19.712 | E121: =$E$7*$H$121 -> 14.784 | F121: =$F$7*$H$121 -> 9.856 | G121: è | H121: 0.077
A122: 5th | B122: =$B$7*$H$122 -> 26.88 | C122: =$C$7*$H$122 -> 22.4 | D122: =$D$7*$H$122 -> 17.92 | E122: =$E$7*$H$122 -> 13.44 | F122: =$F$7*$H$122 -> 8.96 | G122: è | H122: 0.07
A123: 6th | B123: =$B$7*$H$123 -> 24.96 | C123: =$C$7*$H$123 -> 20.8 | D123: =$D$7*$H$123 -> 16.64 | E123: =$E$7*$H$123 -> 12.48 | F123: =$F$7*$H$123 -> 8.32 | G123: è | H123: 0.065
A124: 7th | B124: =$B$7*$H$124 -> 23.04 | C124: =$C$7*$H$124 -> 19.2 | D124: =$D$7*$H$124 -> 15.36 | E124: =$E$7*$H$124 -> 11.52 | F124: =$F$7*$H$124 -> 7.68 | G124: è | H124: 0.06
A125: 8th | B125: =$B$7*$H$125 -> 21.12 | C125: =$C$7*$H$125 -> 17.6 | D125: =$D$7*$H$125 -> 14.08 | E125: =$E$7*$H$125 -> 10.56 | F125: =$F$7*$H$125 -> 7.04 | G125: è | H125: 0.055
A126: 9th | B126: =$B$7*$H$126 -> 19.2 | C126: =$C$7*$H$126 -> 16 | D126: =$D$7*$H$126 -> 12.8 | E126: =$E$7*$H$126 -> 9.6 | F126: =$F$7*$H$126 -> 6.4 | G126: è | H126: 0.05
A127: 10th | B127: =$B$7*$H$127 -> 17.28 | C127: =$C$7*$H$127 -> 14.4 | D127: =$D$7*$H$127 -> 11.52 | E127: =$E$7*$H$127 -> 8.64 | F127: =$F$7*$H$127 -> 5.76 | G127: è | H127: 0.045
A128: 11th | B128: =$B$7*$H$128 -> 15.36 | C128: =$C$7*$H$128 -> 12.8 | D128: =$D$7*$H$128 -> 10.24 | E128: =$E$7*$H$128 -> 7.68 | F128: =$F$7*$H$128 -> 5.12 | G128: è | H128: 0.04
A129: 12th | B129: =$B$7*$H$129 -> 14.208 | C129: =$C$7*$H$129 -> 11.84 | D129: =$D$7*$H$129 -> 9.472 | E129: =$E$7*$H$129 -> 7.104 | F129: =$F$7*$H$129 -> 4.736 | G129: è | H129: 0.037
A130: 13th | B130: =$B$7*$H$130 -> 12.672 | C130: =$C$7*$H$130 -> 10.56 | D130: =$D$7*$H$130 -> 8.448 | E130: =$E$7*$H$130 -> 6.336 | F130: =$F$7*$H$130 -> 4.224 | G130: è | H130: 0.033
A131: 14th | B131: =$B$7*$H$131 -> 11.136 | C131: =$C$7*$H$131 -> 9.28 | D131: =$D$7*$H$131 -> 7.424 | E131: =$E$7*$H$131 -> 5.568 | F131: =$F$7*$H$131 -> 3.712 | G131: è | H131: 0.029
A132: 15th | B132: =$B$7*$H$132 -> 9.6 | C132: =$C$7*$H$132 -> 8 | D132: =$D$7*$H$132 -> 6.4 | E132: =$E$7*$H$132 -> 4.8 | F132: =$F$7*$H$132 -> 3.2 | G132: è | H132: 0.025
A133: 16th | B133: =$B$7*$H$133 -> 8.064 | C133: =$C$7*$H$133 -> 6.72 | D133: =$D$7*$H$133 -> 5.376 | E133: =$E$7*$H$133 -> 4.032 | F133: =$F$7*$H$133 -> 2.688 | G133: è | H133: 0.021
A134: 17th | B134: =$B$7*$H$134 -> 6.528 | C134: =$C$7*$H$134 -> 5.44 | D134: =$D$7*$H$134 -> 4.352 | E134: =$E$7*$H$134 -> 3.264 | F134: =$F$7*$H$134 -> 2.176 | G134: è | H134: 0.017
A135: 18th | B135: =$B$7*$H$135 -> 5.376 | C135: =$C$7*$H$135 -> 4.48 | D135: =$D$7*$H$135 -> 3.584 | E135: =$E$7*$H$135 -> 2.688 | F135: =$F$7*$H$135 -> 1.792 | G135: è | H135: 0.014
A136: 19th | B136: =$B$7*$H$136 -> 4.608 | C136: =$C$7*$H$136 -> 3.84 | D136: =$D$7*$H$136 -> 3.072 | E136: =$E$7*$H$136 -> 2.304 | F136: =$F$7*$H$136 -> 1.536 | G136: è | H136: 0.012
A137: 20th | B137: =$B$7*$H$137 -> 3.84 | C137: =$C$7*$H$137 -> 3.2 | D137: =$D$7*$H$137 -> 2.56 | E137: =$E$7*$H$137 -> 1.92 | F137: =$F$7*$H$137 -> 1.28 | G137: è | H137: 0.01
A138: Totals | B138: =SUM(B118:B137) -> 384 | C138: =SUM(C118:C137) -> 320 | D138: 256 | E138: 192 | F138: 128 | G138: =SUM(B138:F138) -> 1280 | H138: =SUM(H118:H137) -> 1
A140: For 1501 or More riders 30 places
A141: Placings | B141: 1D | C141: 2D | D141: 3D | E141: 4D | F141: 5D
A142: 1st | B142: =$B$7*$H142 -> 46.08 | C142: =$C$7*$H142 -> 38.4 | D142: =$D$7*$H142 -> 30.72 | E142: =$E$7*$H142 -> 23.04 | F142: =$F$7*$H142 -> 15.36 | G142: è | H142: 0.12
A143: 2nd | B143: =$B$7*$H143 -> 36.48 | C143: 30.4 | D143: 24.32 | E143: 18.24 | F143: 12.16 | G143: è | H143: 0.095
A144: 3rd | B144: =$B$7*$H144 -> 28.032 | C144: 23.36 | D144: 18.688 | E144: 14.016 | F144: 9.344 | G144: è | H144: 0.073
A145: 4th | B145: =$B$7*$H145 -> 23.808 | C145: 19.84 | D145: 15.872 | E145: 11.904 | F145: 7.936 | G145: è | H145: 0.062
A146: 5th | B146: 19.2 | C146: 16 | D146: 12.8 | E146: 9.6 | F146: 6.4 | G146: è | H146: 0.05
A147: 6th | B147: 17.28 | C147: 14.4 | D147: 11.52 | E147: 8.64 | F147: 5.76 | G147: è | H147: 0.045
A148: 7th | B148: 16.512 | C148: 13.76 | D148: 11.008 | E148: 8.256 | F148: 5.504 | G148: è | H148: 0.043
A149: 8th | B149: 15.36 | C149: 12.8 | D149: 10.24 | E149: 7.68 | F149: 5.12 | G149: è | H149: 0.04
A150: 9th | B150: 14.208 | C150: 11.84 | D150: 9.472 | E150: 7.104 | F150: 4.736 | G150: è | H150: 0.037
A151: 10th | B151: 13.44 | C151: 11.2 | D151: 8.96 | E151: 6.72 | F151: 4.48 | G151: è | H151: 0.035
A152: 11th | B152: 12.672 | C152: 10.56 | D152: 8.448 | E152: 6.336 | F152: 4.224 | G152: è | H152: 0.033
A153: 12th | B153: 11.904 | C153: 9.92 | D153: 7.936 | E153: 5.952 | F153: 3.968 | G153: è | H153: 0.031
A154: 13th | B154: 11.136 | C154: 9.28 | D154: 7.424 | E154: 5.568 | F154: 3.712 | G154: è | H154: 0.029
A155: 14th | B155: 10.368 | C155: 8.64 | D155: 6.912 | E155: 5.184 | F155: 3.456 | G155: è | H155: 0.027
A156: 15th | B156: 9.6 | C156: 8 | D156: 6.4 | E156: 4.8 | F156: 3.2 | G156: è | H156: 0.025
A157: 16th | B157: 9.216 | C157: 7.68 | D157: 6.144 | E157: 4.608 | F157: 3.072 | G157: è | H157: 0.024
A158: 17th | B158: 8.832 | C158: 7.36 | D158: 5.888 | E158: 4.416 | F158: 2.944 | G158: è | H158: 0.023
A159: 18th | B159: 8.448 | C159: 7.04 | D159: 5.632 | E159: 4.224 | F159: 2.816 | G159: è | H159: 0.022
A160: 19th | B160: 8.064 | C160: 6.72 | D160: 5.376 | E160: 4.032 | F160: 2.688 | G160: è | H160: 0.021
A161: 20th | B161: 7.68 | C161: 6.4 | D161: 5.12 | E161: 3.84 | F161: 2.56 | G161: è | H161: 0.02
A162: 21st | B162: 7.296 | C162: 6.08 | D162: 4.864 | E162: 3.648 | F162: 2.432 | G162: è | H162: 0.019
A163: 22nd | B163: 6.912 | C163: 5.76 | D163: 4.608 | E163: 3.456 | F163: 2.304 | G163: è | H163: 0.018
A164: 23rd | B164: 6.528 | C164: 5.44 | D164: 4.352 | E164: 3.264 | F164: 2.176 | G164: è | H164: 0.017
A165: 24th | B165: 6.144 | C165: 5.12 | D165: 4.096 | E165: 3.072 | F165: 2.048 | G165: è | H165: 0.016
A166: 25th | B166: 5.76 | C166: 4.8 | D166: 3.84 | E166: 2.88 | F166: 1.92 | G166: è | H166: 0.015
A167: 26th | B167: 5.376 | C167: 4.48 | D167: 3.584 | E167: 2.688 | F167: 1.792 | G167: è | H167: 0.014
A168: 27th | B168: 4.992 | C168: 4.16 | D168: 3.328 | E168: 2.496 | F168: 1.664 | G168: è | H168: 0.013
A169: 28th | B169: 4.608 | C169: 3.84 | D169: 3.072 | E169: 2.304 | F169: 1.536 | G169: è | H169: 0.012
A170: 29th | B170: 4.224 | C170: 3.52 | D170: 2.816 | E170: 2.112 | F170: 1.408 | G170: è | H170: 0.011
A171: 30th | B171: 3.84 | C171: 3.2 | D171: 2.56 | E171: 1.92 | F171: 1.28 | G171: è | H171: 0.01
A172: Totals | B172: =SUM(B142:B171) -> 384 | C172: =SUM(C142:C171) -> 320 | D172: 256 | E172: 192 | F172: 128 | G172: =SUM(B172:F172) -> 1280 | H172: =SUM(H142:H171) -> 1

Sheet DON'T TOUCH (hidden)
A2: Yes | C2: S | D2: 5 | E2: X
C3: A | D3: 10
C4: Y | D4: 15
C5: P | D5: BP
D6: SCR
